Workbook

Sheet Main
B10: 2018-12-24
B12: Sheet No. | C12: Template Name | D12: Summary
B13: 1 | C13: Future Intra | D13: For Intraday trading in F&O segment
B14: 2 | C14: Cash Intra | D14: For Intraday trading in cash market segment
B15: 3 | C15: Mid-cap Intra | D15: For Intraday trading in Mid-cap stocks
B16: 4 | C16: Bulk Deals | D16: Reveals Bulk Deals carried on NSE & BSE
B17: 5 | C17: Call Tracker

Sheet Future Intra
M5: Back to Main Page
A6: FOR INTRA DAY TRADING | L6: =Main!B10 -> 2018-12-24
A9: Sr.no | B9: Sector | C9: Scrip | D9: CLOSE RATE | E9: Pivot Point | F9: Supports | I9: Resistances
B10: Sector | D10: Point | E10: Point | F10: S1 | G10: S2 | H10: S3 | I10: R1 | J10: R2 | K10: R3 | L10: HIGH | M10: LOW | N10: OI | O10: % Change in OI
A11: 1 | B11: Index | C11: BANKNIFTY | D11: 26942.70 | E11: 27076.77 | F11: 26754.53 | G11: 26566.37 | H11: 26244.13 | I11: 27264.93 | J11: 27587.17 | K11: 27775.33 | L11: 27399 | M11: 26888.6 | N11: 1788160 | O11: -2.27%
A12: 2 | B12: Index | C12: NIFTY | D12: 10767.50 | E12: 10834.72 | F12: 10687.78 | G12: 10608.07 | H12: 10461.13 | I12: 10914.43 | J12: 11061.37 | K12: 11141.08 | L12: 10981.65 | M12: 10755 | N12: 25341750 | O12: 4.35%
A13: 3 | B13: Index | C13: NIFTYIT | D13: 14231.00 | E13: 14326.67 | F13: 14097.33 | G13: 13963.67 | H13: 13734.33 | I13: 14460.33 | J13: 14689.67 | K13: 14823.33 | L13: 14556 | M13: 14193 | N13: 24050 | O13: 23.65%
A14: 4 | B14: Index | C14: NIFTYMID50 | D14: 4813.20 | E14: 4822.30 | F14: 4804.10 | G14: 4795.00 | H14: 4776.80 | I14: 4831.40 | J14: 4849.60 | K14: 4858.70 | L14: 4840.5 | M14: 4813.2 | N14: 591580 | O14: -0.04%
A15: 5 | B15: Cement | C15: ACC | D15: 1493.80 | E15: 1506.85 | F15: 1470.25 | G15: 1446.70 | H15: 1410.10 | I15: 1530.40 | J15: 1567.00 | K15: 1590.55 | L15: 1543.45 | M15: 1483.3 | N15: 1429600 | O15: -0.56%
A16: 6 | B16: Others | C16: ADANIENT | D16: 159.70 | E16: 158.00 | F16: 154.10 | G16: 148.50 | H16: 144.60 | I16: 163.60 | J16: 167.50 | K16: 173.10 | L16: 161.9 | M16: 152.4 | N16: 41260000 | O16: -8.34%
A17: 7 | B17: Others | C17: ADANIPORTS | D17: 362.50 | E17: 367.93 | F17: 355.52 | G17: 348.53 | H17: 336.12 | I17: 374.92 | J17: 387.33 | K17: 394.32 | L17: 380.35 | M17: 360.95 | N17: 24307500 | O17: 20.89%
A18: 8 | B18: Power | C18: ADANIPOWER | D18: 50.55 | E18: 51.07 | F18: 49.58 | G18: 48.62 | H18: 47.13 | I18: 52.03 | J18: 53.52 | K18: 54.48 | L18: 52.55 | M18: 50.1 | N18: 173000000 | O18: 3.65%
A19: 9 | B19: Pharma | C19: AJANTPHARM | D19: 1131.45 | E19: 1140.13 | F19: 1115.27 | G19: 1099.08 | H19: 1074.22 | I19: 1156.32 | J19: 1181.18 | K19: 1197.37 | L19: 1165 | M19: 1123.95 | N19: 548000 | O19: -6.32%
A20: 10 | B20: Banking | C20: ALBK | D20: 46.85 | E20: 46.90 | F20: 46.20 | G20: 45.55 | H20: 44.85 | I20: 47.55 | J20: 48.25 | K20: 48.90 | L20: 47.6 | M20: 46.25 | N20: 22472000 | O20: 2.45%
A21: 11 | B21: Automobile | C21: AMARAJABAT | D21: 742.90 | E21: 744.38 | F21: 736.17 | G21: 729.43 | H21: 721.22 | I21: 751.12 | J21: 759.33 | K21: 766.07 | L21: 752.6 | M21: 737.65 | N21: 1180200 | O21: -7.06%
A22: 12 | B22: Cement | C22: AMBUJACEM | D22: 220.65 | E22: 222.22 | F22: 217.93 | G22: 215.22 | H22: 210.93 | I22: 224.93 | J22: 229.22 | K22: 231.93 | L22: 226.5 | M22: 219.5 | N22: 17365000 | O22: 2.06%
A23: 13 | B23: Others | C23: APOLLOHOSP | D23: 1252.65 | E23: 1259.27 | F23: 1236.88 | G23: 1221.12 | H23: 1198.73 | I23: 1275.03 | J23: 1297.42 | K23: 1313.18 | L23: 1281.65 | M23: 1243.5 | N23: 927500 | O23: -5.84%
A24: 14 | B24: Automobile | C24: APOLLOTYRE | D24: 233.60 | E24: 236.27 | F24: 230.03 | G24: 226.47 | H24: 220.23 | I24: 239.83 | J24: 246.07 | K24: 249.63 | L24: 242.5 | M24: 232.7 | N24: 10122000 | O24: -5.41%
A25: 15 | B25: Textile | C25: ARVIND | D25: 99.00 | E25: 99.22 | F25: 97.83 | G25: 96.67 | H25: 95.28 | I25: 100.38 | J25: 101.77 | K25: 102.93 | L25: 100.6 | M25: 98.05 | N25: 7270000 | O25: 1.20%
A26: 16 | B26: Automobile | C26: ASHOKLEY | D26: 104.90 | E26: 105.23 | F26: 103.17 | G26: 101.43 | H26: 99.37 | I26: 106.97 | J26: 109.03 | K26: 110.77 | L26: 107.3 | M26: 103.5 | N26: 63028000 | O26: 1.60%
A27: 17 | B27: FMCG | C27: ASIANPAINT | D27: 1392.60 | E27: 1405.47 | F27: 1374.08 | G27: 1355.57 | H27: 1324.18 | I27: 1423.98 | J27: 1455.37 | K27: 1473.88 | L27: 1436.85 | M27: 1386.95 | N27: 5595600 | O27: 5.93%
A28: 18 | B28: Pharma | C28: AUROPHARMA | D28: 722.10 | E28: 724.33 | F28: 714.17 | G28: 706.23 | H28: 696.07 | I28: 732.27 | J28: 742.43 | K28: 750.37 | L28: 734.5 | M28: 716.4 | N28: 22640000 | O28: 1.55%
A29: 19 | B29: Banking | C29: AXISBANK | D29: 622.75 | E29: 626.88 | F29: 614.52 | G29: 606.28 | H29: 593.92 | I29: 635.12 | J29: 647.48 | K29: 655.72 | L29: 639.25 | M29: 618.65 | N29: 37490400 | O29: -0.41%
A30: 20 | B30: Automobile | C30: BAJAJ-AUTO | D30: 2816.10 | E30: 2845.08 | F30: 2779.32 | G30: 2742.53 | H30: 2676.77 | I30: 2881.87 | J30: 2947.63 | K30: 2984.42 | L30: 2910.85 | M30: 2808.3 | N30: 2259500 | O30: 2.60%
A31: 21 | B31: Others | C31: BAJAJFINSV | D31: 6362.60 | E31: 6390.62 | F31: 6278.13 | G31: 6193.67 | H31: 6081.18 | I31: 6475.08 | J31: 6587.57 | K31: 6672.03 | L31: 6503.1 | M31: 6306.15 | N31: 658250 | O31: 1.29%
A32: 22 | B32: Finance | C32: BAJFINANCE | D32: 2590.30 | E32: 2583.77 | F32: 2542.23 | G32: 2494.17 | H32: 2452.63 | I32: 2631.83 | J32: 2673.37 | K32: 2721.43 | L32: 2625.3 | M32: 2535.7 | N32: 6062250 | O32: -3.84%
A33: 23 | B33: Others | C33: BALKRISIND | D33: 929.55 | E33: 938.02 | F33: 918.13 | G33: 906.72 | H33: 886.83 | I33: 949.43 | J33: 969.32 | K33: 980.73 | L33: 957.9 | M33: 926.6 | N33: 3005600 | O33: -0.71%
A34: 24 | B34: Banking | C34: BANKBARODA | D34: 115.30 | E34: 115.38 | F34: 114.17 | G34: 113.03 | H34: 111.82 | I34: 116.52 | J34: 117.73 | K34: 118.87 | L34: 116.6 | M34: 114.25 | N34: 66840000 | O34: 1.69%
A35: 25 | B35: Banking | C35: BANKINDIA | D35: 98.15 | E35: 97.58 | F35: 95.92 | G35: 93.68 | H35: 92.02 | I35: 99.82 | J35: 101.48 | K35: 103.72 | L35: 99.25 | M35: 95.35 | N35: 26292000 | O35: -8.71%
A36: 26 | B36: FMCG | C36: BATAINDIA | D36: 1113.30 | E36: 1114.07 | F36: 1097.38 | G36: 1081.47 | H36: 1064.78 | I36: 1129.98 | J36: 1146.67 | K36: 1162.58 | L36: 1130.75 | M36: 1098.15 | N36: 2400750 | O36: 9.02%
A37: 27 | B37: Capital_Goods | C37: BEL | D37: 88.50 | E37: 90.00 | F37: 86.20 | G37: 83.90 | H37: 80.10 | I37: 92.30 | J37: 96.10 | K37: 98.40 | L37: 93.8 | M37: 87.7 | N37: 43896900 | O37: 4.28%
A38: 28 | B38: Infrastructure | C38: BEML | D38: 889.10 | E38: 905.63 | F38: 867.92 | G38: 846.73 | H38: 809.02 | I38: 926.82 | J38: 964.53 | K38: 985.72 | L38: 943.35 | M38: 884.45 | N38: 1655900 | O38: -6.76%
A39: 29 | B39: Others | C39: BERGEPAINT | D39: 330.95 | E39: 334.17 | F39: 326.53 | G39: 322.12 | H39: 314.48 | I39: 338.58 | J39: 346.22 | K39: 350.63 | L39: 341.8 | M39: 329.75 | N39: 2620200 | O39: -7.75%
A40: 30 | B40: Finance | C40: BHARATFIN | D40: 997.80 | E40: 1007.57 | F40: 984.48 | G40: 971.17 | H40: 948.08 | I40: 1020.88 | J40: 1043.97 | K40: 1057.28 | L40: 1030.65 | M40: 994.25 | N40: 5438500 | O40: 5.52%
A41: 31 | B41: Automobile | C41: BHARATFORG | D41: 502.20 | E41: 509.73 | F41: 493.02 | G41: 483.83 | H41: 467.12 | I41: 518.92 | J41: 535.63 | K41: 544.82 | L41: 526.45 | M41: 500.55 | N41: 11173200 | O41: 1.82%
A42: 32 | B42: Telecom | C42: BHARTIARTL | D42: 308.80 | E42: 313.50 | F42: 302.00 | G42: 295.20 | H42: 283.70 | I42: 320.30 | J42: 331.80 | K42: 338.60 | L42: 325 | M42: 306.7 | N42: 42224600 | O42: 0.75%
A43: 33 | B43: Capital_Goods | C43: BHEL | D43: 70.00 | E43: 70.60 | F43: 68.95 | G43: 67.90 | H43: 66.25 | I43: 71.65 | J43: 73.30 | K43: 74.35 | L43: 72.25 | M43: 69.55 | N43: 61350000 | O43: 3.85%
A44: 34 | B44: Pharma | C44: BIOCON | D44: 622.40 | E44: 628.27 | F44: 612.53 | G44: 602.67 | H44: 586.93 | I44: 638.13 | J44: 653.87 | K44: 663.73 | L44: 644 | M44: 618.4 | N44: 5942700 | O44: -0.29%
A45: 35 | B45: Automobile | C45: BOSCHLTD | D45: 19921.40 | E45: 19838.77 | F45: 19618.93 | G45: 19316.47 | H45: 19096.63 | I45: 20141.23 | J45: 20361.07 | K45: 20663.53 | L45: 20058.6 | M45: 19536.3 | N45: 148140 | O45: -2.16%
A46: 36 | B46: Oil_Gas | C46: BPCL | D46: 373.50 | E46: 372.25 | F46: 368.80 | G46: 364.10 | H46: 360.65 | I46: 376.95 | J46: 380.40 | K46: 385.10 | L46: 375.7 | M46: 367.55 | N46: 17226000 | O46: 3.77%
A47: 37 | B47: FMCG | C47: BRITANNIA | D47: 3128.00 | E47: 3151.20 | F47: 3091.90 | G47: 3055.80 | H47: 2996.50 | I47: 3187.30 | J47: 3246.60 | K47: 3282.70 | L47: 3210.5 | M47: 3115.1 | N47: 2754800 | O47: -1.54%
A48: 38 | B48: Pharma | C48: CADILAHC | D48: 342.85 | E48: 344.22 | F48: 339.63 | G48: 336.42 | H48: 331.83 | I48: 347.43 | J48: 352.02 | K48: 355.23 | L48: 348.8 | M48: 341 | N48: 9376000 | O48: 3.17%
A49: 39 | B49: Banking | C49: CANBK | D49: 266.20 | E49: 267.72 | F49: 262.53 | G49: 258.87 | H49: 253.68 | I49: 271.38 | J49: 276.57 | K49: 280.23 | L49: 272.9 | M49: 264.05 | N49: 11616000 | O49: -2.26%
A50: 40 | B50: Others | C50: CANFINHOME | D50: 279.00 | E50: 284.98 | F50: 270.47 | G50: 261.93 | H50: 247.42 | I50: 293.52 | J50: 308.03 | K50: 316.57 | L50: 299.5 | M50: 276.45 | N50: 5089550 | O50: 3.33%
A51: 41 | B51: Finance | C51: CAPF | D51: 594.50 | E51: 599.27 | F51: 585.63 | G51: 576.77 | H51: 563.13 | I51: 608.13 | J51: 621.77 | K51: 630.63 | L51: 612.9 | M51: 590.4 | N51: 5415000 | O51: -8.72%
A52: 42 | B52: Oil_Gas | C52: CASTROLIND | D52: 153.10 | E52: 154.10 | F52: 151.65 | G52: 150.20 | H52: 147.75 | I52: 155.55 | J52: 158.00 | K52: 159.45 | L52: 156.55 | M52: 152.65 | N52: 6970600 | O52: -4.14%
A53: 43 | B53: Automobile | C53: CEATLTD | D53: 1322.25 | E53: 1332.68 | F53: 1300.37 | G53: 1278.48 | H53: 1246.17 | I53: 1354.57 | J53: 1386.88 | K53: 1408.77 | L53: 1365 | M53: 1310.8 | N53: 934500 | O53: -2.60%
A54: 44 | B54: Textile | C54: CENTURYTEX | D54: 914.25 | E54: 924.67 | F54: 894.68 | G54: 875.12 | H54: 845.13 | I54: 944.23 | J54: 974.22 | K54: 993.78 | L54: 954.65 | M54: 905.1 | N54: 4464600 | O54: -1.90%
A55: 45 | B55: Power | C55: CESC | D55: 690.10 | E55: 695.13 | F55: 656.82 | G55: 623.53 | H55: 585.22 | I55: 728.42 | J55: 766.73 | K55: 800.02 | L55: 733.45 | M55: 661.85 | N55: 1758900 | O55: 11.35%
A56: 46 | B56: Power | C56: CGPOWER | D56: 43.35 | E56: 42.50 | F56: 41.25 | G56: 39.15 | H56: 37.90 | I56: 44.60 | J56: 45.85 | K56: 47.95 | L56: 43.75 | M56: 40.4 | N56: 49836000 | O56: 7.65%
A57: 47 | B57: Others | C57: CHENNPETRO | D57: 280.30 | E57: 283.80 | F57: 275.75 | G57: 271.20 | H57: 263.15 | I57: 288.35 | J57: 296.40 | K57: 300.95 | L57: 291.85 | M57: 279.25 | N57: 1145100 | O57: -7.29%
A58: 48 | B58: Others | C58: CHOLAFIN | D58: 1224.85 | E58: 1241.42 | F58: 1204.43 | G58: 1184.02 | H58: 1147.03 | I58: 1261.83 | J58: 1298.82 | K58: 1319.23 | L58: 1278.4 | M58: 1221 | N58: 1198000 | O58: -2.76%
A59: 49 | B59: Pharma | C59: CIPLA | D59: 517.85 | E59: 519.48 | F59: 514.07 | G59: 510.28 | H59: 504.87 | I59: 523.27 | J59: 528.68 | K59: 532.47 | L59: 524.9 | M59: 515.7 | N59: 8505000 | O59: 1.09%
A60: 50 | B60: Others | C60: COALINDIA | D60: 252.35 | E60: 250.95 | F60: 249.00 | G60: 245.65 | H60: 243.70 | I60: 254.30 | J60: 256.25 | K60: 259.60 | L60: 252.9 | M60: 247.6 | N60: 33954800 | O60: -7.98%
A61: 51 | B61: FMCG | C61: COLPAL | D61: 1325.05 | E61: 1327.68 | F61: 1317.37 | G61: 1309.68 | H61: 1299.37 | I61: 1335.37 | J61: 1345.68 | K61: 1353.37 | L61: 1338 | M61: 1320 | N61: 1661100 | O61: 4.91%
A62: 52 | B62: Others | C62: CONCOR | D62: 656.45 | E62: 659.30 | F62: 650.65 | G62: 644.85 | H62: 636.20 | I62: 665.10 | J62: 673.75 | K62: 679.55 | L62: 667.95 | M62: 653.5 | N62: 3886250 | O62: 0.68%
A63: 53 | B63: Capital_Goods | C63: CUMMINSIND | D63: 793.90 | E63: 805.63 | F63: 777.27 | G63: 760.63 | H63: 732.27 | I63: 822.27 | J63: 850.63 | K63: 867.27 | L63: 834 | M63: 789 | N63: 2072000 | O63: 5.53%
A64: 54 | B64: FMCG | C64: DABUR | D64: 439.00 | E64: 441.43 | F64: 433.22 | G64: 427.43 | H64: 419.22 | I64: 447.22 | J64: 455.43 | K64: 461.22 | L64: 449.65 | M64: 435.65 | N64: 11358750 | O64: 4.32%
A65: 55 | B65: Banking | C65: DCBBANK | D65: 165.30 | E65: 165.95 | F65: 162.20 | G65: 159.10 | H65: 155.35 | I65: 169.05 | J65: 172.80 | K65: 175.90 | L65: 169.7 | M65: 162.85 | N65: 5044500 | O65: 7.79%
A66: 56 | B66: Finance | C66: DHFL | D66: 240.95 | E66: 239.70 | F66: 233.40 | G66: 225.85 | H66: 219.55 | I66: 247.25 | J66: 253.55 | K66: 261.10 | L66: 246 | M66: 232.15 | N66: 21790500 | O66: -9.01%
A67: 57 | B67: Media | C67: DISHTV | D67: 38.80 | E67: 39.07 | F67: 38.18 | G67: 37.57 | H67: 36.68 | I67: 39.68 | J67: 40.57 | K67: 41.18 | L67: 39.95 | M67: 38.45 | N67: 59880000 | O67: 0.23%
A68: 58 | B68: Pharma | C68: DIVISLAB | D68: 1478.75 | E68: 1491.22 | F68: 1462.53 | G68: 1446.32 | H68: 1417.63 | I68: 1507.43 | J68: 1536.12 | K68: 1552.33 | L68: 1519.9 | M68: 1475 | N68: 3561200 | O68: -0.02%
A69: 59 | B69: Realty | C69: DLF | D69: 187.55 | E69: 188.35 | F69: 184.60 | G69: 181.65 | H69: 177.90 | I69: 191.30 | J69: 195.05 | K69: 198.00 | L69: 192.1 | M69: 185.4 | N69: 26840800 | O69: -2.21%
A70: 60 | B70: Pharma | C70: DRREDDY | D70: 2610.30 | E70: 2606.10 | F70: 2588.20 | G70: 2566.10 | H70: 2548.20 | I70: 2628.20 | J70: 2646.10 | K70: 2668.20 | L70: 2624 | M70: 2584 | N70: 3918500 | O70: 1.17%
A71: 61 | B71: Automobile | C71: EICHERMOT | D71: 23601.75 | E71: 23791.62 | F71: 23310.28 | G71: 23018.82 | H71: 22537.48 | I71: 24083.08 | J71: 24564.42 | K71: 24855.88 | L71: 24272.95 | M71: 23500.15 | N71: 252700 | O71: 2.07%
A72: 62 | B72: Infrastructure | C72: ENGINERSIN | D72: 123.50 | E72: 123.62 | F72: 121.83 | G72: 120.17 | H72: 118.38 | I72: 125.28 | J72: 127.07 | K72: 128.73 | L72: 125.4 | M72: 121.95 | N72: 7593700 | O72: 5.24%
A73: 63 | B73: Finance | C73: EQUITAS | D73: 122.25 | E73: 123.60 | F73: 119.95 | G73: 117.65 | H73: 114.00 | I73: 125.90 | J73: 129.55 | K73: 131.85 | L73: 127.25 | M73: 121.3 | N73: 9396000 | O73: 0.95%
A74: 64 | B74: Automobile | C74: ESCORTS | D74: 684.70 | E74: 688.17 | F74: 673.53 | G74: 662.37 | H74: 647.73 | I74: 699.33 | J74: 713.97 | K74: 725.13 | L74: 702.8 | M74: 677 | N74: 4645300 | O74: -1.47%
A75: 65 | B75: Automobile | C75: EXIDEIND | D75: 264.45 | E75: 266.12 | F75: 261.28 | G75: 258.12 | H75: 253.28 | I75: 269.28 | J75: 274.12 | K75: 277.28 | L75: 270.95 | M75: 262.95 | N75: 5308000 | O75: -3.35%
A76: 66 | B76: Banking | C76: FEDERALBNK | D76: 92.65 | E76: 93.60 | F76: 91.15 | G76: 89.65 | H76: 87.20 | I76: 95.10 | J76: 97.55 | K76: 99.05 | L76: 96.05 | M76: 92.1 | N76: 40923000 | O76: -4.33%
A77: 67 | B77: Oil_Gas | C77: GAIL | D77: 345.25 | E77: 348.42 | F77: 341.08 | G77: 336.92 | H77: 329.58 | I77: 352.58 | J77: 359.92 | K77: 364.08 | L77: 355.75 | M77: 344.25 | N77: 20639913 | O77: 8.24%
A78: 68 | B78: Pharma | C78: GLENMARK | D78: 673.95 | E78: 680.92 | F78: 664.73 | G78: 655.52 | H78: 639.33 | I78: 690.13 | J78: 706.32 | K78: 715.53 | L78: 697.1 | M78: 671.7 | N78: 3773000 | O78: -3.77%
A79: 69 | B79: Infrastructure | C79: GMRINFRA | D79: 15.95 | E79: 16.15 | F79: 15.65 | G79: 15.35 | H79: 14.85 | I79: 16.45 | J79: 16.95 | K79: 17.25 | L79: 16.65 | M79: 15.85 | N79: 203085000 | O79: 9.19%
A80: 70 | B80: Others | C80: GODFRYPHLP | D80: 850.00 | E80: 867.32 | F80: 823.63 | G80: 797.27 | H80: 753.58 | I80: 893.68 | J80: 937.37 | K80: 963.73 | L80: 911 | M80: 840.95 | N80: 568400 | O80: -0.49%
A81: 71 | B81: FMCG | C81: GODREJCP | D81: 805.25 | E81: 811.47 | F81: 794.93 | G81: 784.62 | H81: 768.08 | I81: 821.78 | J81: 838.32 | K81: 848.63 | L81: 828 | M81: 801.15 | N81: 4641000 | O81: -1.34%
A82: 72 | B82: FMCG | C82: GODREJIND | D82: 523.95 | E82: 531.17 | F82: 513.98 | G82: 504.02 | H82: 486.83 | I82: 541.13 | J82: 558.32 | K82: 568.28 | L82: 548.35 | M82: 521.2 | N82: 2146500 | O82: 0.14%
A83: 73 | B83: Cement | C83: GRASIM | D83: 816.95 | E83: 822.55 | F83: 809.45 | G83: 801.95 | H83: 788.85 | I83: 830.05 | J83: 843.15 | K83: 850.65 | L83: 835.65 | M83: 815.05 | N83: 10122000 | O83: 9.01%
A84: 74 | B84: Others | C84: GSFC | D84: 110.95 | E84: 111.75 | F84: 109.70 | G84: 108.45 | H84: 106.40 | I84: 113.00 | J84: 115.05 | K84: 116.30 | L84: 113.8 | M84: 110.5 | N84: 16370700 | O84: -4.75%
A85: 75 | B85: Others | C85: HAVELLS | D85: 693.40 | E85: 700.87 | F85: 683.83 | G85: 674.27 | H85: 657.23 | I85: 710.43 | J85: 727.47 | K85: 737.03 | L85: 717.9 | M85: 691.3 | N85: 5420000 | O85: 3.18%
A86: 76 | B86: Technology | C86: HCLTECH | D86: 954.55 | E86: 955.57 | F86: 946.28 | G86: 938.02 | H86: 928.73 | I86: 963.83 | J86: 973.12 | K86: 981.38 | L86: 964.85 | M86: 947.3 | N86: 9866500 | O86: -1.24%
A87: 77 | B87: Finance | C87: HDFC | D87: 1949.00 | E87: 1955.60 | F87: 1927.80 | G87: 1906.60 | H87: 1878.80 | I87: 1976.80 | J87: 2004.60 | K87: 2025.80 | L87: 1983.4 | M87: 1934.4 | N87: 26936500 | O87: 3.67%
A88: 78 | B88: Banking | C88: HDFCBANK | D88: 2118.25 | E88: 2128.53 | F88: 2105.97 | G88: 2093.68 | H88: 2071.12 | I88: 2140.82 | J88: 2163.38 | K88: 2175.67 | L88: 2151.1 | M88: 2116.25 | N88: 13525500 | O88: 2.59%
A89: 79 | B89: Automobile | C89: HEROMOTOCO | D89: 3324.30 | E89: 3338.58 | F89: 3299.52 | G89: 3274.73 | H89: 3235.67 | I89: 3363.37 | J89: 3402.43 | K89: 3427.22 | L89: 3377.65 | M89: 3313.8 | N89: 1351600 | O89: -0.40%
A90: 80 | B90: Technology | C90: HEXAWARE | D90: 313.90 | E90: 317.13 | F90: 309.17 | G90: 304.43 | H90: 296.47 | I90: 321.87 | J90: 329.83 | K90: 334.57 | L90: 325.1 | M90: 312.4 | N90: 3216000 | O90: -0.88%
A91: 81 | B91: Metals | C91: HINDALCO | D91: 223.90 | E91: 224.50 | F91: 221.50 | G91: 219.10 | H91: 216.10 | I91: 226.90 | J91: 229.90 | K91: 232.30 | L91: 227.5 | M91: 222.1 | N91: 30247000 | O91: -0.18%
A92: 82 | B92: Oil_Gas | C92: HINDPETRO | D92: 249.65 | E92: 248.15 | F92: 244.10 | G92: 238.55 | H92: 234.50 | I92: 253.70 | J92: 257.75 | K92: 263.30 | L92: 252.2 | M92: 242.6 | N92: 23033325 | O92: 1.66%
A93: 83 | B93: FMCG | C93: HINDUNILVR | D93: 1808.10 | E93: 1819.87 | F93: 1793.23 | G93: 1778.37 | H93: 1751.73 | I93: 1834.73 | J93: 1861.37 | K93: 1876.23 | L93: 1846.5 | M93: 1805 | N93: 10617600 | O93: 1.81%
A94: 84 | B94: Metals | C94: HINDZINC | D94: 275.25 | E94: 276.82 | F94: 272.93 | G94: 270.62 | H94: 266.73 | I94: 279.13 | J94: 283.02 | K94: 285.33 | L94: 280.7 | M94: 274.5 | N94: 5897600 | O94: 2.22%
A95: 85 | B95: Finance | C95: IBULHSGFIN | D95: 818.15 | E95: 831.05 | F95: 796.10 | G95: 774.05 | H95: 739.10 | I95: 853.10 | J95: 888.05 | K95: 910.10 | L95: 866 | M95: 809 | N95: 19208000 | O95: -9.16%
A96: 86 | B96: Banking | C96: ICICIBANK | D96: 354.25 | E96: 357.12 | F96: 350.23 | G96: 346.22 | H96: 339.33 | I96: 361.13 | J96: 368.02 | K96: 372.03 | L96: 364 | M96: 353.1 | N96: 81746500 | O96: 0.55%
A97: 87 | B97: Others | C97: ICICIPRULI | D97: 326.75 | E97: 325.18 | F97: 320.67 | G97: 314.58 | H97: 310.07 | I97: 331.27 | J97: 335.78 | K97: 341.87 | L97: 329.7 | M97: 319.1 | N97: 4297400 | O97: -3.05%
A98: 88 | B98: Banking | C98: IDBI | D98: 61.75 | E98: 61.68 | F98: 61.27 | G98: 60.78 | H98: 60.37 | I98: 62.17 | J98: 62.58 | K98: 63.07 | L98: 62.1 | M98: 61.2 | N98: 38510000 | O98: -2.06%
A99: 89 | B99: Telecom | C99: IDEA | D99: 38.25 | E99: 38.17 | F99: 37.43 | G99: 36.62 | H99: 35.88 | I99: 38.98 | J99: 39.72 | K99: 40.53 | L99: 38.9 | M99: 37.35 | N99: 141160000 | O99: -1.14%
A100: 90 | B100: Finance | C100: IDFC | D100: 43.05 | E100: 43.47 | F100: 42.38 | G100: 41.72 | H100: 40.63 | I100: 44.13 | J100: 45.22 | K100: 45.88 | L100: 44.55 | M100: 42.8 | N100: 115948800 | O100: 2.94%
A101: 91 | B101: Banking | C101: IDFCBANK | D101: 43.20 | E101: 43.50 | F101: 42.50 | G101: 41.80 | H101: 40.80 | I101: 44.20 | J101: 45.20 | K101: 45.90 | L101: 44.5 | M101: 42.8 | N101: 152821000 | O101: 1.30%
A102: 92 | B102: Finance | C102: IFCI | D102: 14.50 | E102: 14.48 | F102: 14.22 | G102: 13.93 | H102: 13.67 | I102: 14.77 | J102: 15.03 | K102: 15.32 | L102: 14.75 | M102: 14.2 | N102: 50655000 | O102: -1.99%
A103: 93 | B103: Oil_Gas | C103: IGL | D103: 260.75 | E103: 263.12 | F103: 257.43 | G103: 254.12 | H103: 248.43 | I103: 266.43 | J103: 272.12 | K103: 275.43 | L103: 268.8 | M103: 259.8 | N103: 5923500 | O103: -1.28%
A104: 94 | B104: Cement | C104: INDIACEM | D104: 96.35 | E104: 96.80 | F104: 94.10 | G104: 91.85 | H104: 89.15 | I104: 99.05 | J104: 101.75 | K104: 104.00 | L104: 99.5 | M104: 94.55 | N104: 16720500 | O104: -3.04%
A105: 95 | B105: Banking | C105: INDIANB | D105: 239.45 | E105: 242.63 | F105: 235.22 | G105: 230.98 | H105: 223.57 | I105: 246.87 | J105: 254.28 | K105: 258.52 | L105: 250.05 | M105: 238.4 | N105: 4710000 | O105: 1.73%
A106: 96 | B106: Others | C106: INDIGO | D106: 1156.30 | E106: 1156.12 | F106: 1142.78 | G106: 1129.27 | H106: 1115.93 | I106: 1169.63 | J106: 1182.97 | K106: 1196.48 | L106: 1169.45 | M106: 1142.6 | N106: 3132000 | O106: 2.94%
A107: 97 | B107: Banking | C107: INDUSINDBK | D107: 1580.95 | E107: 1596.52 | F107: 1561.08 | G107: 1541.22 | H107: 1505.78 | I107: 1616.38 | J107: 1651.82 | K107: 1671.68 | L107: 1631.95 | M107: 1576.65 | N107: 6181800 | O107: 7.02%
A108: 98 | B108: Technology | C108: INFIBEAM | D108: 49.30 | E108: 49.72 | F108: 47.83 | G108: 46.37 | H108: 44.48 | I108: 51.18 | J108: 53.07 | K108: 54.53 | L108: 51.6 | M108: 48.25 | N108: 14960000 | O108: 4.27%
A109: 99 | B109: Telecom | C109: INFRATEL | D109: 260.00 | E109: 258.52 | F109: 249.08 | G109: 238.17 | H109: 228.73 | I109: 269.43 | J109: 278.87 | K109: 289.78 | L109: 267.95 | M109: 247.6 | N109: 9932300 | O109: 6.13%
A110: 100 | B110: Technology | C110: INFY | D110: 646.70 | E110: 650.22 | F110: 641.08 | G110: 635.47 | H110: 626.33 | I110: 655.83 | J110: 664.97 | K110: 670.58 | L110: 659.35 | M110: 644.6 | N110: 48604800 | O110: 7.16%
A111: 101 | B111: Oil_Gas | C111: IOC | D111: 140.05 | E111: 140.60 | F111: 138.65 | G111: 137.25 | H111: 135.30 | I111: 142.00 | J111: 143.95 | K111: 145.35 | L111: 142.55 | M111: 139.2 | N111: 73780000 | O111: -10.94%
A112: 102 | B112: Infrastructure | C112: IRB | D112: 168.20 | E112: 166.73 | F112: 163.82 | G112: 159.43 | H112: 156.52 | I112: 171.12 | J112: 174.03 | K112: 178.42 | L112: 169.65 | M112: 162.35 | N112: 8203400 | O112: 0.54%
A113: 103 | B113: FMCG | C113: ITC | D113: 277.00 | E113: 279.53 | F113: 273.77 | G113: 270.53 | H113: 264.77 | I113: 282.77 | J113: 288.53 | K113: 291.77 | L113: 285.3 | M113: 276.3 | N113: 79207200 | O113: 2.85%
A114: 104 | B114: Others | C114: JETAIRWAYS | D114: 232.90 | E114: 234.88 | F114: 225.87 | G114: 218.83 | H114: 209.82 | I114: 241.92 | J114: 250.93 | K114: 257.97 | L114: 243.9 | M114: 227.85 | N114: 5718400 | O114: -3.26%
A115: 105 | B115: Metals | C115: JINDALSTEL | D115: 164.65 | E115: 167.20 | F115: 161.40 | G115: 158.15 | H115: 152.35 | I115: 170.45 | J115: 176.25 | K115: 179.50 | L115: 173 | M115: 163.95 | N115: 26115750 | O115: 2.16%
A116: 106 | B116: Others | C116: JISLJALEQS | D116: 69.00 | E116: 68.60 | F116: 67.50 | G116: 66.00 | H116: 64.90 | I116: 70.10 | J116: 71.20 | K116: 72.70 | L116: 69.7 | M116: 67.1 | N116: 35937000 | O116: -0.45%
A117: 107 | B117: Realty | C117: JPASSOCIAT | D117: 7.80 | E117: 7.82 | F117: 7.58 | G117: 7.37 | H117: 7.13 | I117: 8.03 | J117: 8.27 | K117: 8.48 | L117: 8.05 | M117: 7.6 | N117: 116332000 | O117: -1.50%
A118: 108 | B118: Metals | C118: JSWSTEEL | D118: 307.90 | E118: 308.93 | F118: 304.72 | G118: 301.53 | H118: 297.32 | I118: 312.12 | J118: 316.33 | K118: 319.52 | L118: 313.15 | M118: 305.75 | N118: 48348000 | O118: -1.23%
A119: 109 | B119: Others | C119: JUBLFOOD | D119: 1317.45 | E119: 1333.82 | F119: 1291.63 | G119: 1265.82 | H119: 1223.63 | I119: 1359.63 | J119: 1401.82 | K119: 1427.63 | L119: 1376 | M119: 1308 | N119: 2117500 | O119: -1.79%
A120: 110 | B120: Others | C120: JUSTDIAL | D120: 483.15 | E120: 485.58 | F120: 474.02 | G120: 464.88 | H120: 453.32 | I120: 494.72 | J120: 506.28 | K120: 515.42 | L120: 497.15 | M120: 476.45 | N120: 2846200 | O120: 11.03%
A121: 111 | B121: Others | C121: KAJARIACER | D121: 488.65 | E121: 490.38 | F121: 483.77 | G121: 478.88 | H121: 472.27 | I121: 495.27 | J121: 501.88 | K121: 506.77 | L121: 497 | M121: 485.5 | N121: 2717500 | O121: 20.20%
A122: 112 | B122: Banking | C122: KOTAKBANK | D122: 1231.85 | E122: 1235.22 | F122: 1224.43 | G122: 1217.02 | H122: 1206.23 | I122: 1242.63 | J122: 1253.42 | K122: 1260.83 | L122: 1246 | M122: 1227.8 | N122: 12502400 | O122: -0.63%
A123: 113 | B123: Technology | C123: KPIT | D123: 223.15 | E123: 224.40 | F123: 220.30 | G123: 217.45 | H123: 213.35 | I123: 227.25 | J123: 231.35 | K123: 234.20 | L123: 228.5 | M123: 221.55 | N123: 6189750 | O123: -5.88%
A124: 114 | B124: Others | C124: KSCL | D124: 581.20 | E124: 585.15 | F124: 571.85 | G124: 562.50 | H124: 549.20 | I124: 594.50 | J124: 607.80 | K124: 617.15 | L124: 598.45 | M124: 575.8 | N124: 1269000 | O124: -7.74%
A125: 115 | B125: Banking | C125: KTKBANK | D125: 108.20 | E125: 109.23 | F125: 106.52 | G125: 104.83 | H125: 102.12 | I125: 110.92 | J125: 113.63 | K125: 115.32 | L125: 111.95 | M125: 107.55 | N125: 16563000 | O125: 0.41%
A126: 116 | B126: Finance | C126: L&TFH | D126: 150.80 | E126: 153.35 | F126: 147.50 | G126: 144.20 | H126: 138.35 | I126: 156.65 | J126: 162.50 | K126: 165.80 | L126: 159.2 | M126: 150.05 | N126: 20205000 | O126: 0.92%
A127: 117 | B127: Finance | C127: LICHSGFIN | D127: 472.05 | E127: 479.62 | F127: 462.88 | G127: 453.72 | H127: 436.98 | I127: 488.78 | J127: 505.52 | K127: 514.68 | L127: 496.35 | M127: 470.45 | N127: 8705400 | O127: 0.37%
A128: 118 | B128: Capital_Goods | C128: LT | D128: 1422.80 | E128: 1434.70 | F128: 1405.60 | G128: 1388.40 | H128: 1359.30 | I128: 1451.90 | J128: 1481.00 | K128: 1498.20 | L128: 1463.8 | M128: 1417.5 | N128: 10586625 | O128: 2.41%
A129: 119 | B129: Pharma | C129: LUPIN | D129: 860.50 | E129: 862.15 | F129: 853.30 | G129: 846.10 | H129: 837.25 | I129: 869.35 | J129: 878.20 | K129: 885.40 | L129: 871 | M129: 854.95 | N129: 9153900 | O129: 0.97%
A130: 120 | B130: Automobile | C130: M&M | D130: 782.05 | E130: 791.95 | F130: 770.10 | G130: 758.15 | H130: 736.30 | I130: 803.90 | J130: 825.75 | K130: 837.70 | L130: 813.8 | M130: 780 | N130: 13401000 | O130: 2.97%
A131: 121 | B131: Finance | C131: M&MFIN | D131: 464.05 | E131: 468.75 | F131: 456.30 | G131: 448.55 | H131: 436.10 | I131: 476.50 | J131: 488.95 | K131: 496.70 | L131: 481.2 | M131: 461 | N131: 11491250 | O131: 0.05%
A132: 122 | B132: Others | C132: MANAPPURAM | D132: 88.75 | E132: 89.83 | F132: 87.07 | G132: 85.38 | H132: 82.62 | I132: 91.52 | J132: 94.28 | K132: 95.97 | L132: 92.6 | M132: 88.15 | N132: 13284000 | O132: 6.03%
A133: 123 | B133: FMCG | C133: MARICO | D133: 378.70 | E133: 380.03 | F133: 374.07 | G133: 369.43 | H133: 363.47 | I133: 384.67 | J133: 390.63 | K133: 395.27 | L133: 386 | M133: 375.4 | N133: 8632000 | O133: -1.78%
A134: 124 | B134: Automobile | C134: MARUTI | D134: 7558.25 | E134: 7649.08 | F134: 7448.27 | G134: 7338.28 | H134: 7137.47 | I134: 7759.07 | J134: 7959.88 | K134: 8069.87 | L134: 7849.9 | M134: 7539.1 | N134: 2261700 | O134: 5.12%
A135: 125 | B135: FMCG | C135: MCDOWELL-N | D135: 623.45 | E135: 628.90 | F135: 614.00 | G135: 604.55 | H135: 589.65 | I135: 638.35 | J135: 653.25 | K135: 662.70 | L135: 643.8 | M135: 619.45 | N135: 11063750 | O135: 0.44%
A136: 126 | B136: Others | C136: MCX | D136: 722.10 | E136: 722.80 | F136: 709.40 | G136: 696.70 | H136: 683.30 | I136: 735.50 | J136: 748.90 | K136: 761.60 | L136: 736.2 | M136: 710.1 | N136: 2513000 | O136: 1.36%
A137: 127 | B137: Finance | C137: MFSL | D137: 439.05 | E137: 441.62 | F137: 433.88 | G137: 428.72 | H137: 420.98 | I137: 446.78 | J137: 454.52 | K137: 459.68 | L137: 449.35 | M137: 436.45 | N137: 2361600 | O137: -3.10%
A138: 128 | B138: Others | C138: MGL | D138: 881.95 | E138: 887.25 | F138: 874.50 | G138: 867.05 | H138: 854.30 | I138: 894.70 | J138: 907.45 | K138: 914.90 | L138: 900 | M138: 879.8 | N138: 1018800 | O138: 2.85%
A139: 129 | B139: Technology | C139: MINDTREE | D139: 846.65 | E139: 851.90 | F139: 837.05 | G139: 827.45 | H139: 812.60 | I139: 861.50 | J139: 876.35 | K139: 885.95 | L139: 866.75 | M139: 842.3 | N139: 2599200 | O139: -1.55%
A140: 130 | B140: Automobile | C140: MOTHERSUMI | D140: 169.00 | E140: 170.83 | F140: 166.17 | G140: 163.33 | H140: 158.67 | I140: 173.67 | J140: 178.33 | K140: 181.17 | L140: 175.5 | M140: 168 | N140: 25807200 | O140: 1.64%
A141: 131 | B141: Automobile | C141: MRF | D141: 66995.50 | E141: 67780.70 | F141: 65894.80 | G141: 64794.10 | H141: 62908.20 | I141: 68881.40 | J141: 70767.30 | K141: 71868.00 | L141: 69666.6 | M141: 66680 | N141: 30220 | O141: -4.91%
A142: 132 | B142: Others | C142: MRPL | D142: 74.80 | E142: 75.78 | F142: 73.37 | G142: 71.93 | H142: 69.52 | I142: 77.22 | J142: 79.63 | K142: 81.07 | L142: 78.2 | M142: 74.35 | N142: 6315500 | O142: 13.50%
A143: 133 | B143: Finance | C143: MUTHOOTFIN | D143: 488.60 | E143: 493.60 | F143: 481.50 | G143: 474.40 | H143: 462.30 | I143: 500.70 | J143: 512.80 | K143: 519.90 | L143: 505.7 | M143: 486.5 | N143: 3393000 | O143: -2.33%
A144: 134 | B144: Others | C144: NATIONALUM | D144: 62.40 | E144: 62.58 | F144: 61.82 | G144: 61.23 | H144: 60.47 | I144: 63.17 | J144: 63.93 | K144: 64.52 | L144: 63.35 | M144: 62 | N144: 32880000 | O144: 0.61%
A145: 135 | B145: Others | C145: NBCC | D145: 56.05 | E145: 56.92 | F145: 54.93 | G145: 53.82 | H145: 51.83 | I145: 58.03 | J145: 60.02 | K145: 61.13 | L145: 58.9 | M145: 55.8 | N145: 35794000 | O145: -2.64%
A146: 136 | B146: Infrastructure | C146: NCC | D146: 85.30 | E146: 86.50 | F146: 83.70 | G146: 82.10 | H146: 79.30 | I146: 88.10 | J146: 90.90 | K146: 92.50 | L146: 89.3 | M146: 84.9 | N146: 52024000 | O146: 3.44%
A147: 137 | B147: Others | C147: NESTLEIND | D147: 11009.95 | E147: 11096.43 | F147: 10862.07 | G147: 10714.18 | H147: 10479.82 | I147: 11244.32 | J147: 11478.68 | K147: 11626.57 | L147: 11330.8 | M147: 10948.55 | N147: 294000 | O147: 6.37%
A148: 138 | B148: Power | C148: NHPC | D148: 25.95 | E148: 26.02 | F148: 25.83 | G148: 25.72 | H148: 25.53 | I148: 26.13 | J148: 26.32 | K148: 26.43 | L148: 26.2 | M148: 25.9 | N148: 23355000 | O148: 4.47%
A149: 139 | B149: Technology | C149: NIITTECH | D149: 1110.65 | E149: 1116.32 | F149: 1098.98 | G149: 1087.32 | H149: 1069.98 | I149: 1127.98 | J149: 1145.32 | K149: 1156.98 | L149: 1133.65 | M149: 1104.65 | N149: 1851750 | O149: -2.30%
A150: 140 | B150: Metals | C150: NMDC | D150: 94.60 | E150: 95.53 | F150: 93.22 | G150: 91.83 | H150: 89.52 | I150: 96.92 | J150: 99.23 | K150: 100.62 | L150: 97.85 | M150: 94.15 | N150: 22242000 | O150: 3.87%
A151: 141 | B151: Power | C151: NTPC | D151: 150.20 | E151: 149.93 | F151: 148.92 | G151: 147.63 | H151: 146.62 | I151: 151.22 | J151: 152.23 | K151: 153.52 | L151: 150.95 | M151: 148.65 | N151: 52176000 | O151: -7.03%
A152: 142 | B152: Technology | C152: OFSS | D152: 3650.25 | E152: 3666.65 | F152: 3601.60 | G152: 3552.95 | H152: 3487.90 | I152: 3715.30 | J152: 3780.35 | K152: 3829.00 | L152: 3731.7 | M152: 3618 | N152: 182100 | O152: 0.50%
A153: 143 | B153: Oil_Gas | C153: OIL | D153: 177.15 | E153: 178.12 | F153: 175.23 | G153: 173.32 | H153: 170.43 | I153: 180.03 | J153: 182.92 | K153: 184.83 | L153: 181 | M153: 176.2 | N153: 9211290 | O153: -9.21%
A154: 144 | B154: Oil_Gas | C154: ONGC | D154: 148.50 | E154: 148.38 | F154: 147.72 | G154: 146.93 | H154: 146.27 | I154: 149.17 | J154: 149.83 | K154: 150.62 | L154: 149.05 | M154: 147.6 | N154: 63731250 | O154: -4.30%
A155: 145 | B155: Banking | C155: ORIENTBANK | D155: 93.55 | E155: 94.12 | F155: 92.33 | G155: 91.12 | H155: 89.33 | I155: 95.33 | J155: 97.12 | K155: 98.33 | L155: 95.9 | M155: 92.9 | N155: 14251000 | O155: 3.12%
A156: 146 | B156: Textile | C156: PAGEIND | D156: 24269.55 | E156: 24546.17 | F156: 23842.33 | G156: 23415.12 | H156: 22711.28 | I156: 24973.38 | J156: 25677.22 | K156: 26104.43 | L156: 25250 | M156: 24118.95 | N156: 146800 | O156: 4.26%
A157: 147 | B157: Others | C157: PCJEWELLER | D157: 82.70 | E157: 83.48 | F157: 81.32 | G157: 79.93 | H157: 77.77 | I157: 84.87 | J157: 87.03 | K157: 88.42 | L157: 85.65 | M157: 82.1 | N157: 9392500 | O157: 9.53%
A158: 148 | B158: Pharma | C158: PEL | D158: 2299.15 | E158: 2315.50 | F158: 2259.30 | G158: 2219.45 | H158: 2163.25 | I158: 2355.35 | J158: 2411.55 | K158: 2451.40 | L158: 2371.7 | M158: 2275.65 | N158: 2883798 | O158: -0.82%
A159: 149 | B159: Oil_Gas | C159: PETRONET | D159: 223.25 | E159: 223.13 | F159: 221.27 | G159: 219.28 | H159: 217.42 | I159: 225.12 | J159: 226.98 | K159: 228.97 | L159: 225 | M159: 221.15 | N159: 13341000 | O159: 2.39%
A160: 150 | B160: Finance | C160: PFC | D160: 98.40 | E160: 98.53 | F160: 97.12 | G160: 95.83 | H160: 94.42 | I160: 99.82 | J160: 101.23 | K160: 102.52 | L160: 99.95 | M160: 97.25 | N160: 43768600 | O160: 0.78%
A161: 151 | B161: FMCG | C161: PIDILITIND | D161: 1144.95 | E161: 1158.58 | F161: 1126.92 | G161: 1108.88 | H161: 1077.22 | I161: 1176.62 | J161: 1208.28 | K161: 1226.32 | L161: 1190.25 | M161: 1140.55 | N161: 3073500 | O161: -1.81%
A162: 152 | B162: Banking | C162: PNB | D162: 76.65 | E162: 77.13 | F162: 75.27 | G162: 73.88 | H162: 72.02 | I162: 78.52 | J162: 80.38 | K162: 81.77 | L162: 79 | M162: 75.75 | N162: 116521500 | O162: 1.68%
A163: 153 | B163: Power | C163: POWERGRID | D163: 197.05 | E163: 197.28 | F163: 195.67 | G163: 194.28 | H163: 192.67 | I163: 198.67 | J163: 200.28 | K163: 201.67 | L163: 198.9 | M163: 195.9 | N163: 43668000 | O163: 1.88%
A164: 154 | B164: Power | C164: PTC | D164: 88.15 | E164: 88.68 | F164: 86.27 | G164: 84.38 | H164: 81.97 | I164: 90.57 | J164: 92.98 | K164: 94.87 | L164: 91.1 | M164: 86.8 | N164: 6600000 | O164: -5.06%
A165: 155 | B165: Others | C165: PVR | D165: 1564.90 | E165: 1566.43 | F165: 1534.47 | G165: 1504.03 | H165: 1472.07 | I165: 1596.87 | J165: 1628.83 | K165: 1659.27 | L165: 1598.4 | M165: 1536 | N165: 1416800 | O165: 0.37%
A166: 156 | B166: Cement | C166: RAMCOCEM | D166: 631.15 | E166: 639.72 | F166: 619.43 | G166: 607.72 | H166: 587.43 | I166: 651.43 | J166: 671.72 | K166: 683.43 | L166: 660 | M166: 628 | N166: 714400 | O166: 7.46%
A167: 157 | B167: Others | C167: RAYMOND | D167: 860.70 | E167: 866.90 | F167: 847.30 | G167: 833.90 | H167: 814.30 | I167: 880.30 | J167: 899.90 | K167: 913.30 | L167: 886.5 | M167: 853.5 | N167: 4061600 | O167: 0.24%
A168: 158 | B168: Banking | C168: RBLBANK | D168: 565.25 | E168: 570.93 | F168: 557.87 | G168: 550.48 | H168: 537.42 | I168: 578.32 | J168: 591.38 | K168: 598.77 | L168: 584 | M168: 563.55 | N168: 7386000 | O168: -3.44%
A169: 159 | B169: Telecom | C169: RCOM | D169: 14.25 | E169: 14.30 | F169: 13.95 | G169: 13.65 | H169: 13.30 | I169: 14.60 | J169: 14.95 | K169: 15.25 | L169: 14.65 | M169: 14 | N169: 89542000 | O169: -4.44%
A170: 160 | B170: Power | C170: RECLTD | D170: 109.60 | E170: 109.62 | F170: 107.93 | G170: 106.27 | H170: 104.58 | I170: 111.28 | J170: 112.97 | K170: 114.63 | L170: 111.3 | M170: 107.95 | N170: 48420000 | O170: -1.27%
A171: 161 | B171: Finance | C171: RELCAPITAL | D171: 220.55 | E171: 220.02 | F171: 217.18 | G171: 213.82 | H171: 210.98 | I171: 223.38 | J171: 226.22 | K171: 229.58 | L171: 222.85 | M171: 216.65 | N171: 11944500 | O171: -2.81%
A172: 162 | B172: Oil_Gas | C172: RELIANCE | D172: 1100.45 | E172: 1110.70 | F172: 1086.80 | G172: 1073.15 | H172: 1049.25 | I172: 1124.35 | J172: 1148.25 | K172: 1161.90 | L172: 1134.6 | M172: 1097.05 | N172: 48235500 | O172: 2.32%
A173: 163 | B173: Power | C173: RELINFRA | D173: 307.60 | E173: 305.22 | F173: 300.78 | G173: 293.97 | H173: 289.53 | I173: 312.03 | J173: 316.47 | K173: 323.28 | L173: 309.65 | M173: 298.4 | N173: 9943700 | O173: -5.17%
A174: 164 | B174: Others | C174: REPCOHOME | D174: 387.75 | E174: 392.20 | F174: 380.25 | G174: 372.75 | H174: 360.80 | I174: 399.70 | J174: 411.65 | K174: 419.15 | L174: 404.15 | M174: 384.7 | N174: 1776200 | O174: -8.54%
A175: 165 | B175: Power | C175: RPOWER | D175: 28.10 | E175: 28.08 | F175: 27.77 | G175: 27.43 | H175: 27.12 | I175: 28.42 | J175: 28.73 | K175: 29.07 | L175: 28.4 | M175: 27.75 | N175: 48328000 | O175: -0.76%
A176: 166 | B176: Metals | C176: SAIL | D176: 52.90 | E176: 53.33 | F176: 52.07 | G176: 51.23 | H176: 49.97 | I176: 54.17 | J176: 55.43 | K176: 56.27 | L176: 54.6 | M176: 52.5 | N176: 93468000 | O176: 2.58%
A177: 167 | B177: Banking | C177: SBIN | D177: 292.55 | E177: 293.52 | F177: 290.33 | G177: 288.12 | H177: 284.93 | I177: 295.73 | J177: 298.92 | K177: 301.13 | L177: 296.7 | M177: 291.3 | N177: 82836000 | O177: 1.16%
A178: 168 | B178: Cement | C178: SHREECEM | D178: 17165.80 | E178: 17269.27 | F178: 16998.53 | G178: 16831.27 | H178: 16560.53 | I178: 17436.53 | J178: 17707.27 | K178: 17874.53 | L178: 17540 | M178: 17102 | N178: 106950 | O178: -1.88%
A179: 169 | B179: Capital_Goods | C179: SIEMENS | D179: 992.60 | E179: 996.88 | F179: 978.02 | G179: 963.43 | H179: 944.57 | I179: 1011.47 | J179: 1030.33 | K179: 1044.92 | L179: 1015.75 | M179: 982.3 | N179: 2094800 | O179: 1.56%
A180: 170 | B180: Banking | C180: SOUTHBANK | D180: 15.45 | E180: 15.57 | F180: 15.23 | G180: 15.02 | H180: 14.68 | I180: 15.78 | J180: 16.12 | K180: 16.33 | L180: 15.9 | M180: 15.35 | N180: 145853541 | O180: 3.67%
A181: 171 | B181: Others | C181: SREINFRA | D181: 34.75 | E181: 35.35 | F181: 33.70 | G181: 32.65 | H181: 31.00 | I181: 36.40 | J181: 38.05 | K181: 39.10 | L181: 37 | M181: 34.3 | N181: 15413000 | O181: 5.99%
A182: 172 | B182: Textile | C182: SRF | D182: 2155.95 | E182: 2191.67 | F182: 2112.23 | G182: 2068.52 | H182: 1989.08 | I182: 2235.38 | J182: 2314.82 | K182: 2358.53 | L182: 2271.1 | M182: 2147.95 | N182: 631500 | O182: 0.96%
A183: 173 | B183: Finance | C183: SRTRANSFIN | D183: 1203.85 | E183: 1224.25 | F183: 1174.75 | G183: 1145.65 | H183: 1096.15 | I183: 1253.35 | J183: 1302.85 | K183: 1331.95 | L183: 1273.75 | M183: 1195.15 | N183: 3874200 | O183: 3.81%
A184: 174 | B184: Pharma | C184: STAR | D184: 461.55 | E184: 465.07 | F184: 455.53 | G184: 449.52 | H184: 439.98 | I184: 471.08 | J184: 480.62 | K184: 486.63 | L184: 474.6 | M184: 459.05 | N184: 4005400 | O184: -2.22%
A185: 175 | B185: Pharma | C185: SUNPHARMA | D185: 425.25 | E185: 427.28 | F185: 421.12 | G185: 416.98 | H185: 410.82 | I185: 431.42 | J185: 437.58 | K185: 441.72 | L185: 433.45 | M185: 423.15 | N185: 59280100 | O185: -0.01%
A186: 176 | B186: Media | C186: SUNTV | D186: 591.25 | E186: 594.62 | F186: 582.33 | G186: 573.42 | H186: 561.13 | I186: 603.53 | J186: 615.82 | K186: 624.73 | L186: 606.9 | M186: 585.7 | N186: 6796000 | O186: -0.12%
A187: 177 | B187: Power | C187: SUZLON | D187: 5.55 | E187: 5.55 | F187: 5.45 | G187: 5.35 | H187: 5.25 | I187: 5.65 | J187: 5.75 | K187: 5.85 | L187: 5.65 | M187: 5.45 | N187: 306749000 | O187: -0.27%
A188: 178 | B188: Banking | C188: SYNDIBANK | D188: 37.65 | E188: 37.52 | F188: 36.93 | G188: 36.22 | H188: 35.63 | I188: 38.23 | J188: 38.82 | K188: 39.53 | L188: 38.1 | M188: 36.8 | N188: 25869000 | O188: -6.21%
A189: 179 | B189: Fertilisers | C189: TATACHEM | D189: 704.75 | E189: 711.53 | F189: 695.37 | G189: 685.98 | H189: 669.82 | I189: 720.92 | J189: 737.08 | K189: 746.47 | L189: 727.7 | M189: 702.15 | N189: 2788500 | O189: 0.35%
A190: 180 | B190: Telecom | C190: TATACOMM | D190: 521.40 | E190: 531.57 | F190: 507.13 | G190: 492.87 | H190: 468.43 | I190: 545.83 | J190: 570.27 | K190: 584.53 | L190: 556 | M190: 517.3 | N190: 2591800 | O190: 7.69%
A191: 181 | B191: Technology | C191: TATAELXSI | D191: 999.60 | E191: 1003.88 | F191: 988.77 | G191: 977.93 | H191: 962.82 | I191: 1014.72 | J191: 1029.83 | K191: 1040.67 | L191: 1019 | M191: 993.05 | N191: 1537200 | O191: -1.00%
A192: 182 | B192: FMCG | C192: TATAGLOBAL | D192: 215.20 | E192: 215.35 | F192: 211.45 | G192: 207.70 | H192: 203.80 | I192: 219.10 | J192: 223.00 | K192: 226.75 | L192: 219.25 | M192: 211.6 | N192: 12930750 | O192: -3.59%
A193: 183 | B193: Automobile | C193: TATAMOTORS | D193: 176.15 | E193: 177.18 | F193: 173.97 | G193: 171.78 | H193: 168.57 | I193: 179.37 | J193: 182.58 | K193: 184.77 | L193: 180.4 | M193: 175 | N193: 60201000 | O193: -2.88%
A194: 184 | B194: Automobile | C194: TATAMTRDVR | D194: 96.25 | E194: 96.93 | F194: 95.07 | G194: 93.88 | H194: 92.02 | I194: 98.12 | J194: 99.98 | K194: 101.17 | L194: 98.8 | M194: 95.75 | N194: 27941400 | O194: 2.19%
A195: 185 | B195: Power | C195: TATAPOWER | D195: 76.70 | E195: 77.93 | F195: 75.07 | G195: 73.43 | H195: 70.57 | I195: 79.57 | J195: 82.43 | K195: 84.07 | L195: 80.8 | M195: 76.3 | N195: 50067000 | O195: 3.79%
A196: 186 | B196: Metals | C196: TATASTEEL | D196: 521.00 | E196: 524.47 | F196: 515.53 | G196: 510.07 | H196: 501.13 | I196: 529.93 | J196: 538.87 | K196: 544.33 | L196: 533.4 | M196: 519 | N196: 34598149 | O196: 1.88%
A197: 187 | B197: Technology | C197: TCS | D197: 1902.05 | E197: 1918.15 | F197: 1876.50 | G197: 1850.95 | H197: 1809.30 | I197: 1943.70 | J197: 1985.35 | K197: 2010.90 | L197: 1959.8 | M197: 1892.6 | N197: 12523000 | O197: 7.76%
A198: 188 | B198: Technology | C198: TECHM | D198: 696.20 | E198: 701.20 | F198: 689.00 | G198: 681.80 | H198: 669.60 | I198: 708.40 | J198: 720.60 | K198: 727.80 | L198: 713.4 | M198: 694 | N198: 13232400 | O198: 2.10%
A199: 189 | B199: FMCG | C199: TITAN | D199: 902.35 | E199: 910.77 | F199: 891.98 | G199: 881.62 | H199: 862.83 | I199: 921.13 | J199: 939.92 | K199: 950.28 | L199: 929.55 | M199: 900.4 | N199: 14406750 | O199: 2.31%
A200: 190 | B200: Pharma | C200: TORNTPHARM | D200: 1781.75 | E200: 1797.65 | F200: 1759.40 | G200: 1737.05 | H200: 1698.80 | I200: 1820.00 | J200: 1858.25 | K200: 1880.60 | L200: 1835.9 | M200: 1775.3 | N200: 390000 | O200: 2.63%
A201: 191 | B201: Power | C201: TORNTPOWER | D201: 256.60 | E201: 260.03 | F201: 252.22 | G201: 247.83 | H201: 240.02 | I201: 264.42 | J201: 272.23 | K201: 276.62 | L201: 267.85 | M201: 255.65 | N201: 2178000 | O201: 9.34%
A202: 192 | B202: Media | C202: TV18BRDCST | D202: 36.55 | E202: 36.65 | F202: 36.15 | G202: 35.75 | H202: 35.25 | I202: 37.05 | J202: 37.55 | K202: 37.95 | L202: 37.15 | M202: 36.25 | N202: 55503000 | O202: -2.41%
A203: 193 | B203: Automobile | C203: TVSMOTOR | D203: 573.20 | E203: 577.17 | F203: 566.93 | G203: 560.67 | H203: 550.43 | I203: 583.43 | J203: 593.67 | K203: 599.93 | L203: 587.4 | M203: 570.9 | N203: 6396000 | O203: -18.23%
A204: 194 | B204: FMCG | C204: UBL | D204: 1350.05 | E204: 1358.03 | F204: 1332.07 | G204: 1314.08 | H204: 1288.12 | I204: 1376.02 | J204: 1401.98 | K204: 1419.97 | L204: 1384 | M204: 1340.05 | N204: 2454200 | O204: 2.91%
A205: 195 | B205: Finance | C205: UJJIVAN | D205: 275.20 | E205: 277.23 | F205: 268.72 | G205: 262.23 | H205: 253.72 | I205: 283.72 | J205: 292.23 | K205: 298.72 | L205: 285.75 | M205: 270.75 | N205: 5140800 | O205: 18.13%
A206: 196 | B206: Cement | C206: ULTRACEMCO | D206: 3986.30 | E206: 4014.02 | F206: 3937.58 | G206: 3888.87 | H206: 3812.43 | I206: 4062.73 | J206: 4139.17 | K206: 4187.88 | L206: 4090.45 | M206: 3965.3 | N206: 1875400 | O206: 0.67%
... 24 more rows

Sheet Cash Intra
M5: Back to Main Page
A6: FOR INTRA DAY TRADING | K6: =Main!B10 -> 2018-12-24
A8: Sr.no | B8: Scrip | C8: CLOSE RATE | D8: Pivot Point | E8: Supports | H8: Resistances
C9: Point | E9: S1 | F9: S2 | G9: S3 | H9: R1 | I9: R2 | J9: R3 | K9: HIGH | L9: LOW | M9: Total Trade Quanity in Lakhs
A10: 1 | B10: Nifty 50 | C10: 10754 | D10: 10818.77 | E10: 10673.88 | F10: 10593.77 | G10: 10448.88 | H10: 10898.88 | I10: 11043.77 | J10: 11123.88 | K10: 10963.65 | L10: 10738.65
A11: 2 | B11: Nifty Bank | C11: 26869.65 | D11: 27020.62 | E11: 26672.13 | F11: 26474.62 | G11: 26126.13 | H11: 27218.13 | I11: 27566.62 | J11: 27764.13 | K11: 27369.1 | L11: 26823.1
A12: 3 | B12: Nifty CPSE | C12: 2069.05 | D12: 2070.92 | E12: 2056.08 | F12: 2043.12 | G12: 2028.28 | H12: 2083.88 | I12: 2098.72 | J12: 2111.68 | K12: 2085.75 | L12: 2057.95
A13: 4 | B13: Nifty Infra | C13: 3131.5 | D13: 3151.98 | E13: 3105.02 | F13: 3078.53 | G13: 3031.57 | H13: 3178.47 | I13: 3225.43 | J13: 3251.92 | K13: 3198.95 | L13: 3125.5
A14: 5 | B14: Nifty IT | C14: 14207.85 | D14: 14295.10 | E14: 14084.70 | F14: 13961.55 | G14: 13751.15 | H14: 14418.25 | I14: 14628.65 | J14: 14751.80 | K14: 14505.5 | L14: 14171.95
A15: 6 | B15: Nifty PSE | C15: 3371.65 | D15: 3373.88 | E15: 3354.27 | F15: 3336.88 | G15: 3317.27 | H15: 3391.27 | I15: 3410.88 | J15: 3428.27 | K15: 3393.5 | L15: 3356.5
A16: 7 | B16: Nifty Midcap 50 | C16: 4844.7 | D16: 4887.63 | E16: 4794.42 | F16: 4744.13 | G16: 4650.92 | H16: 4937.92 | I16: 5031.13 | J16: 5081.42 | K16: 4980.85 | L16: 4837.35
A17: 8 | B17: ABB | C17: 1302.7 | D17: 1307.57 | E17: 1290.13 | F17: 1277.57 | G17: 1260.13 | H17: 1320.13 | I17: 1337.57 | J17: 1350.13 | K17: 1325 | L17: 1295 | M17: 1.93848
A18: 9 | B18: ACC | C18: 1490.05 | D18: 1503.35 | E18: 1467.70 | F18: 1445.35 | G18: 1409.70 | H18: 1525.70 | I18: 1561.35 | J18: 1583.70 | K18: 1539 | L18: 1481 | M18: 8.15286
A19: 10 | B19: AIAENG | C19: 1612.05 | D19: 1621.40 | E19: 1597.85 | F19: 1583.65 | G19: 1560.10 | H19: 1635.60 | I19: 1659.15 | J19: 1673.35 | K19: 1644.95 | L19: 1607.2 | M19: 0.361
A20: 11 | B20: AUBANK | C20: 636.85 | D20: 629.65 | E20: 614.40 | F20: 591.95 | G20: 576.70 | H20: 652.10 | I20: 667.35 | J20: 689.80 | K20: 644.9 | L20: 607.2 | M20: 22.00016
A21: 12 | B21: ADANIENT | C21: 159.35 | D21: 157.62 | E21: 153.73 | F21: 148.12 | G21: 144.23 | H21: 163.23 | I21: 167.12 | J21: 172.73 | K21: 161.5 | L21: 152 | M21: 53.35334
A22: 13 | B22: ADANIPORTS | C22: 361.1 | D22: 366.58 | E22: 353.67 | F22: 346.23 | G22: 333.32 | H22: 374.02 | I22: 386.93 | J22: 394.37 | K22: 379.5 | L22: 359.15 | M22: 109.09545
A23: 14 | B23: ADANIPOWER | C23: 50.35 | D23: 50.98 | E23: 49.37 | F23: 48.38 | G23: 46.77 | H23: 51.97 | I23: 53.58 | J23: 54.57 | K23: 52.6 | L23: 50 | M23: 108.31915
A24: 15 | B24: ABFRL | C24: 205 | D24: 204.60 | E24: 201.50 | F24: 198.00 | G24: 194.90 | H24: 208.10 | I24: 211.20 | J24: 214.70 | K24: 207.7 | L24: 201.1 | M24: 16.49809
A25: 16 | B25: AJANTPHARM | C25: 1132.45 | D25: 1140.85 | E25: 1116.60 | F25: 1100.75 | G25: 1076.50 | H25: 1156.70 | I25: 1180.95 | J25: 1196.80 | K25: 1165.1 | L25: 1125 | M25: 3.41783
A26: 17 | B26: ALKEM | C26: 1852.35 | D26: 1858.82 | E26: 1843.63 | F26: 1834.92 | G26: 1819.73 | H26: 1867.53 | I26: 1882.72 | J26: 1891.43 | K26: 1874 | L26: 1850.1 | M26: 0.31556
A27: 18 | B27: AMARAJABAT | C27: 743.25 | D27: 743.40 | E27: 736.85 | F27: 730.45 | G27: 723.90 | H27: 749.80 | I27: 756.35 | J27: 762.75 | K27: 749.95 | L27: 737 | M27: 5.38998
A28: 19 | B28: AMBUJACEM | C28: 220.7 | D28: 222.07 | E28: 217.93 | F28: 215.17 | G28: 211.03 | H28: 224.83 | I28: 228.97 | J28: 231.73 | K28: 226.2 | L28: 219.3 | M28: 16.77202
A29: 20 | B29: APOLLOHOSP | C29: 1252.4 | D29: 1259.97 | E29: 1236.48 | F29: 1220.57 | G29: 1197.08 | H29: 1275.88 | I29: 1299.37 | J29: 1315.28 | K29: 1283.45 | L29: 1244.05 | M29: 4.50623
A30: 21 | B30: APOLLOTYRE | C30: 233.4 | D30: 236.17 | E30: 229.33 | F30: 225.27 | G30: 218.43 | H30: 240.23 | I30: 247.07 | J30: 251.13 | K30: 243 | L30: 232.1 | M30: 39.65309
A31: 22 | B31: ARVIND | C31: 98.6 | D31: 99.07 | E31: 97.63 | F31: 96.67 | G31: 95.23 | H31: 100.03 | I31: 101.47 | J31: 102.43 | K31: 100.5 | L31: 98.1 | M31: 33.37926
A32: 23 | B32: ASHOKLEY | C32: 105.35 | D32: 105.30 | E32: 103.60 | F32: 101.85 | G32: 100.15 | H32: 107.05 | I32: 108.75 | J32: 110.50 | K32: 107 | L32: 103.55 | M32: 190.03345
A33: 24 | B33: ASIANPAINT | C33: 1388.2 | D33: 1401.47 | E33: 1369.03 | F33: 1349.87 | G33: 1317.43 | H33: 1420.63 | I33: 1453.07 | J33: 1472.23 | K33: 1433.9 | L33: 1382.3 | M33: 20.98064
A34: 25 | B34: AUROPHARMA | C34: 720.65 | D34: 722.43 | E34: 712.37 | F34: 704.08 | G34: 694.02 | H34: 730.72 | I34: 740.78 | J34: 749.07 | K34: 732.5 | L34: 714.15 | M34: 24.9534
A35: 26 | B35: DMART | C35: 1648.1 | D35: 1634.95 | E35: 1613.15 | F35: 1578.20 | G35: 1556.40 | H35: 1669.90 | I35: 1691.70 | J35: 1726.65 | K35: 1656.75 | L35: 1600 | M35: 29.68587
A36: 27 | B36: AXISBANK | C36: 620.85 | D36: 625.12 | E36: 612.38 | F36: 603.92 | G36: 591.18 | H36: 633.58 | I36: 646.32 | J36: 654.78 | K36: 637.85 | L36: 616.65 | M36: 107.15457
A37: 28 | B37: BAJAJ-AUTO | C37: 2808.45 | D37: 2838.15 | E37: 2771.30 | F37: 2734.15 | G37: 2667.30 | H37: 2875.30 | I37: 2942.15 | J37: 2979.30 | K37: 2905 | L37: 2801 | M37: 3.86367
A38: 29 | B38: BAJFINANCE | C38: 2591.25 | D38: 2582.62 | E38: 2541.33 | F38: 2491.42 | G38: 2450.13 | H38: 2632.53 | I38: 2673.82 | J38: 2723.73 | K38: 2623.9 | L38: 2532.7 | M38: 30.42464
A39: 30 | B39: BAJAJFINSV | C39: 6360.1 | D39: 6385.40 | E39: 6270.80 | F39: 6181.50 | G39: 6066.90 | H39: 6474.70 | I39: 6589.30 | J39: 6678.60 | K39: 6500 | L39: 6296.1 | M39: 3.09851
A40: 31 | B40: BALKRISIND | C40: 928.8 | D40: 936.62 | E40: 917.23 | F40: 905.67 | G40: 886.28 | H40: 948.18 | I40: 967.57 | J40: 979.13 | K40: 956 | L40: 925.05 | M40: 6.95768
A41: 32 | B41: BANKBARODA | C41: 115.1 | D41: 115.25 | E41: 114.10 | F41: 113.10 | G41: 111.95 | H41: 116.25 | I41: 117.40 | J41: 118.40 | K41: 116.4 | L41: 114.25 | M41: 133.16969
A42: 33 | B42: BANKINDIA | C42: 97.9 | D42: 97.52 | E42: 95.78 | F42: 93.67 | G42: 91.93 | H42: 99.63 | I42: 101.37 | J42: 103.48 | K42: 99.25 | L42: 95.4 | M42: 131.58696
A43: 34 | B43: BATAINDIA | C43: 1118.7 | D43: 1119.97 | E43: 1100.93 | F43: 1083.17 | G43: 1064.13 | H43: 1137.73 | I43: 1156.77 | J43: 1174.53 | K43: 1139 | L43: 1102.2 | M43: 18.0217
A44: 35 | B44: BERGEPAINT | C44: 330.65 | D44: 334.00 | E44: 326.25 | F44: 321.85 | G44: 314.10 | H44: 338.40 | I44: 346.15 | J44: 350.55 | K44: 341.75 | L44: 329.6 | M44: 4.44971
A45: 36 | B45: BEL | C45: 88.4 | D45: 90.40 | E45: 86.00 | F45: 83.60 | G45: 79.20 | H45: 92.80 | I45: 97.20 | J45: 99.60 | K45: 94.8 | L45: 88 | M45: 377.835
A46: 37 | B46: BHARATFIN | C46: 999 | D46: 1008.73 | E46: 985.47 | F46: 971.93 | G46: 948.67 | H46: 1022.27 | I46: 1045.53 | J46: 1059.07 | K46: 1032 | L46: 995.2 | M46: 5.26432
A47: 38 | B47: BHARATFORG | C47: 501.55 | D47: 509.18 | E47: 492.37 | F47: 483.18 | G47: 466.37 | H47: 518.37 | I47: 535.18 | J47: 544.37 | K47: 526 | L47: 500 | M47: 18.69274
A48: 39 | B48: BHEL | C48: 69.85 | D48: 70.38 | E48: 68.87 | F48: 67.88 | G48: 66.37 | H48: 71.37 | I48: 72.88 | J48: 73.87 | K48: 71.9 | L48: 69.4 | M48: 158.51379
A49: 40 | B49: BPCL | C49: 374.65 | D49: 372.95 | E49: 369.80 | F49: 364.95 | G49: 361.80 | H49: 377.80 | I49: 380.95 | J49: 385.80 | K49: 376.1 | L49: 368.1 | M49: 52.32821
A50: 41 | B50: BHARTIARTL | C50: 307.9 | D50: 312.75 | E50: 300.75 | F50: 293.60 | G50: 281.60 | H50: 319.90 | I50: 331.90 | J50: 339.05 | K50: 324.75 | L50: 305.6 | M50: 111.43116
A51: 42 | B51: INFRATEL | C51: 259.85 | D51: 257.43 | E51: 249.87 | F51: 239.88 | G51: 232.32 | H51: 267.42 | I51: 274.98 | J51: 284.97 | K51: 265 | L51: 247.45 | M51: 65.08796
A52: 43 | B52: BIOCON | C52: 620.9 | D52: 627.20 | E52: 611.40 | F52: 601.90 | G52: 586.10 | H52: 636.70 | I52: 652.50 | J52: 662.00 | K52: 643 | L52: 617.7 | M52: 14.50234
A53: 44 | B53: BOSCHLTD | C53: 19898.2 | D53: 19790.47 | E53: 19590.93 | F53: 19283.67 | G53: 19084.13 | H53: 20097.73 | I53: 20297.27 | J53: 20604.53 | K53: 19990 | L53: 19483.2 | M53: 0.31018
A54: 45 | B54: BRITANNIA | C54: 3119.8 | D54: 3142.30 | E54: 3084.60 | F54: 3049.40 | G54: 2991.70 | H54: 3177.50 | I54: 3235.20 | J54: 3270.40 | K54: 3200 | L54: 3107.1 | M54: 3.59201
A55: 46 | B55: CRISIL | C55: 1604.3 | D55: 1609.12 | E55: 1588.28 | F55: 1572.27 | G55: 1551.43 | H55: 1625.13 | I55: 1645.97 | J55: 1661.98 | K55: 1629.95 | L55: 1593.1 | M55: 0.0261
A56: 47 | B56: CADILAHC | C56: 341.9 | D56: 343.32 | E56: 338.78 | F56: 335.67 | G56: 331.13 | H56: 346.43 | I56: 350.97 | J56: 354.08 | K56: 347.85 | L56: 340.2 | M56: 7.19385
A57: 48 | B57: CANBK | C57: 265.5 | D57: 267.20 | E57: 262.15 | F57: 258.80 | G57: 253.75 | H57: 270.55 | I57: 275.60 | J57: 278.95 | K57: 272.25 | L57: 263.85 | M57: 45.09612
A58: 49 | B58: CASTROLIND | C58: 152.8 | D58: 153.92 | E58: 151.18 | F58: 149.57 | G58: 146.83 | H58: 155.53 | I58: 158.27 | J58: 159.88 | K58: 156.65 | L58: 152.3 | M58: 7.56301
A59: 50 | B59: CENTRALBK | C59: 35.65 | D59: 35.42 | E59: 34.93 | F59: 34.22 | G59: 33.73 | H59: 36.13 | I59: 36.62 | J59: 37.33 | K59: 35.9 | L59: 34.7 | M59: 14.45209
A60: 51 | B60: CENTURYTEX | C60: 913.15 | D60: 923.40 | E60: 893.95 | F60: 874.75 | G60: 845.30 | H60: 942.60 | I60: 972.05 | J60: 991.25 | K60: 952.85 | L60: 904.2 | M60: 6.30706
A61: 52 | B61: CHOLAFIN | C61: 1223.05 | D61: 1238.78 | E61: 1202.87 | F61: 1182.68 | G61: 1146.77 | H61: 1258.97 | I61: 1294.88 | J61: 1315.07 | K61: 1274.7 | L61: 1218.6 | M61: 2.7911
A62: 53 | B62: CIPLA | C62: 516.65 | D62: 518.30 | E62: 512.65 | F62: 508.65 | G62: 503.00 | H62: 522.30 | I62: 527.95 | J62: 531.95 | K62: 523.95 | L62: 514.3 | M62: 17.5871
A63: 54 | B63: COALINDIA | C63: 252.75 | D63: 251.08 | E63: 248.82 | F63: 244.88 | G63: 242.62 | H63: 255.02 | I63: 257.28 | J63: 261.22 | K63: 253.35 | L63: 247.15 | M63: 128.02364
A64: 55 | B64: COLPAL | C64: 1327.05 | D64: 1328.98 | E64: 1318.17 | F64: 1309.28 | G64: 1298.47 | H64: 1337.87 | I64: 1348.68 | J64: 1357.57 | K64: 1339.8 | L64: 1320.1 | M64: 4.48
A65: 56 | B65: CONCOR | C65: 656.6 | D65: 659.98 | E65: 649.97 | F65: 643.33 | G65: 633.32 | H65: 666.62 | I65: 676.63 | J65: 683.27 | K65: 670 | L65: 653.35 | M65: 5.19077
A66: 57 | B66: COROMANDEL | C66: 445.8 | D66: 446.18 | E66: 443.37 | F66: 440.93 | G66: 438.12 | H66: 448.62 | I66: 451.43 | J66: 453.87 | K66: 449 | L66: 443.75 | M66: 0.84096
A67: 58 | B67: CROMPTON | C67: 223.1 | D67: 224.58 | E67: 220.17 | F67: 217.23 | G67: 212.82 | H67: 227.52 | I67: 231.93 | J67: 234.87 | K67: 229 | L67: 221.65 | M67: 2.37475
A68: 59 | B68: CUMMINSIND | C68: 790.95 | D68: 804.67 | E68: 772.33 | F68: 753.72 | G68: 721.38 | H68: 823.28 | I68: 855.62 | J68: 874.23 | K68: 837 | L68: 786.05 | M68: 4.79435
A69: 60 | B69: DLF | C69: 187.1 | D69: 188.02 | E69: 184.23 | F69: 181.37 | G69: 177.58 | H69: 190.88 | I69: 194.67 | J69: 197.53 | K69: 191.8 | L69: 185.15 | M69: 82.2356
A70: 61 | B70: DABUR | C70: 437.75 | D70: 440.15 | E70: 431.80 | F70: 425.85 | G70: 417.50 | H70: 446.10 | I70: 454.45 | J70: 460.40 | K70: 448.5 | L70: 434.2 | M70: 21.30122
A71: 62 | B71: DHFL | C71: 240.65 | D71: 239.57 | E71: 233.43 | F71: 226.22 | G71: 220.08 | H71: 246.78 | I71: 252.92 | J71: 260.13 | K71: 245.7 | L71: 232.35 | M71: 204.83987
A72: 63 | B72: DISHTV | C72: 38.75 | D72: 39.02 | E72: 38.23 | F72: 37.72 | G72: 36.93 | H72: 39.53 | I72: 40.32 | J72: 40.83 | K72: 39.8 | L72: 38.5 | M72: 43.87274
A73: 64 | B73: DIVISLAB | C73: 1474.8 | D73: 1488.00 | E73: 1457.00 | F73: 1439.20 | G73: 1408.20 | H73: 1505.80 | I73: 1536.80 | J73: 1554.60 | K73: 1519 | L73: 1470.2 | M73: 5.52808
A74: 65 | B74: LALPATHLAB | C74: 955.1 | D74: 956.15 | E74: 943.30 | F74: 931.50 | G74: 918.65 | H74: 967.95 | I74: 980.80 | J74: 992.60 | K74: 969 | L74: 944.35 | M74: 0.55238
A75: 66 | B75: DRREDDY | C75: 2608.05 | D75: 2600.82 | E75: 2585.33 | F75: 2562.62 | G75: 2547.13 | H75: 2623.53 | I75: 2639.02 | J75: 2661.73 | K75: 2616.3 | L75: 2578.1 | M75: 7.47959
A76: 67 | B76: EDELWEISS | C76: 191.1 | D76: 193.05 | E76: 185.20 | F76: 179.30 | G76: 171.45 | H76: 198.95 | I76: 206.80 | J76: 212.70 | K76: 200.9 | L76: 187.15 | M76: 22.87045
A77: 68 | B77: EICHERMOT | C77: 23597.6 | D77: 23732.90 | E77: 23275.80 | F77: 22954.00 | G77: 22496.90 | H77: 24054.70 | I77: 24511.80 | J77: 24833.60 | K77: 24190 | L77: 23411.1 | M77: 0.57989
A78: 69 | B78: EMAMILTD | C78: 412.35 | D78: 417.80 | E78: 402.75 | F78: 393.15 | G78: 378.10 | H78: 427.40 | I78: 442.45 | J78: 452.05 | K78: 432.85 | L78: 408.2 | M78: 3.9233
A79: 70 | B79: ENDURANCE | C79: 1180.6 | D79: 1172.37 | E79: 1160.08 | F79: 1139.57 | G79: 1127.28 | H79: 1192.88 | I79: 1205.17 | J79: 1225.68 | K79: 1184.65 | L79: 1151.85 | M79: 0.13016
A80: 71 | B80: ENGINERSIN | C80: 123.75 | D80: 123.87 | E80: 122.03 | F80: 120.32 | G80: 118.48 | H80: 125.58 | I80: 127.42 | J80: 129.13 | K80: 125.7 | L80: 122.15 | M80: 15.05032
A81: 72 | B81: EXIDEIND | C81: 263.5 | D81: 265.53 | E81: 260.42 | F81: 257.33 | G81: 252.22 | H81: 268.62 | I81: 273.73 | J81: 276.82 | K81: 270.65 | L81: 262.45 | M81: 12.84285
A82: 73 | B82: FEDERALBNK | C82: 92.5 | D82: 93.43 | E82: 90.87 | F82: 89.23 | G82: 86.67 | H82: 95.07 | I82: 97.63 | J82: 99.27 | K82: 96 | L82: 91.8 | M82: 155.6577
A83: 74 | B83: GAIL | C83: 345.05 | D83: 347.78 | E83: 341.37 | F83: 337.68 | G83: 331.27 | H83: 351.47 | I83: 357.88 | J83: 361.57 | K83: 354.2 | L83: 344.1 | M83: 40.50832
A84: 75 | B84: GMRINFRA | C84: 15.9 | D84: 16.13 | E84: 15.62 | F84: 15.33 | G84: 14.82 | H84: 16.42 | I84: 16.93 | J84: 17.22 | K84: 16.65 | L84: 15.85 | M84: 121.9279
A85: 76 | B85: GSKCONS | C85: 7640.4 | D85: 7696.00 | E85: 7557.00 | F85: 7473.60 | G85: 7334.60 | H85: 7779.40 | I85: 7918.40 | J85: 8001.80 | K85: 7835 | L85: 7612.6 | M85: 0.10061
A86: 77 | B86: GLAXO | C86: 1445.4 | D86: 1438.80 | E86: 1403.60 | F86: 1361.80 | G86: 1326.60 | H86: 1480.60 | I86: 1515.80 | J86: 1557.60 | K86: 1474 | L86: 1397 | M86: 0.20571
A87: 78 | B87: GLENMARK | C87: 672.2 | D87: 678.83 | E87: 662.97 | F87: 653.73 | G87: 637.87 | H87: 688.07 | I87: 703.93 | J87: 713.17 | K87: 694.7 | L87: 669.6 | M87: 11.19618
A88: 79 | B88: GODREJCP | C88: 802.5 | D88: 809.57 | E88: 791.43 | F88: 780.37 | G88: 762.23 | H88: 820.63 | I88: 838.77 | J88: 849.83 | K88: 827.7 | L88: 798.5 | M88: 8.73245
A89: 80 | B89: GODREJIND | C89: 522.8 | D89: 529.77 | E89: 513.03 | F89: 503.27 | G89: 486.53 | H89: 539.53 | I89: 556.27 | J89: 566.03 | K89: 546.5 | L89: 520 | M89: 3.70629
A90: 81 | B90: GRUH | C90: 330.05 | D90: 327.90 | E90: 320.40 | F90: 310.75 | G90: 303.25 | H90: 337.55 | I90: 345.05 | J90: 354.70 | K90: 335.4 | L90: 318.25 | M90: 19.12931
A91: 82 | B91: GPPL | C91: 102.6 | D91: 102.45 | E91: 100.20 | F91: 97.80 | G91: 95.55 | H91: 104.85 | I91: 107.10 | J91: 109.50 | K91: 104.7 | L91: 100.05 | M91: 0.76861
A92: 83 | B92: GSPL | C92: 177.7 | D92: 177.63 | E92: 175.57 | F92: 173.43 | G92: 171.37 | H92: 179.77 | I92: 181.83 | J92: 183.97 | K92: 179.7 | L92: 175.5 | M92: 5.97952
A93: 84 | B93: HCLTECH | C93: 954.45 | D93: 954.48 | E93: 944.97 | F93: 935.48 | G93: 925.97 | H93: 963.97 | I93: 973.48 | J93: 982.97 | K93: 964 | L93: 945 | M93: 52.19625
A94: 85 | B94: HDFCBANK | C94: 2111.15 | D94: 2123.10 | E94: 2097.10 | F94: 2083.05 | G94: 2057.05 | H94: 2137.15 | I94: 2163.15 | J94: 2177.20 | K94: 2149.1 | L94: 2109.05 | M94: 25.55077
A95: 86 | B95: HAVELLS | C95: 691.5 | D95: 699.13 | E95: 681.77 | F95: 672.03 | G95: 654.67 | H95: 708.87 | I95: 726.23 | J95: 735.97 | K95: 716.5 | L95: 689.4 | M95: 16.14901
A96: 87 | B96: HEROMOTOCO | C96: 3324.15 | D96: 3334.88 | E96: 3300.77 | F96: 3277.38 | G96: 3243.27 | H96: 3358.27 | I96: 3392.38 | J96: 3415.77 | K96: 3369 | L96: 3311.5 | M96: 5.25895
A97: 88 | B97: HEXAWARE | C97: 314.75 | D97: 317.27 | E97: 310.03 | F97: 305.32 | G97: 298.08 | H97: 321.98 | I97: 329.22 | J97: 333.93 | K97: 324.5 | L97: 312.55 | M97: 11.78934
A98: 89 | B98: HINDALCO | C98: 224 | D98: 224.42 | E98: 221.38 | F98: 218.77 | G98: 215.73 | H98: 227.03 | I98: 230.07 | J98: 232.68 | K98: 227.45 | L98: 221.8 | M98: 69.33691
A99: 90 | B99: HINDPETRO | C99: 250.05 | D99: 248.20 | E99: 244.35 | F99: 238.65 | G99: 234.80 | H99: 253.90 | I99: 257.75 | J99: 263.45 | K99: 252.05 | L99: 242.5 | M99: 132.08463
A100: 91 | B100: HINDUNILVR | C100: 1803.5 | D100: 1815.37 | E100: 1788.13 | F100: 1772.77 | G100: 1745.53 | H100: 1830.73 | I100: 1857.97 | J100: 1873.33 | K100: 1842.6 | L100: 1800 | M100: 14.39522
A101: 92 | B101: HINDZINC | C101: 274.3 | D101: 276.02 | E101: 271.53 | F101: 268.77 | G101: 264.28 | H101: 278.78 | I101: 283.27 | J101: 286.03 | K101: 280.5 | L101: 273.25 | M101: 4.07678
A102: 93 | B102: HUDCO | C102: 44.1 | D102: 44.38 | E102: 43.52 | F102: 42.93 | G102: 42.07 | H102: 44.97 | I102: 45.83 | J102: 46.42 | K102: 45.25 | L102: 43.8 | M102: 6.68234
A103: 94 | B103: HDFC | C103: 1948.6 | D103: 1952.73 | E103: 1925.87 | F103: 1903.13 | G103: 1876.27 | H103: 1975.47 | I103: 2002.33 | J103: 2025.07 | K103: 1979.6 | L103: 1930 | M103: 40.16548
A104: 95 | B104: ITC | C104: 276.75 | D104: 278.93 | E104: 273.87 | F104: 270.98 | G104: 265.92 | H104: 281.82 | I104: 286.88 | J104: 289.77 | K104: 284 | L104: 276.05 | M104: 68.16618
A105: 96 | B105: ICICIBANK | C105: 354.2 | D105: 356.57 | E105: 349.63 | F105: 345.07 | G105: 338.13 | H105: 361.13 | I105: 368.07 | J105: 372.63 | K105: 363.5 | L105: 352 | M105: 135.55416
A106: 97 | B106: ICICIPRULI | C106: 326.85 | D106: 325.10 | E106: 320.80 | F106: 314.75 | G106: 310.45 | H106: 331.15 | I106: 335.45 | J106: 341.50 | K106: 329.4 | L106: 319.05 | M106: 16.8365
A107: 98 | B107: IDBI | C107: 61.85 | D107: 61.72 | E107: 61.33 | F107: 60.82 | G107: 60.43 | H107: 62.23 | I107: 62.62 | J107: 63.13 | K107: 62.1 | L107: 61.2 | M107: 132.46361
A108: 99 | B108: IDFCBANK | C108: 43.15 | D108: 43.52 | E108: 42.48 | F108: 41.82 | G108: 40.78 | H108: 44.18 | I108: 45.22 | J108: 45.88 | K108: 44.55 | L108: 42.85 | M108: 206.61011
A109: 100 | B109: IDFC | C109: 42.9 | D109: 43.35 | E109: 42.20 | F109: 41.50 | G109: 40.35 | H109: 44.05 | I109: 45.20 | J109: 45.90 | K109: 44.5 | L109: 42.65 | M109: 45.09452
A110: 101 | B110: IRB | C110: 168.3 | D110: 166.78 | E110: 164.07 | F110: 159.83 | G110: 157.12 | H110: 171.02 | I110: 173.73 | J110: 177.97 | K110: 169.5 | L110: 162.55 | M110: 35.22707
A111: 102 | B111: IDEA | C111: 38.3 | D111: 38.22 | E111: 37.58 | F111: 36.87 | G111: 36.23 | H111: 38.93 | I111: 39.57 | J111: 40.28 | K111: 38.85 | L111: 37.5 | M111: 355.86823
A112: 103 | B112: IBULHSGFIN | C112: 816.85 | D112: 829.78 | E112: 794.67 | F112: 772.48 | G112: 737.37 | H112: 851.97 | I112: 887.08 | J112: 909.27 | K112: 864.9 | L112: 807.6 | M112: 134.18629
A113: 104 | B113: INDIANB | C113: 239.4 | D113: 242.42 | E113: 235.33 | F113: 231.27 | G113: 224.18 | H113: 246.48 | I113: 253.57 | J113: 257.63 | K113: 249.5 | L113: 238.35 | M113: 15.42013
A114: 105 | B114: INDHOTEL | C114: 146.8 | D114: 147.13 | E114: 145.17 | F114: 143.53 | G114: 141.57 | H114: 148.77 | I114: 150.73 | J114: 152.37 | K114: 149.1 | L114: 145.5 | M114: 6.02717
A115: 106 | B115: IOC | C115: 139.75 | D115: 140.55 | E115: 138.30 | F115: 136.85 | G115: 134.60 | H115: 142.00 | I115: 144.25 | J115: 145.70 | K115: 142.8 | L115: 139.1 | M115: 346.80959
A116: 107 | B116: IGL | C116: 260.4 | D116: 262.75 | E116: 257.10 | F116: 253.80 | G116: 248.15 | H116: 266.05 | I116: 271.70 | J116: 275.00 | K116: 268.4 | L116: 259.45 | M116: 14.52873
A117: 108 | B117: INDUSINDBK | C117: 1575.65 | D117: 1591.27 | E117: 1556.58 | F117: 1537.52 | G117: 1502.83 | H117: 1610.33 | I117: 1645.02 | J117: 1664.08 | K117: 1625.95 | L117: 1572.2 | M117: 11.19348
A118: 109 | B118: NAUKRI | C118: 1576.15 | D118: 1578.08 | E118: 1553.67 | F118: 1531.18 | G118: 1506.77 | H118: 1600.57 | I118: 1624.98 | J118: 1647.47 | K118: 1602.5 | L118: 1555.6 | M118: 1.17209
A119: 110 | B119: INFY | C119: 646.2 | D119: 649.72 | E119: 639.93 | F119: 633.67 | G119: 623.88 | H119: 655.98 | I119: 665.77 | J119: 672.03 | K119: 659.5 | L119: 643.45 | M119: 128.02132
A120: 111 | B120: INDIGO | C120: 1154.45 | D120: 1153.90 | E120: 1139.60 | F120: 1124.75 | G120: 1110.45 | H120: 1168.75 | I120: 1183.05 | J120: 1197.90 | K120: 1168.2 | L120: 1139.05 | M120: 7.61581
A121: 112 | B121: IPCALAB | C121: 805.1 | D121: 799.88 | E121: 790.22 | F121: 775.33 | G121: 765.67 | H121: 814.77 | I121: 824.43 | J121: 839.32 | K121: 809.55 | L121: 785 | M121: 0.79875
A122: 113 | B122: JSWENERGY | C122: 70.9 | D122: 70.80 | E122: 70.10 | F122: 69.30 | G122: 68.60 | H122: 71.60 | I122: 72.30 | J122: 73.10 | K122: 71.5 | L122: 70 | M122: 7.71551
A123: 114 | B123: JSWSTEEL | C123: 308 | D123: 308.85 | E123: 305.00 | F123: 302.00 | G123: 298.15 | H123: 311.85 | I123: 315.70 | J123: 318.70 | K123: 312.7 | L123: 305.85 | M123: 68.086
A124: 115 | B124: JINDALSTEL | C124: 164.65 | D124: 166.90 | E124: 160.95 | F124: 157.25 | G124: 151.30 | H124: 170.60 | I124: 176.55 | J124: 180.25 | K124: 172.85 | L124: 163.2 | M124: 110.96129
A125: 116 | B125: JUBLFOOD | C125: 1313.5 | D125: 1331.83 | E125: 1287.67 | F125: 1261.83 | G125: 1217.67 | H125: 1357.67 | I125: 1401.83 | J125: 1427.67 | K125: 1376 | L125: 1306 | M125: 19.68751
A126: 117 | B126: JUBILANT | C126: 698.3 | D126: 703.30 | E126: 690.10 | F126: 681.90 | G126: 668.70 | H126: 711.50 | I126: 724.70 | J126: 732.90 | K126: 716.5 | L126: 695.1 | M126: 2.38209
A127: 118 | B127: KARURVYSYA | C127: 85 | D127: 85.20 | E127: 84.40 | F127: 83.80 | G127: 83.00 | H127: 85.80 | I127: 86.60 | J127: 87.20 | K127: 86 | L127: 84.6 | M127: 6.69866
A128: 119 | B128: KOTAKBANK | C128: 1227.2 | D128: 1231.25 | E128: 1219.60 | F128: 1212.00 | G128: 1200.35 | H128: 1238.85 | I128: 1250.50 | J128: 1258.10 | K128: 1242.9 | L128: 1223.65 | M128: 22.08029
A129: 120 | B129: L&TFH | C129: 151.2 | D129: 153.65 | E129: 148.05 | F129: 144.90 | G129: 139.30 | H129: 156.80 | I129: 162.40 | J129: 165.55 | K129: 159.25 | L129: 150.5 | M129: 72.92113
A130: 121 | B130: LICHSGFIN | C130: 470.55 | D130: 478.58 | E130: 460.97 | F130: 451.38 | G130: 433.77 | H130: 488.17 | I130: 505.78 | J130: 515.37 | K130: 496.2 | L130: 469 | M130: 18.16837
A131: 122 | B131: LT | C131: 1420 | D131: 1431.63 | E131: 1403.57 | F131: 1387.13 | G131: 1359.07 | H131: 1448.07 | I131: 1476.13 | J131: 1492.57 | K131: 1459.7 | L131: 1415.2 | M131: 19.75704
A132: 123 | B132: LUPIN | C132: 858.45 | D132: 860.07 | E132: 851.43 | F132: 844.42 | G132: 835.78 | H132: 867.08 | I132: 875.72 | J132: 882.73 | K132: 868.7 | L132: 853.05 | M132: 18.0018
A133: 124 | B133: MRF | C133: 67003.85 | D133: 67754.95 | E133: 65948.90 | F133: 64893.95 | G133: 63087.90 | H133: 68809.90 | I133: 70615.95 | J133: 71670.90 | K133: 69561 | L133: 66700 | M133: 0.09352
A134: 125 | B134: MGL | C134: 882.6 | D134: 887.37 | E134: 875.23 | F134: 867.87 | G134: 855.73 | H134: 894.73 | I134: 906.87 | J134: 914.23 | K134: 899.5 | L134: 880 | M134: 1.99585
A135: 126 | B135: M&MFIN | C135: 463.15 | D135: 468.20 | E135: 455.40 | F135: 447.65 | G135: 434.85 | H135: 475.95 | I135: 488.75 | J135: 496.50 | K135: 481 | L135: 460.45 | M135: 17.4365
A136: 127 | B136: M&M | C136: 781.15 | D136: 790.95 | E136: 767.90 | F136: 754.65 | G136: 731.60 | H136: 804.20 | I136: 827.25 | J136: 840.50 | K136: 814 | L136: 777.7 | M136: 61.25095
A137: 128 | B137: MANAPPURAM | C137: 88.5 | D137: 89.67 | E137: 86.88 | F137: 85.27 | G137: 82.48 | H137: 91.28 | I137: 94.07 | J137: 95.68 | K137: 92.45 | L137: 88.05 | M137: 26.08542
A138: 129 | B138: MRPL | C138: 74.7 | D138: 75.78 | E138: 73.27 | F138: 71.83 | G138: 69.32 | H138: 77.22 | I138: 79.73 | J138: 81.17 | K138: 78.3 | L138: 74.35 | M138: 17.80075
A139: 130 | B139: MARICO | C139: 378.15 | D139: 379.58 | E139: 373.32 | F139: 368.48 | G139: 362.22 | H139: 384.42 | I139: 390.68 | J139: 395.52 | K139: 385.85 | L139: 374.75 | M139: 17.01786
A140: 131 | B140: MARUTI | C140: 7536.3 | D140: 7628.77 | E140: 7422.53 | F140: 7308.77 | G140: 7102.53 | H140: 7742.53 | I140: 7948.77 | J140: 8062.53 | K140: 7835 | L140: 7515 | M140: 12.57227
A141: 132 | B141: MFSL | C141: 438.75 | D141: 441.10 | E141: 432.70 | F141: 426.65 | G141: 418.25 | H141: 447.15 | I141: 455.55 | J141: 461.60 | K141: 449.5 | L141: 435.05 | M141: 4.94336
A142: 133 | B142: MINDTREE | C142: 845.6 | D142: 850.63 | E142: 835.07 | F142: 824.53 | G142: 808.97 | H142: 861.17 | I142: 876.73 | J142: 887.27 | K142: 866.2 | L142: 840.1 | M142: 16.01801
A143: 134 | B143: MOTHERSUMI | C143: 168.85 | D143: 170.65 | E143: 166.30 | F143: 163.75 | G143: 159.40 | H143: 173.20 | I143: 177.55 | J143: 180.10 | K143: 175 | L143: 168.1 | M143: 73.56971
A144: 135 | B144: MPHASIS | C144: 968.5 | D144: 973.77 | E144: 957.53 | F144: 946.57 | G144: 930.33 | H144: 984.73 | I144: 1000.97 | J144: 1011.93 | K144: 990 | L144: 962.8 | M144: 2.9164
A145: 136 | B145: MUTHOOTFIN | C145: 486.6 | D145: 492.12 | E145: 479.23 | F145: 471.87 | G145: 458.98 | H145: 499.48 | I145: 512.37 | J145: 519.73 | K145: 505 | L145: 484.75 | M145: 15.50585
A146: 137 | B146: NATCOPHARM | C146: 682.5 | D146: 685.88 | E146: 677.82 | F146: 673.13 | G146: 665.07 | H146: 690.57 | I146: 698.63 | J146: 703.32 | K146: 693.95 | L146: 681.2 | M146: 1.49001
A147: 138 | B147: NBCC | C147: 55.9 | D147: 56.78 | E147: 54.82 | F147: 53.73 | G147: 51.77 | H147: 57.87 | I147: 59.83 | J147: 60.92 | K147: 58.75 | L147: 55.7 | M147: 83.37395
A148: 139 | B148: NHPC | C148: 25.95 | D148: 25.98 | E148: 25.82 | F148: 25.68 | G148: 25.52 | H148: 26.12 | I148: 26.28 | J148: 26.42 | K148: 26.15 | L148: 25.85 | M148: 75.30148
A149: 140 | B149: NMDC | C149: 94.6 | D149: 95.52 | E149: 93.28 | F149: 91.97 | G149: 89.73 | H149: 96.83 | I149: 99.07 | J149: 100.38 | K149: 97.75 | L149: 94.2 | M149: 26.45631
A150: 141 | B150: NTPC | C150: 150.55 | D150: 150.07 | E150: 148.73 | F150: 146.92 | G150: 145.58 | H150: 151.88 | I150: 153.22 | J150: 155.03 | K150: 151.4 | L150: 148.25 | M150: 157.97444
A151: 142 | B151: NATIONALUM | C151: 62.2 | D151: 62.40 | E151: 61.55 | F151: 60.90 | G151: 60.05 | H151: 63.05 | I151: 63.90 | J151: 64.55 | K151: 63.25 | L151: 61.75 | M151: 58.78464
A152: 143 | B152: OBEROIRLTY | C152: 452.35 | D152: 459.25 | E152: 444.10 | F152: 435.85 | G152: 420.70 | H152: 467.50 | I152: 482.65 | J152: 490.90 | K152: 474.4 | L152: 451 | M152: 2.15192
A153: 144 | B153: ONGC | C153: 148.5 | D153: 148.47 | E153: 147.63 | F153: 146.77 | G153: 145.93 | H153: 149.33 | I153: 150.17 | J153: 151.03 | K153: 149.3 | L153: 147.6 | M153: 177.67999
A154: 145 | B154: OIL | C154: 177.1 | D154: 178.18 | E154: 175.47 | F154: 173.83 | G154: 171.12 | H154: 179.82 | I154: 182.53 | J154: 184.17 | K154: 180.9 | L154: 176.55 | M154: 21.74647
A155: 146 | B155: OFSS | C155: 3662.3 | D155: 3674.10 | E155: 3603.20 | F155: 3544.10 | G155: 3473.20 | H155: 3733.20 | I155: 3804.10 | J155: 3863.20 | K155: 3745 | L155: 3615 | M155: 0.388
A156: 147 | B156: PCJEWELLER | C156: 82.45 | D156: 83.23 | E156: 81.02 | F156: 79.58 | G156: 77.37 | H156: 84.67 | I156: 86.88 | J156: 88.32 | K156: 85.45 | L156: 81.8 | M156: 125.71474
A157: 148 | B157: PIIND | C157: 839.35 | D157: 837.78 | E157: 831.57 | F157: 823.78 | G157: 817.57 | H157: 845.57 | I157: 851.78 | J157: 859.57 | K157: 844 | L157: 830 | M157: 0.90167
A158: 149 | B158: PNBHOUSING | C158: 964.85 | D158: 967.45 | E158: 952.90 | F158: 940.95 | G158: 926.40 | H158: 979.40 | I158: 993.95 | J158: 1005.90 | K158: 982 | L158: 955.5 | M158: 1.13653
A159: 150 | B159: PAGEIND | C159: 24210.65 | D159: 24500.22 | E159: 23810.43 | F159: 23410.22 | G159: 22720.43 | H159: 24900.43 | I159: 25590.22 | J159: 25990.43 | K159: 25190 | L159: 24100 | M159: 0.38774
A160: 151 | B160: PETRONET | C160: 223.4 | D160: 223.02 | E160: 221.08 | F160: 218.77 | G160: 216.83 | H160: 225.33 | I160: 227.27 | J160: 229.58 | K160: 224.95 | L160: 220.7 | M160: 32.90789
A161: 152 | B161: PIDILITIND | C161: 1142.4 | D161: 1157.53 | E161: 1122.07 | F161: 1101.73 | G161: 1066.27 | H161: 1177.87 | I161: 1213.33 | J161: 1233.67 | K161: 1193 | L161: 1137.2 | M161: 9.79123
A162: 153 | B162: PEL | C162: 2295.35 | D162: 2310.82 | E162: 2256.63 | F162: 2217.92 | G162: 2163.73 | H162: 2349.53 | I162: 2403.72 | J162: 2442.43 | K162: 2365 | L162: 2272.1 | M162: 9.22993
A163: 154 | B163: PFC | C163: 98.1 | D163: 98.53 | E163: 97.07 | F163: 96.03 | G163: 94.57 | H163: 99.57 | I163: 101.03 | J163: 102.07 | K163: 100 | L163: 97.5 | M163: 114.73597
A164: 155 | B164: POWERGRID | C164: 196.9 | D164: 197.22 | E164: 195.33 | F164: 193.77 | G164: 191.88 | H164: 198.78 | I164: 200.67 | J164: 202.23 | K164: 199.1 | L164: 195.65 | M164: 49.06476
A165: 156 | B165: PRESTIGE | C165: 207.7 | D165: 209.23 | E165: 204.47 | F165: 201.23 | G165: 196.47 | H165: 212.47 | I165: 217.23 | J165: 220.47 | K165: 214 | L165: 206 | M165: 2.07999
A166: 157 | B166: PGHH | C166: 9802.4 | D166: 9814.42 | E166: 9639.08 | F166: 9475.77 | G166: 9300.43 | H166: 9977.73 | I166: 10153.07 | J166: 10316.38 | K166: 9989.75 | L166: 9651.1 | M166: 0.05289
A167: 158 | B167: PNB | C167: 76.35 | D167: 76.95 | E167: 75.10 | F167: 73.85 | G167: 72.00 | H167: 78.20 | I167: 80.05 | J167: 81.30 | K167: 78.8 | L167: 75.7 | M167: 400.25985
A168: 159 | B168: RBLBANK | C168: 563.65 | D168: 569.38 | E168: 556.27 | F168: 548.88 | G168: 535.77 | H168: 576.77 | I168: 589.88 | J168: 597.27 | K168: 582.5 | L168: 562 | M168: 7.01013
A169: 160 | B169: RAJESHEXPO | C169: 566.8 | D169: 569.60 | E169: 559.20 | F169: 551.60 | G169: 541.20 | H169: 577.20 | I169: 587.60 | J169: 595.20 | K169: 580 | L169: 562 | M169: 2.3356
A170: 161 | B170: RELCAPITAL | C170: 219.5 | D170: 219.42 | E170: 216.63 | F170: 213.77 | G170: 210.98 | H170: 222.28 | I170: 225.07 | J170: 227.93 | K170: 222.2 | L170: 216.55 | M170: 49.5455
A171: 162 | B171: RCOM | C171: 14.2 | D171: 14.32 | E171: 13.93 | F171: 13.67 | G171: 13.28 | H171: 14.58 | I171: 14.97 | J171: 15.23 | K171: 14.7 | L171: 14.05 | M171: 659.12405
A172: 163 | B172: RELIANCE | C172: 1100.2 | D172: 1109.15 | E172: 1087.05 | F172: 1073.90 | G172: 1051.80 | H172: 1122.30 | I172: 1144.40 | J172: 1157.55 | K172: 1131.25 | L172: 1096 | M172: 82.81941
A173: 164 | B173: RELINFRA | C173: 307.6 | D173: 305.00 | E173: 300.65 | F173: 293.70 | G173: 289.35 | H173: 311.95 | I173: 316.30 | J173: 323.25 | K173: 309.35 | L173: 298.05 | M173: 54.25211
A174: 165 | B174: RPOWER | C174: 28.05 | D174: 28.05 | E174: 27.70 | F174: 27.35 | G174: 27.00 | H174: 28.40 | I174: 28.75 | J174: 29.10 | K174: 28.4 | L174: 27.7 | M174: 100.85763
A175: 166 | B175: RECLTD | C175: 109.4 | D175: 109.45 | E175: 107.80 | F175: 106.20 | G175: 104.55 | H175: 111.05 | I175: 112.70 | J175: 114.30 | K175: 111.1 | L175: 107.85 | M175: 108.14288
A176: 167 | B176: SRF | C176: 2149.35 | D176: 2185.33 | E176: 2104.02 | F176: 2058.68 | G176: 1977.37 | H176: 2230.67 | I176: 2311.98 | J176: 2357.32 | K176: 2266.65 | L176: 2140 | M176: 6.3194
A177: 168 | B177: SHREECEM | C177: 17145.9 | D177: 17247.35 | E177: 16973.20 | F177: 16800.50 | G177: 16526.35 | H177: 17420.05 | I177: 17694.20 | J177: 17866.90 | K177: 17521.5 | L177: 17074.65 | M177: 0.31747
A178: 169 | B178: SRTRANSFIN | C178: 1200.5 | D178: 1222.05 | E178: 1170.95 | F178: 1141.40 | G178: 1090.30 | H178: 1251.60 | I178: 1302.70 | J178: 1332.25 | K178: 1273.15 | L178: 1192.5 | M178: 23.79618
A179: 170 | B179: SIEMENS | C179: 993.65 | D179: 996.88 | E179: 978.82 | F179: 963.98 | G179: 945.92 | H179: 1011.72 | I179: 1029.78 | J179: 1044.62 | K179: 1014.95 | L179: 982.05 | M179: 9.01069
A180: 171 | B180: SBIN | C180: 291.9 | D180: 293.07 | E180: 289.63 | F180: 287.37 | G180: 283.93 | H180: 295.33 | I180: 298.77 | J180: 301.03 | K180: 296.5 | L180: 290.8 | M180: 157.77301
A181: 172 | B181: SAIL | C181: 52.9 | D181: 53.33 | E181: 52.07 | F181: 51.23 | G181: 49.97 | H181: 54.17 | I181: 55.43 | J181: 56.27 | K181: 54.6 | L181: 52.5 | M181: 96.80021
A182: 173 | B182: SPARC | C182: 208 | D182: 208.93 | E182: 203.27 | F182: 198.53 | G182: 192.87 | H182: 213.67 | I182: 219.33 | J182: 224.07 | K182: 214.6 | L182: 204.2 | M182: 7.60465
A183: 174 | B183: SUNPHARMA | C183: 425.3 | D183: 427.10 | E183: 421.20 | F183: 417.10 | G183: 411.20 | H183: 431.20 | I183: 437.10 | J183: 441.20 | K183: 433 | L183: 423 | M183: 73.15242
A184: 175 | B184: SUNTV | C184: 590.9 | D184: 594.38 | E184: 582.02 | F184: 573.13 | G184: 560.77 | H184: 603.27 | I184: 615.63 | J184: 624.52 | K184: 606.75 | L184: 585.5 | M184: 10.18579
A185: 176 | B185: SUZLON | C185: 5.5 | D185: 5.53 | E185: 5.42 | F185: 5.33 | G185: 5.22 | H185: 5.62 | I185: 5.73 | J185: 5.82 | K185: 5.65 | L185: 5.45 | M185: 242.999
A186: 177 | B186: SYNDIBANK | C186: 37.75 | D186: 37.60 | E186: 37.10 | F186: 36.45 | G186: 35.95 | H186: 38.25 | I186: 38.75 | J186: 39.40 | K186: 38.1 | L186: 36.95 | M186: 63.07117
A187: 178 | B187: SYNGENE | C187: 560.2 | D187: 560.95 | E187: 553.45 | F187: 546.70 | G187: 539.20 | H187: 567.70 | I187: 575.20 | J187: 581.95 | K187: 568.45 | L187: 554.2 | M187: 0.50067
A188: 179 | B188: TV18BRDCST | C188: 36.55 | D188: 36.63 | E188: 36.12 | F188: 35.68 | G188: 35.17 | H188: 37.07 | I188: 37.58 | J188: 38.02 | K188: 37.15 | L188: 36.2 | M188: 29.62373
A189: 180 | B189: TVSMOTOR | C189: 572.9 | D189: 576.43 | E189: 566.47 | F189: 560.03 | G189: 550.07 | H189: 582.87 | I189: 592.83 | J189: 599.27 | K189: 586.4 | L189: 570 | M189: 19.85113
A190: 181 | B190: TATACHEM | C190: 704.6 | D190: 710.58 | E190: 695.17 | F190: 685.73 | G190: 670.32 | H190: 720.02 | I190: 735.43 | J190: 744.87 | K190: 726 | L190: 701.15 | M190: 4.2786
A191: 182 | B191: TATACOMM | C191: 520.55 | D191: 530.82 | E191: 505.83 | F191: 491.12 | G191: 466.13 | H191: 545.53 | I191: 570.52 | J191: 585.23 | K191: 555.8 | L191: 516.1 | M191: 4.38572
A192: 183 | B192: TCS | C192: 1895.8 | D192: 1910.78 | E192: 1871.57 | F192: 1847.33 | G192: 1808.12 | H192: 1935.02 | I192: 1974.23 | J192: 1998.47 | K192: 1950 | L192: 1886.55 | M192: 37.29956
A193: 184 | B193: TATAGLOBAL | C193: 215.4 | D193: 215.27 | E193: 210.93 | F193: 206.47 | G193: 202.13 | H193: 219.73 | I193: 224.07 | J193: 228.53 | K193: 219.6 | L193: 210.8 | M193: 56.54362
A194: 185 | B194: TATAMTRDVR | C194: 96.3 | D194: 96.82 | E194: 94.98 | F194: 93.67 | G194: 91.83 | H194: 98.13 | I194: 99.97 | J194: 101.28 | K194: 98.65 | L194: 95.5 | M194: 38.13033
A195: 186 | B195: TATAMOTORS | C195: 176.25 | D195: 177.30 | E195: 174.10 | F195: 171.95 | G195: 168.75 | H195: 179.45 | I195: 182.65 | J195: 184.80 | K195: 180.5 | L195: 175.15 | M195: 237.42481
A196: 187 | B196: TATAPOWER | C196: 76.45 | D196: 77.72 | E196: 74.78 | F196: 73.12 | G196: 70.18 | H196: 79.38 | I196: 82.32 | J196: 83.98 | K196: 80.65 | L196: 76.05 | M196: 72.43377
A197: 188 | B197: TATASTEEL | C197: 520.2 | D197: 523.50 | E197: 515.00 | F197: 509.80 | G197: 501.30 | H197: 528.70 | I197: 537.20 | J197: 542.40 | K197: 532 | L197: 518.3 | M197: 59.6967
A198: 189 | B198: TECHM | C198: 695.75 | D198: 700.75 | E198: 688.00 | F198: 680.25 | G198: 667.50 | H198: 708.50 | I198: 721.25 | J198: 729.00 | K198: 713.5 | L198: 693 | M198: 20.63928
A199: 190 | B199: RAMCOCEM | C199: 629.15 | D199: 638.53 | E199: 615.62 | F199: 602.08 | G199: 579.17 | H199: 652.07 | I199: 674.98 | J199: 688.52 | K199: 661.45 | L199: 625 | M199: 2.26728
A200: 191 | B200: TITAN | C200: 900.05 | D200: 908.38 | E200: 888.92 | F200: 877.78 | G200: 858.32 | H200: 919.52 | I200: 938.98 | J200: 950.12 | K200: 927.85 | L200: 897.25 | M200: 29.72085
A201: 192 | B201: TORNTPHARM | C201: 1783.9 | D201: 1797.97 | E201: 1760.93 | F201: 1737.97 | G201: 1700.93 | H201: 1820.93 | I201: 1857.97 | J201: 1880.93 | K201: 1835 | L201: 1775 | M201: 3.04282
A202: 193 | B202: TORNTPOWER | C202: 256.5 | D202: 260.02 | E202: 251.83 | F202: 247.17 | G202: 238.98 | H202: 264.68 | I202: 272.87 | J202: 277.53 | K202: 268.2 | L202: 255.35 | M202: 9.99159
A203: 194 | B203: UPL | C203: 735.65 | D203: 747.53 | E203: 721.17 | F203: 706.68 | G203: 680.32 | H203: 762.02 | I203: 788.38 | J203: 802.87 | K203: 773.9 | L203: 733.05 | M203: 34.92197
A204: 195 | B204: ULTRACEMCO | C204: 3984.3 | D204: 4006.60 | E204: 3933.20 | F204: 3882.10 | G204: 3808.70 | H204: 4057.70 | I204: 4131.10 | J204: 4182.20 | K204: 4080 | L204: 3955.5 | M204: 3.90384
A205: 196 | B205: UNIONBANK | C205: 82.4 | D205: 82.60 | E205: 81.05 | F205: 79.70 | G205: 78.15 | H205: 83.95 | I205: 85.50 | J205: 86.85 | K205: 84.15 | L205: 81.25 | M205: 72.91064
... 29 more rows

Sheet MidCap Intra
L5: Back To Main Page
A6: FOR INTRA DAY TRADING | K6: =Main!B10 -> 2018-12-24
A9: Sr.no | B9: Scrip | C9: CLOSE RATE | D9: Pivot Point | E9: Supports | H9: Resistances
C10: Point | E10: S1 | F10: S2 | G10: S3 | H10: R1 | I10: R2 | J10: R3 | K10: HIGH | L10: LOW | M10: Total Trade Quanity in Lakhs
A11: 1 | B11: 3MINDIA | C11: 22059.7 | D11: 22236.55 | E11: 21823.15 | F11: 21586.60 | G11: 21173.20 | H11: 22473.10 | I11: 22886.50 | J11: 23123.05 | K11: 22649.95 | L11: 22000 | M11: 0.00906
A12: 2 | B12: 8KMILES | C12: 155.6 | D12: 156.37 | E12: 150.28 | F12: 144.97 | G12: 138.88 | H12: 161.68 | I12: 167.77 | J12: 173.08 | K12: 162.45 | L12: 151.05 | M12: 6.01069
A13: 3 | B13: AARTIIND | C13: 1449.75 | D13: 1450.92 | E13: 1439.83 | F13: 1429.92 | G13: 1418.83 | H13: 1460.83 | I13: 1471.92 | J13: 1481.83 | K13: 1462 | L13: 1441 | M13: 0.42989
A14: 4 | B14: ABAN | C14: 74.9 | D14: 75.37 | E14: 73.78 | F14: 72.67 | G14: 71.08 | H14: 76.48 | I14: 78.07 | J14: 79.18 | K14: 76.95 | L14: 74.25 | M14: 5.63099
A15: 5 | B15: ABB | C15: 1302.7 | D15: 1307.57 | E15: 1290.13 | F15: 1277.57 | G15: 1260.13 | H15: 1320.13 | I15: 1337.57 | J15: 1350.13 | K15: 1325 | L15: 1295 | M15: 1.93848
A16: 6 | B16: ABCAPITAL | C16: 98.05 | D16: 98.50 | E16: 97.35 | F16: 96.65 | G16: 95.50 | H16: 99.20 | I16: 100.35 | J16: 101.05 | K16: 99.65 | L16: 97.8 | M16: 13.89016
A17: 7 | B17: ABFRL | C17: 205 | D17: 204.60 | E17: 201.50 | F17: 198.00 | G17: 194.90 | H17: 208.10 | I17: 211.20 | J17: 214.70 | K17: 207.7 | L17: 201.1 | M17: 16.49809
A18: 8 | B18: ACC | C18: 1490.05 | D18: 1503.35 | E18: 1467.70 | F18: 1445.35 | G18: 1409.70 | H18: 1525.70 | I18: 1561.35 | J18: 1583.70 | K18: 1539 | L18: 1481 | M18: 8.15286
A19: 9 | B19: ADANIPORTS | C19: 361.1 | D19: 366.58 | E19: 353.67 | F19: 346.23 | G19: 333.32 | H19: 374.02 | I19: 386.93 | J19: 394.37 | K19: 379.5 | L19: 359.15 | M19: 109.09545
A20: 10 | B20: ADANIPOWER | C20: 50.35 | D20: 50.98 | E20: 49.37 | F20: 48.38 | G20: 46.77 | H20: 51.97 | I20: 53.58 | J20: 54.57 | K20: 52.6 | L20: 50 | M20: 108.31915
A21: 11 | B21: ADANITRANS | C21: 208.35 | D21: 210.93 | E21: 204.67 | F21: 200.98 | G21: 194.72 | H21: 214.62 | I21: 220.88 | J21: 224.57 | K21: 217.2 | L21: 207.25 | M21: 1.85052
A22: 12 | B22: ADVENZYMES | C22: 182.05 | D22: 181.30 | E22: 177.15 | F22: 172.25 | G22: 168.10 | H22: 186.20 | I22: 190.35 | J22: 195.25 | K22: 185.45 | L22: 176.4 | M22: 1.08069
A23: 13 | B23: AEGISCHEM | C23: 186.65 | D23: 188.22 | E23: 183.93 | F23: 181.22 | G23: 176.93 | H23: 190.93 | I23: 195.22 | J23: 197.93 | K23: 192.5 | L23: 185.5 | M23: 1.64624
A24: 14 | B24: AIAENG | C24: 1612.05 | D24: 1621.40 | E24: 1597.85 | F24: 1583.65 | G24: 1560.10 | H24: 1635.60 | I24: 1659.15 | J24: 1673.35 | K24: 1644.95 | L24: 1607.2 | M24: 0.361
A25: 15 | B25: AJANTPHARM | C25: 1132.45 | D25: 1140.85 | E25: 1116.60 | F25: 1100.75 | G25: 1076.50 | H25: 1156.70 | I25: 1180.95 | J25: 1196.80 | K25: 1165.1 | L25: 1125 | M25: 3.41783
A26: 16 | B26: AKZOINDIA | C26: 1634.95 | D26: 1624.77 | E26: 1612.13 | F26: 1589.32 | G26: 1576.68 | H26: 1647.58 | I26: 1660.22 | J26: 1683.03 | K26: 1637.4 | L26: 1601.95 | M26: 0.26536
A27: 17 | B27: ALBK | C27: 46.65 | D27: 46.85 | E27: 46.00 | F27: 45.35 | G27: 44.50 | H27: 47.50 | I27: 48.35 | J27: 49.00 | K27: 47.7 | L27: 46.2 | M27: 82.47101
A28: 18 | B28: ALKEM | C28: 1852.35 | D28: 1858.82 | E28: 1843.63 | F28: 1834.92 | G28: 1819.73 | H28: 1867.53 | I28: 1882.72 | J28: 1891.43 | K28: 1874 | L28: 1850.1 | M28: 0.31556
A29: 19 | B29: ALLCARGO | C29: 112.05 | D29: 112.20 | E29: 109.95 | F29: 107.85 | G29: 105.60 | H29: 114.30 | I29: 116.55 | J29: 118.65 | K29: 114.45 | L29: 110.1 | M29: 1.73175
A30: 20 | B30: AMARAJABAT | C30: 743.25 | D30: 743.40 | E30: 736.85 | F30: 730.45 | G30: 723.90 | H30: 749.80 | I30: 756.35 | J30: 762.75 | K30: 749.95 | L30: 737 | M30: 5.38998
A31: 21 | B31: AMBUJACEM | C31: 220.7 | D31: 222.07 | E31: 217.93 | F31: 215.17 | G31: 211.03 | H31: 224.83 | I31: 228.97 | J31: 231.73 | K31: 226.2 | L31: 219.3 | M31: 16.77202
A32: 22 | B32: ANDHRABANK | C32: 29.45 | D32: 29.45 | E32: 29.10 | F32: 28.75 | G32: 28.40 | H32: 29.80 | I32: 30.15 | J32: 30.50 | K32: 29.8 | L32: 29.1 | M32: 12.75392
A33: 23 | B33: APLAPOLLO | C33: 1170.25 | D33: 1174.75 | E33: 1154.50 | F33: 1138.75 | G33: 1118.50 | H33: 1190.50 | I33: 1210.75 | J33: 1226.50 | K33: 1195 | L33: 1159 | M33: 0.09951
A34: 24 | B34: APLLTD | C34: 579.05 | D34: 584.75 | E34: 569.40 | F34: 559.75 | G34: 544.40 | H34: 594.40 | I34: 609.75 | J34: 619.40 | K34: 600.1 | L34: 575.1 | M34: 0.43843
A35: 25 | B35: APOLLOHOSP | C35: 1252.4 | D35: 1259.97 | E35: 1236.48 | F35: 1220.57 | G35: 1197.08 | H35: 1275.88 | I35: 1299.37 | J35: 1315.28 | K35: 1283.45 | L35: 1244.05 | M35: 4.50623
A36: 26 | B36: APOLLOTYRE | C36: 233.4 | D36: 236.17 | E36: 229.33 | F36: 225.27 | G36: 218.43 | H36: 240.23 | I36: 247.07 | J36: 251.13 | K36: 243 | L36: 232.1 | M36: 39.65309
A37: 27 | B37: ARVIND | C37: 98.6 | D37: 99.07 | E37: 97.63 | F37: 96.67 | G37: 95.23 | H37: 100.03 | I37: 101.47 | J37: 102.43 | K37: 100.5 | L37: 98.1 | M37: 33.37926
A38: 28 | B38: ASAHIINDIA | C38: 253.2 | D38: 255.22 | E38: 249.33 | F38: 245.47 | G38: 239.58 | H38: 259.08 | I38: 264.97 | J38: 268.83 | K38: 261.1 | L38: 251.35 | M38: 0.15927
A39: 29 | B39: ASHOKA | C39: 125.95 | D39: 127.57 | E39: 123.38 | F39: 120.82 | G39: 116.63 | H39: 130.13 | I39: 134.32 | J39: 136.88 | K39: 131.75 | L39: 125 | M39: 1.16232
A40: 30 | B40: ASHOKLEY | C40: 105.35 | D40: 105.30 | E40: 103.60 | F40: 101.85 | G40: 100.15 | H40: 107.05 | I40: 108.75 | J40: 110.50 | K40: 107 | L40: 103.55 | M40: 190.03345
A41: 31 | B41: ASIANPAINT | C41: 1388.2 | D41: 1401.47 | E41: 1369.03 | F41: 1349.87 | G41: 1317.43 | H41: 1420.63 | I41: 1453.07 | J41: 1472.23 | K41: 1433.9 | L41: 1382.3 | M41: 20.98064
A42: 32 | B42: ASTRAL | C42: 1087 | D42: 1085.92 | E42: 1076.08 | F42: 1065.17 | G42: 1055.33 | H42: 1096.83 | I42: 1106.67 | J42: 1117.58 | K42: 1095.75 | L42: 1075 | M42: 0.14565
A43: 33 | B43: ATUL | C43: 3456.75 | D43: 3456.27 | E43: 3412.53 | F43: 3368.32 | G43: 3324.58 | H43: 3500.48 | I43: 3544.22 | J43: 3588.43 | K43: 3500 | L43: 3412.05 | M43: 0.09416
A44: 34 | B44: AUBANK | C44: 636.85 | D44: 629.65 | E44: 614.40 | F44: 591.95 | G44: 576.70 | H44: 652.10 | I44: 667.35 | J44: 689.80 | K44: 644.9 | L44: 607.2 | M44: 22.00016
A45: 35 | B45: AUROPHARMA | C45: 720.65 | D45: 722.43 | E45: 712.37 | F45: 704.08 | G45: 694.02 | H45: 730.72 | I45: 740.78 | J45: 749.07 | K45: 732.5 | L45: 714.15 | M45: 24.9534
A46: 36 | B46: AVANTIFEED | C46: 392.05 | D46: 397.35 | E46: 383.70 | F46: 375.35 | G46: 361.70 | H46: 405.70 | I46: 419.35 | J46: 427.70 | K46: 411 | L46: 389 | M46: 5.35596
A47: 37 | B47: AXISBANK | C47: 620.85 | D47: 625.12 | E47: 612.38 | F47: 603.92 | G47: 591.18 | H47: 633.58 | I47: 646.32 | J47: 654.78 | K47: 637.85 | L47: 616.65 | M47: 107.15457
A48: 38 | B48: BAJAJ-AUTO | C48: 2808.45 | D48: 2838.15 | E48: 2771.30 | F48: 2734.15 | G48: 2667.30 | H48: 2875.30 | I48: 2942.15 | J48: 2979.30 | K48: 2905 | L48: 2801 | M48: 3.86367
A49: 39 | B49: BAJAJCORP | C49: 361.1 | D49: 367.50 | E49: 353.60 | F49: 346.10 | G49: 332.20 | H49: 375.00 | I49: 388.90 | J49: 396.40 | K49: 381.4 | L49: 360 | M49: 0.41013
A50: 40 | B50: BAJAJELEC | C50: 506.5 | D50: 512.02 | E50: 497.53 | F50: 488.57 | G50: 474.08 | H50: 520.98 | I50: 535.47 | J50: 544.43 | K50: 526.5 | L50: 503.05 | M50: 2.27073
A51: 41 | B51: BAJAJFINSV | C51: 6360.1 | D51: 6385.40 | E51: 6270.80 | F51: 6181.50 | G51: 6066.90 | H51: 6474.70 | I51: 6589.30 | J51: 6678.60 | K51: 6500 | L51: 6296.1 | M51: 3.09851
A52: 42 | B52: BAJAJHIND | C52: 8.95 | D52: 9.03 | E52: 8.82 | F52: 8.68 | G52: 8.47 | H52: 9.17 | I52: 9.38 | J52: 9.52 | K52: 9.25 | L52: 8.9 | M52: 23.69031
A53: 43 | B53: BAJAJHLDNG | C53: 2940.3 | D53: 2948.43 | E53: 2906.87 | F53: 2873.43 | G53: 2831.87 | H53: 2981.87 | I53: 3023.43 | J53: 3056.87 | K53: 2990 | L53: 2915 | M53: 0.40029
A54: 44 | B54: BAJFINANCE | C54: 2591.25 | D54: 2582.62 | E54: 2541.33 | F54: 2491.42 | G54: 2450.13 | H54: 2632.53 | I54: 2673.82 | J54: 2723.73 | K54: 2623.9 | L54: 2532.7 | M54: 30.42464
A55: 45 | B55: BALKRISIND | C55: 928.8 | D55: 936.62 | E55: 917.23 | F55: 905.67 | G55: 886.28 | H55: 948.18 | I55: 967.57 | J55: 979.13 | K55: 956 | L55: 925.05 | M55: 6.95768
A56: 46 | B56: BALLARPUR | C56: 5.3 | D56: 5.35 | E56: 5.10 | F56: 4.90 | G56: 4.65 | H56: 5.55 | I56: 5.80 | J56: 6.00 | K56: 5.6 | L56: 5.15 | M56: 5.81695
A57: 47 | B57: BALMLAWRIE | C57: 200.65 | D57: 202.18 | E57: 197.72 | F57: 194.78 | G57: 190.32 | H57: 205.12 | I57: 209.58 | J57: 212.52 | K57: 206.65 | L57: 199.25 | M57: 0.46566
A58: 48 | B58: BALRAMCHIN | C58: 100.7 | D58: 102.62 | E58: 98.33 | F58: 95.97 | G58: 91.68 | H58: 104.98 | I58: 109.27 | J58: 111.63 | K58: 106.9 | L58: 100.25 | M58: 28.1744
A59: 49 | B59: BANKBARODA | C59: 115.1 | D59: 115.25 | E59: 114.10 | F59: 113.10 | G59: 111.95 | H59: 116.25 | I59: 117.40 | J59: 118.40 | K59: 116.4 | L59: 114.25 | M59: 133.16969
A60: 50 | B60: BANKINDIA | C60: 97.9 | D60: 97.52 | E60: 95.78 | F60: 93.67 | G60: 91.93 | H60: 99.63 | I60: 101.37 | J60: 103.48 | K60: 99.25 | L60: 95.4 | M60: 131.58696
A61: 51 | B61: BASF | C61: 1595.55 | D61: 1585.87 | E61: 1571.73 | F61: 1547.92 | G61: 1533.78 | H61: 1609.68 | I61: 1623.82 | J61: 1647.63 | K61: 1600 | L61: 1562.05 | M61: 0.12265
A62: 52 | B62: BATAINDIA | C62: 1118.7 | D62: 1119.97 | E62: 1100.93 | F62: 1083.17 | G62: 1064.13 | H62: 1137.73 | I62: 1156.77 | J62: 1174.53 | K62: 1139 | L62: 1102.2 | M62: 18.0217
A63: 53 | B63: BBTC | C63: 1305.3 | D63: 1319.12 | E63: 1286.23 | F63: 1267.17 | G63: 1234.28 | H63: 1338.18 | I63: 1371.07 | J63: 1390.13 | K63: 1352 | L63: 1300.05 | M63: 0.68238
A64: 54 | B64: BEL | C64: 88.4 | D64: 90.40 | E64: 86.00 | F64: 83.60 | G64: 79.20 | H64: 92.80 | I64: 97.20 | J64: 99.60 | K64: 94.8 | L64: 88 | M64: 377.835
A65: 55 | B65: BEML | C65: 887.45 | D65: 905.02 | E65: 864.13 | F65: 840.82 | G65: 799.93 | H65: 928.33 | I65: 969.22 | J65: 992.53 | K65: 945.9 | L65: 881.7 | M65: 125.61363
A66: 56 | B66: BERGEPAINT | C66: 330.65 | D66: 334.00 | E66: 326.25 | F66: 321.85 | G66: 314.10 | H66: 338.40 | I66: 346.15 | J66: 350.55 | K66: 341.75 | L66: 329.6 | M66: 4.44971
A67: 57 | B67: BFUTILITIE | C67: 208.9 | D67: 210.65 | E67: 206.05 | F67: 203.20 | G67: 198.60 | H67: 213.50 | I67: 218.10 | J67: 220.95 | K67: 215.25 | L67: 207.8 | M67: 1.87017
A68: 58 | B68: BGRENERGY | C68: 61.15 | D68: 61.92 | E68: 60.03 | F68: 58.92 | G68: 57.03 | H68: 63.03 | I68: 64.92 | J68: 66.03 | K68: 63.8 | L68: 60.8 | M68: 0.74015
A69: 59 | B69: BHARATFIN | C69: 999 | D69: 1008.73 | E69: 985.47 | F69: 971.93 | G69: 948.67 | H69: 1022.27 | I69: 1045.53 | J69: 1059.07 | K69: 1032 | L69: 995.2 | M69: 5.26432
A70: 60 | B70: BHARATFORG | C70: 501.55 | D70: 509.18 | E70: 492.37 | F70: 483.18 | G70: 466.37 | H70: 518.37 | I70: 535.18 | J70: 544.37 | K70: 526 | L70: 500 | M70: 18.69274
A71: 61 | B71: BHARTIARTL | C71: 307.9 | D71: 312.75 | E71: 300.75 | F71: 293.60 | G71: 281.60 | H71: 319.90 | I71: 331.90 | J71: 339.05 | K71: 324.75 | L71: 305.6 | M71: 111.43116
A72: 62 | B72: BHEL | C72: 69.85 | D72: 70.38 | E72: 68.87 | F72: 67.88 | G72: 66.37 | H72: 71.37 | I72: 72.88 | J72: 73.87 | K72: 71.9 | L72: 69.4 | M72: 158.51379
A73: 63 | B73: BIOCON | C73: 620.9 | D73: 627.20 | E73: 611.40 | F73: 601.90 | G73: 586.10 | H73: 636.70 | I73: 652.50 | J73: 662.00 | K73: 643 | L73: 617.7 | M73: 14.50234
A74: 64 | B74: BIRLACORPN | C74: 613.95 | D74: 618.32 | E74: 607.63 | F74: 601.32 | G74: 590.63 | H74: 624.63 | I74: 635.32 | J74: 641.63 | K74: 629 | L74: 612 | M74: 0.17538
A75: 65 | B75: BLISSGVS | C75: 144.15 | D75: 146.08 | E75: 140.17 | F75: 136.18 | G75: 130.27 | H75: 150.07 | I75: 155.98 | J75: 159.97 | K75: 152 | L75: 142.1 | M75: 6.35307
A76: 66 | B76: BLUEDART | C76: 3167.45 | D76: 3154.47 | E76: 3125.98 | F76: 3084.52 | G76: 3056.03 | H76: 3195.93 | I76: 3224.42 | J76: 3265.88 | K76: 3182.95 | L76: 3113 | M76: 0.03765
A77: 67 | B77: BLUESTARCO | C77: 627.55 | D77: 632.50 | E77: 620.10 | F77: 612.65 | G77: 600.25 | H77: 639.95 | I77: 652.35 | J77: 659.80 | K77: 644.9 | L77: 625.05 | M77: 0.16971
A78: 68 | B78: BOMDYEING | C78: 114.2 | D78: 115.17 | E78: 111.53 | F78: 108.87 | G78: 105.23 | H78: 117.83 | I78: 121.47 | J78: 124.13 | K78: 118.8 | L78: 112.5 | M78: 18.54953
A79: 69 | B79: BOSCHLTD | C79: 19898.2 | D79: 19790.47 | E79: 19590.93 | F79: 19283.67 | G79: 19084.13 | H79: 20097.73 | I79: 20297.27 | J79: 20604.53 | K79: 19990 | L79: 19483.2 | M79: 0.31018
A80: 70 | B80: BPCL | C80: 374.65 | D80: 372.95 | E80: 369.80 | F80: 364.95 | G80: 361.80 | H80: 377.80 | I80: 380.95 | J80: 385.80 | K80: 376.1 | L80: 368.1 | M80: 52.32821
A81: 71 | B81: BRFL | C81: 9.95 | D81: 10.15 | E81: 9.70 | F81: 9.45 | G81: 9.00 | H81: 10.40 | I81: 10.85 | J81: 11.10 | K81: 10.6 | L81: 9.9 | M81: 2.91265
A82: 72 | B82: BRIGADE | C82: 205.9 | D82: 206.22 | E82: 203.43 | F82: 200.97 | G82: 198.18 | H82: 208.68 | I82: 211.47 | J82: 213.93 | K82: 209 | L82: 203.75 | M82: 0.19288
A83: 73 | B83: BRITANNIA | C83: 3119.8 | D83: 3142.30 | E83: 3084.60 | F83: 3049.40 | G83: 2991.70 | H83: 3177.50 | I83: 3235.20 | J83: 3270.40 | K83: 3200 | L83: 3107.1 | M83: 3.59201
A84: 74 | B84: BSE | C84: 584.25 | D84: 588.08 | E84: 573.17 | F84: 562.08 | G84: 547.17 | H84: 599.17 | I84: 614.08 | J84: 625.17 | K84: 603 | L84: 577 | M84: 3.1906
A85: 75 | B85: CADILAHC | C85: 341.9 | D85: 343.32 | E85: 338.78 | F85: 335.67 | G85: 331.13 | H85: 346.43 | I85: 350.97 | J85: 354.08 | K85: 347.85 | L85: 340.2 | M85: 7.19385
A86: 77 | B86: CANBK | C86: 265.5 | D86: 267.20 | E86: 262.15 | F86: 258.80 | G86: 253.75 | H86: 270.55 | I86: 275.60 | J86: 278.95 | K86: 272.25 | L86: 263.85 | M86: 45.09612
A87: 78 | B87: CANFINHOME | C87: 278.15 | D87: 283.72 | E87: 270.43 | F87: 262.72 | G87: 249.43 | H87: 291.43 | I87: 304.72 | J87: 312.43 | K87: 297 | L87: 276 | M87: 24.72656
A88: 79 | B88: CAPF | C88: 593.05 | D88: 598.55 | E88: 584.50 | F88: 575.95 | G88: 561.90 | H88: 607.10 | I88: 621.15 | J88: 629.70 | K88: 612.6 | L88: 590 | M88: 13.59566
A89: 80 | B89: CAPLIPOINT | C89: 384.25 | D89: 385.82 | E89: 380.13 | F89: 376.02 | G89: 370.33 | H89: 389.93 | I89: 395.62 | J89: 399.73 | K89: 391.5 | L89: 381.7 | M89: 0.15019
A90: 81 | B90: CARBORUNIV | C90: 356.9 | D90: 355.32 | E90: 351.63 | F90: 346.37 | G90: 342.68 | H90: 360.58 | I90: 364.27 | J90: 369.53 | K90: 359 | L90: 350.05 | M90: 0.48097
A91: 82 | B91: CARERATING | C91: 978.8 | D91: 975.60 | E91: 968.20 | F91: 957.60 | G91: 950.20 | H91: 986.20 | I91: 993.60 | J91: 1004.20 | K91: 983 | L91: 965 | M91: 1.43426
A92: 83 | B92: CASTROLIND | C92: 152.8 | D92: 153.92 | E92: 151.18 | F92: 149.57 | G92: 146.83 | H92: 155.53 | I92: 158.27 | J92: 159.88 | K92: 156.65 | L92: 152.3 | M92: 7.56301
A93: 84 | B93: CCL | C93: 271.05 | D93: 271.70 | E93: 269.40 | F93: 267.75 | G93: 265.45 | H93: 273.35 | I93: 275.65 | J93: 277.30 | K93: 274 | L93: 270.05 | M93: 0.17016
A94: 85 | B94: CDSL | C94: 225.1 | D94: 227.77 | E94: 221.83 | F94: 218.57 | G94: 212.63 | H94: 231.03 | I94: 236.97 | J94: 240.23 | K94: 233.7 | L94: 224.5 | M94: 3.75697
A95: 86 | B95: CEATLTD | C95: 1319.85 | D95: 1330.03 | E95: 1297.97 | F95: 1276.08 | G95: 1244.02 | H95: 1351.92 | I95: 1383.98 | J95: 1405.87 | K95: 1362.1 | L95: 1308.15 | M95: 5.73404
A96: 87 | B96: CENTRALBK | C96: 35.65 | D96: 35.42 | E96: 34.93 | F96: 34.22 | G96: 33.73 | H96: 36.13 | I96: 36.62 | J96: 37.33 | K96: 35.9 | L96: 34.7 | M96: 14.45209
A97: 88 | B97: CENTURYPLY | C97: 178.6 | D97: 180.17 | E97: 175.88 | F97: 173.17 | G97: 168.88 | H97: 182.88 | I97: 187.17 | J97: 189.88 | K97: 184.45 | L97: 177.45 | M97: 1.31664
A98: 89 | B98: CENTURYTEX | C98: 913.15 | D98: 923.40 | E98: 893.95 | F98: 874.75 | G98: 845.30 | H98: 942.60 | I98: 972.05 | J98: 991.25 | K98: 952.85 | L98: 904.2 | M98: 6.30706
A99: 90 | B99: CERA | C99: 2422.3 | D99: 2424.48 | E99: 2400.87 | F99: 2379.43 | G99: 2355.82 | H99: 2445.92 | I99: 2469.53 | J99: 2490.97 | K99: 2448.1 | L99: 2403.05 | M99: 0.01795
A100: 91 | B100: CGPOWER | C100: 43.45 | D100: 42.48 | E100: 41.17 | F100: 38.88 | G100: 37.57 | H100: 44.77 | I100: 46.08 | J100: 48.37 | K100: 43.8 | L100: 40.2 | M100: 239.90556
A101: 92 | B101: CHAMBLFERT | C101: 144.65 | D101: 145.28 | E101: 142.12 | F101: 139.58 | G101: 136.42 | H101: 147.82 | I101: 150.98 | J101: 153.52 | K101: 148.45 | L101: 142.75 | M101: 2.93677
A102: 93 | B102: CHENNPETRO | C102: 279.95 | D102: 283.42 | E102: 275.48 | F102: 271.02 | G102: 263.08 | H102: 287.88 | I102: 295.82 | J102: 300.28 | K102: 291.35 | L102: 278.95 | M102: 6.82134
A103: 94 | B103: CHOLAFIN | C103: 1223.05 | D103: 1238.78 | E103: 1202.87 | F103: 1182.68 | G103: 1146.77 | H103: 1258.97 | I103: 1294.88 | J103: 1315.07 | K103: 1274.7 | L103: 1218.6 | M103: 2.7911
A104: 95 | B104: CIPLA | C104: 516.65 | D104: 518.30 | E104: 512.65 | F104: 508.65 | G104: 503.00 | H104: 522.30 | I104: 527.95 | J104: 531.95 | K104: 523.95 | L104: 514.3 | M104: 17.5871
A105: 96 | B105: COALINDIA | C105: 252.75 | D105: 251.08 | E105: 248.82 | F105: 244.88 | G105: 242.62 | H105: 255.02 | I105: 257.28 | J105: 261.22 | K105: 253.35 | L105: 247.15 | M105: 128.02364
A106: 97 | B106: COCHINSHIP | C106: 383.65 | D106: 386.03 | E106: 380.62 | F106: 377.58 | G106: 372.17 | H106: 389.07 | I106: 394.48 | J106: 397.52 | K106: 391.45 | L106: 383 | M106: 0.91174
A107: 98 | B107: COFFEEDAY | C107: 274.15 | D107: 275.07 | E107: 269.33 | F107: 264.52 | G107: 258.78 | H107: 279.88 | I107: 285.62 | J107: 290.43 | K107: 280.8 | L107: 270.25 | M107: 0.75825
A108: 99 | B108: COLPAL | C108: 1327.05 | D108: 1328.98 | E108: 1318.17 | F108: 1309.28 | G108: 1298.47 | H108: 1337.87 | I108: 1348.68 | J108: 1357.57 | K108: 1339.8 | L108: 1320.1 | M108: 4.48
A109: 100 | B109: CONCOR | C109: 656.6 | D109: 659.98 | E109: 649.97 | F109: 643.33 | G109: 633.32 | H109: 666.62 | I109: 676.63 | J109: 683.27 | K109: 670 | L109: 653.35 | M109: 5.19077
A110: 101 | B110: COROMANDEL | C110: 445.8 | D110: 446.18 | E110: 443.37 | F110: 440.93 | G110: 438.12 | H110: 448.62 | I110: 451.43 | J110: 453.87 | K110: 449 | L110: 443.75 | M110: 0.84096
A111: 102 | B111: COX&KINGS | C111: 166.05 | D111: 165.93 | E111: 163.42 | F111: 160.78 | G111: 158.27 | H111: 168.57 | I111: 171.08 | J111: 173.72 | K111: 168.45 | L111: 163.3 | M111: 0.80191
A112: 103 | B112: CRISIL | C112: 1604.3 | D112: 1609.12 | E112: 1588.28 | F112: 1572.27 | G112: 1551.43 | H112: 1625.13 | I112: 1645.97 | J112: 1661.98 | K112: 1629.95 | L112: 1593.1 | M112: 0.0261
A113: 104 | B113: CROMPTON | C113: 223.1 | D113: 224.58 | E113: 220.17 | F113: 217.23 | G113: 212.82 | H113: 227.52 | I113: 231.93 | J113: 234.87 | K113: 229 | L113: 221.65 | M113: 2.37475
A114: 105 | B114: CUB | C114: 193.95 | D114: 191.38 | E114: 187.77 | F114: 181.58 | G114: 177.97 | H114: 197.57 | I114: 201.18 | J114: 207.37 | K114: 195 | L114: 185.2 | M114: 16.31079
A115: 106 | B115: CUMMINSIND | C115: 790.95 | D115: 804.67 | E115: 772.33 | F115: 753.72 | G115: 721.38 | H115: 823.28 | I115: 855.62 | J115: 874.23 | K115: 837 | L115: 786.05 | M115: 4.79435
A116: 107 | B116: CYIENT | C116: 616.95 | D116: 619.63 | E116: 612.32 | F116: 607.68 | G116: 600.37 | H116: 624.27 | I116: 631.58 | J116: 636.22 | K116: 626.95 | L116: 615 | M116: 0.75328
A117: 108 | B117: DABUR | C117: 437.75 | D117: 440.15 | E117: 431.80 | F117: 425.85 | G117: 417.50 | H117: 446.10 | I117: 454.45 | J117: 460.40 | K117: 448.5 | L117: 434.2 | M117: 21.30122
A118: 109 | B118: DBCORP | C118: 172.4 | D118: 174.62 | E118: 169.23 | F118: 166.07 | G118: 160.68 | H118: 177.78 | I118: 183.17 | J118: 186.33 | K118: 180 | L118: 171.45 | M118: 0.85452
A119: 110 | B119: DBL | C119: 424.15 | D119: 430.27 | E119: 414.88 | F119: 405.62 | G119: 390.23 | H119: 439.53 | I119: 454.92 | J119: 464.18 | K119: 445.65 | L119: 421 | M119: 2.36688
A120: 111 | B120: DBREALTY | C120: 27.8 | D120: 28.00 | E120: 27.00 | F120: 26.20 | G120: 25.20 | H120: 28.80 | I120: 29.80 | J120: 30.60 | K120: 29 | L120: 27.2 | M120: 7.96634
A121: 112 | B121: DCAL | C121: 229.5 | D121: 228.98 | E121: 225.47 | F121: 221.43 | G121: 217.92 | H121: 233.02 | I121: 236.53 | J121: 240.57 | K121: 232.5 | L121: 224.95 | M121: 0.63668
A122: 113 | B122: DCBBANK | C122: 165 | D122: 165.77 | E122: 161.78 | F122: 158.57 | G122: 154.58 | H122: 168.98 | I122: 172.97 | J122: 176.18 | K122: 169.75 | L122: 162.55 | M122: 17.44205
A123: 114 | B123: DCMSHRIRAM | C123: 337.9 | D123: 342.17 | E123: 329.83 | F123: 321.77 | G123: 309.43 | H123: 350.23 | I123: 362.57 | J123: 370.63 | K123: 354.5 | L123: 334.1 | M123: 1.04833
A124: 115 | B124: DEEPAKFERT | C124: 150.2 | D124: 151.87 | E124: 147.58 | F124: 144.97 | G124: 140.68 | H124: 154.48 | I124: 158.77 | J124: 161.38 | K124: 156.15 | L124: 149.25 | M124: 2.52152
A125: 116 | B125: DELTACORP | C125: 249.25 | D125: 251.50 | E125: 245.90 | F125: 242.55 | G125: 236.95 | H125: 254.85 | I125: 260.45 | J125: 263.80 | K125: 257.1 | L125: 248.15 | M125: 11.2341
A126: 117 | B126: DEN | C126: 69.6 | D126: 69.70 | E126: 69.10 | F126: 68.60 | G126: 68.00 | H126: 70.20 | I126: 70.80 | J126: 71.30 | K126: 70.3 | L126: 69.2 | M126: 3.57884
A127: 118 | B127: DENABANK | C127: 17.05 | D127: 17.10 | E127: 16.95 | F127: 16.85 | G127: 16.70 | H127: 17.20 | I127: 17.35 | J127: 17.45 | K127: 17.25 | L127: 17 | M127: 18.163
A128: 119 | B128: DHFL | C128: 240.65 | D128: 239.57 | E128: 233.43 | F128: 226.22 | G128: 220.08 | H128: 246.78 | I128: 252.92 | J128: 260.13 | K128: 245.7 | L128: 232.35 | M128: 204.83987
A129: 120 | B129: DISHTV | C129: 38.75 | D129: 39.02 | E129: 38.23 | F129: 37.72 | G129: 36.93 | H129: 39.53 | I129: 40.32 | J129: 40.83 | K129: 39.8 | L129: 38.5 | M129: 43.87274
A130: 121 | B130: DIVISLAB | C130: 1474.8 | D130: 1488.00 | E130: 1457.00 | F130: 1439.20 | G130: 1408.20 | H130: 1505.80 | I130: 1536.80 | J130: 1554.60 | K130: 1519 | L130: 1470.2 | M130: 5.52808
A131: 122 | B131: DIXON | C131: 2144.95 | D131: 2145.67 | E131: 2106.28 | F131: 2067.62 | G131: 2028.23 | H131: 2184.33 | I131: 2223.72 | J131: 2262.38 | K131: 2185.05 | L131: 2107 | M131: 0.43062
A132: 123 | B132: DLF | C132: 187.1 | D132: 188.02 | E132: 184.23 | F132: 181.37 | G132: 177.58 | H132: 190.88 | I132: 194.67 | J132: 197.53 | K132: 191.8 | L132: 185.15 | M132: 82.2356
A133: 124 | B133: DMART | C133: 1648.1 | D133: 1634.95 | E133: 1613.15 | F133: 1578.20 | G133: 1556.40 | H133: 1669.90 | I133: 1691.70 | J133: 1726.65 | K133: 1656.75 | L133: 1600 | M133: 29.68587
A134: 125 | B134: DREDGECORP | C134: 357.55 | D134: 361.08 | E134: 351.47 | F134: 345.38 | G134: 335.77 | H134: 367.17 | I134: 376.78 | J134: 382.87 | K134: 370.7 | L134: 355 | M134: 1.61189
A135: 126 | B135: DRREDDY | C135: 2608.05 | D135: 2600.82 | E135: 2585.33 | F135: 2562.62 | G135: 2547.13 | H135: 2623.53 | I135: 2639.02 | J135: 2661.73 | K135: 2616.3 | L135: 2578.1 | M135: 7.47959
A136: 127 | B136: ECLERX | C136: 1074.7 | D136: 1087.88 | E136: 1046.82 | F136: 1018.93 | G136: 977.87 | H136: 1115.77 | I136: 1156.83 | J136: 1184.72 | K136: 1128.95 | L136: 1060 | M136: 0.09937
A137: 128 | B137: EDELWEISS | C137: 191.1 | D137: 193.05 | E137: 185.20 | F137: 179.30 | G137: 171.45 | H137: 198.95 | I137: 206.80 | J137: 212.70 | K137: 200.9 | L137: 187.15 | M137: 22.87045
A138: 129 | B138: EICHERMOT | C138: 23597.6 | D138: 23732.90 | E138: 23275.80 | F138: 22954.00 | G138: 22496.90 | H138: 24054.70 | I138: 24511.80 | J138: 24833.60 | K138: 24190 | L138: 23411.1 | M138: 0.57989
A139: 130 | B139: EIDPARRY | C139: 207.25 | D139: 209.05 | E139: 204.60 | F139: 201.95 | G139: 197.50 | H139: 211.70 | I139: 216.15 | J139: 218.80 | K139: 213.5 | L139: 206.4 | M139: 0.98926
A140: 131 | B140: EIHOTEL | C140: 192.35 | D140: 193.72 | E140: 190.83 | F140: 189.32 | G140: 186.43 | H140: 195.23 | I140: 198.12 | J140: 199.63 | K140: 196.6 | L140: 192.2 | M140: 0.87258
A141: 132 | B141: EMAMILTD | C141: 412.35 | D141: 417.80 | E141: 402.75 | F141: 393.15 | G141: 378.10 | H141: 427.40 | I141: 442.45 | J141: 452.05 | K141: 432.85 | L141: 408.2 | M141: 3.9233
A142: 133 | B142: ENDURANCE | C142: 1180.6 | D142: 1172.37 | E142: 1160.08 | F142: 1139.57 | G142: 1127.28 | H142: 1192.88 | I142: 1205.17 | J142: 1225.68 | K142: 1184.65 | L142: 1151.85 | M142: 0.13016
A143: 134 | B143: ENGINERSIN | C143: 123.75 | D143: 123.87 | E143: 122.03 | F143: 120.32 | G143: 118.48 | H143: 125.58 | I143: 127.42 | J143: 129.13 | K143: 125.7 | L143: 122.15 | M143: 15.05032
A144: 135 | B144: EQUITAS | C144: 121.9 | D144: 123.38 | E144: 119.52 | F144: 117.13 | G144: 113.27 | H144: 125.77 | I144: 129.63 | J144: 132.02 | K144: 127.25 | L144: 121 | M144: 41.99869
A145: 136 | B145: ERIS | C145: 677.3 | D145: 676.52 | E145: 667.98 | F145: 658.67 | G145: 650.13 | H145: 685.83 | I145: 694.37 | J145: 703.68 | K145: 685.05 | L145: 667.2 | M145: 0.0538
A146: 137 | B146: EROSMEDIA | C146: 87.5 | D146: 87.92 | E146: 85.38 | F146: 83.27 | G146: 80.73 | H146: 90.03 | I146: 92.57 | J146: 94.68 | K146: 90.45 | L146: 85.8 | M146: 1.93505
A147: 138 | B147: ESCORTS | C147: 684.25 | D147: 687.75 | E147: 673.10 | F147: 661.95 | G147: 647.30 | H147: 698.90 | I147: 713.55 | J147: 724.70 | K147: 702.4 | L147: 676.6 | M147: 20.6987
A148: 139 | B148: EVEREADY | C148: 189.4 | D148: 190.60 | E148: 187.85 | F148: 186.30 | G148: 183.55 | H148: 192.15 | I148: 194.90 | J148: 196.45 | K148: 193.35 | L148: 189.05 | M148: 0.70374
A149: 140 | B149: EXIDEIND | C149: 263.5 | D149: 265.53 | E149: 260.42 | F149: 257.33 | G149: 252.22 | H149: 268.62 | I149: 273.73 | J149: 276.82 | K149: 270.65 | L149: 262.45 | M149: 12.84285
A150: 141 | B150: FCONSUMER | C150: 47.95 | D150: 47.52 | E150: 46.23 | F150: 44.52 | G150: 43.23 | H150: 49.23 | I150: 50.52 | J150: 52.23 | K150: 48.8 | L150: 45.8 | M150: 25.9386
A151: 142 | B151: FEDERALBNK | C151: 92.5 | D151: 93.43 | E151: 90.87 | F151: 89.23 | G151: 86.67 | H151: 95.07 | I151: 97.63 | J151: 99.27 | K151: 96 | L151: 91.8 | M151: 155.6577
A152: 143 | B152: FINCABLES | C152: 454.15 | D152: 453.15 | E152: 448.40 | F152: 442.65 | G152: 437.90 | H152: 458.90 | I152: 463.65 | J152: 469.40 | K152: 457.9 | L152: 447.4 | M152: 1.96252
A153: 144 | B153: FINPIPE | C153: 536.05 | D153: 535.70 | E153: 531.45 | F153: 526.85 | G153: 522.60 | H153: 540.30 | I153: 544.55 | J153: 549.15 | K153: 539.95 | L153: 531.1 | M153: 0.17478
A154: 145 | B154: FLFL | C154: 403.9 | D154: 403.48 | E154: 397.97 | F154: 392.03 | G154: 386.52 | H154: 409.42 | I154: 414.93 | J154: 420.87 | K154: 409 | L154: 397.55 | M154: 0.42138
A155: 146 | B155: FSL | C155: 49.4 | D155: 49.53 | E155: 49.07 | F155: 48.73 | G155: 48.27 | H155: 49.87 | I155: 50.33 | J155: 50.67 | K155: 50 | L155: 49.2 | M155: 15.32735
A156: 147 | B156: GAIL | C156: 345.05 | D156: 347.78 | E156: 341.37 | F156: 337.68 | G156: 331.27 | H156: 351.47 | I156: 357.88 | J156: 361.57 | K156: 354.2 | L156: 344.1 | M156: 40.50832
A157: 148 | B157: GATI | C157: 86.7 | D157: 87.47 | E157: 85.03 | F157: 83.37 | G157: 80.93 | H157: 89.13 | I157: 91.57 | J157: 93.23 | K157: 89.9 | L157: 85.8 | M157: 8.61292
A158: 149 | B158: GDL | C158: 134 | D158: 134.62 | E158: 132.43 | F158: 130.87 | G158: 128.68 | H158: 136.18 | I158: 138.37 | J158: 139.93 | K158: 136.8 | L158: 133.05 | M158: 0.85463
A159: 150 | B159: GEPIL | C159: 825.05 | D159: 819.68 | E159: 811.37 | F159: 797.68 | G159: 789.37 | H159: 833.37 | I159: 841.68 | J159: 855.37 | K159: 828 | L159: 806 | M159: 0.17323
A160: 151 | B160: GESHIP | C160: 329.75 | D160: 332.02 | E160: 323.23 | F160: 316.72 | G160: 307.93 | H160: 338.53 | I160: 347.32 | J160: 353.83 | K160: 340.8 | L160: 325.5 | M160: 0.96939
A161: 152 | B161: GET&D | C161: 259.8 | D161: 260.22 | E161: 255.13 | F161: 250.47 | G161: 245.38 | H161: 264.88 | I161: 269.97 | J161: 274.63 | K161: 265.3 | L161: 255.55 | M161: 0.35847
A162: 153 | B162: GHCL | C162: 243.65 | D162: 244.85 | E162: 239.80 | F162: 235.95 | G162: 230.90 | H162: 248.70 | I162: 253.75 | J162: 257.60 | K162: 249.9 | L162: 241 | M162: 1.00007
A163: 154 | B163: GICRE | C163: 269.45 | D163: 270.52 | E163: 264.43 | F163: 259.42 | G163: 253.33 | H163: 275.53 | I163: 281.62 | J163: 286.63 | K163: 276.6 | L163: 265.5 | M163: 2.55196
A164: 155 | B164: GILLETTE | C164: 6481.3 | D164: 6486.77 | E164: 6454.53 | F164: 6427.77 | G164: 6395.53 | H164: 6513.53 | I164: 6545.77 | J164: 6572.53 | K164: 6519 | L164: 6460 | M164: 0.06312
A165: 156 | B165: GLAXO | C165: 1445.4 | D165: 1438.80 | E165: 1403.60 | F165: 1361.80 | G165: 1326.60 | H165: 1480.60 | I165: 1515.80 | J165: 1557.60 | K165: 1474 | L165: 1397 | M165: 0.20571
A166: 157 | B166: GLENMARK | C166: 672.2 | D166: 678.83 | E166: 662.97 | F166: 653.73 | G166: 637.87 | H166: 688.07 | I166: 703.93 | J166: 713.17 | K166: 694.7 | L166: 669.6 | M166: 11.19618
A167: 158 | B167: GMDCLTD | C167: 90.05 | D167: 90.17 | E167: 88.58 | F167: 87.12 | G167: 85.53 | H167: 91.63 | I167: 93.22 | J167: 94.68 | K167: 91.75 | L167: 88.7 | M167: 1.02274
A168: 159 | B168: GMRINFRA | C168: 15.9 | D168: 16.13 | E168: 15.62 | F168: 15.33 | G168: 14.82 | H168: 16.42 | I168: 16.93 | J168: 17.22 | K168: 16.65 | L168: 15.85 | M168: 121.9279
A169: 160 | B169: GNFC | C169: 349.35 | D169: 353.37 | E169: 344.08 | F169: 338.82 | G169: 329.53 | H169: 358.63 | I169: 367.92 | J169: 373.18 | K169: 362.65 | L169: 348.1 | M169: 4.53736
A170: 161 | B170: GODFRYPHLP | C170: 849.45 | D170: 866.53 | E170: 824.22 | F170: 798.98 | G170: 756.67 | H170: 891.77 | I170: 934.08 | J170: 959.32 | K170: 908.85 | L170: 841.3 | M170: 3.307
A171: 162 | B171: GODREJAGRO | C171: 508.2 | D171: 509.07 | E171: 506.13 | F171: 504.07 | G171: 501.13 | H171: 511.13 | I171: 514.07 | J171: 516.13 | K171: 512 | L171: 507 | M171: 0.54155
A172: 163 | B172: GODREJCP | C172: 802.5 | D172: 809.57 | E172: 791.43 | F172: 780.37 | G172: 762.23 | H172: 820.63 | I172: 838.77 | J172: 849.83 | K172: 827.7 | L172: 798.5 | M172: 8.73245
A173: 164 | B173: GODREJIND | C173: 522.8 | D173: 529.77 | E173: 513.03 | F173: 503.27 | G173: 486.53 | H173: 539.53 | I173: 556.27 | J173: 566.03 | K173: 546.5 | L173: 520 | M173: 3.70629
A174: 165 | B174: GODREJPROP | C174: 677.15 | D174: 679.77 | E174: 660.53 | F174: 643.92 | G174: 624.68 | H174: 696.38 | I174: 715.62 | J174: 732.23 | K174: 699 | L174: 663.15 | M174: 1.81435
A175: 166 | B175: GPPL | C175: 102.6 | D175: 102.45 | E175: 100.20 | F175: 97.80 | G175: 95.55 | H175: 104.85 | I175: 107.10 | J175: 109.50 | K175: 104.7 | L175: 100.05 | M175: 0.76861
A176: 167 | B176: GRANULES | C176: 89.85 | D176: 89.95 | E176: 88.40 | F176: 86.95 | G176: 85.40 | H176: 91.40 | I176: 92.95 | J176: 94.40 | K176: 91.5 | L176: 88.5 | M176: 8.02221
A177: 168 | B177: GRAPHITE | C177: 794.55 | D177: 804.85 | E177: 779.70 | F177: 764.85 | G177: 739.70 | H177: 819.70 | I177: 844.85 | J177: 859.70 | K177: 830 | L177: 790 | M177: 9.84426
A178: 169 | B178: GRASIM | C178: 816.4 | D178: 821.43 | E178: 808.07 | F178: 799.73 | G178: 786.37 | H178: 829.77 | I178: 843.13 | J178: 851.47 | K178: 834.8 | L178: 813.1 | M178: 24.10103
A179: 170 | B179: GREAVESCOT | C179: 120.15 | D179: 120.72 | E179: 117.78 | F179: 115.42 | G179: 112.48 | H179: 123.08 | I179: 126.02 | J179: 128.38 | K179: 123.65 | L179: 118.35 | M179: 7.80294
A180: 171 | B180: GREENPLY | C180: 139.8 | D180: 138.58 | E180: 135.32 | F180: 130.83 | G180: 127.57 | H180: 143.07 | I180: 146.33 | J180: 150.82 | K180: 141.85 | L180: 134.1 | M180: 1.14176
A181: 172 | B181: GRUH | C181: 330.05 | D181: 327.90 | E181: 320.40 | F181: 310.75 | G181: 303.25 | H181: 337.55 | I181: 345.05 | J181: 354.70 | K181: 335.4 | L181: 318.25 | M181: 19.12931
A182: 173 | B182: GSFC | C182: 110.65 | D182: 111.53 | E182: 109.32 | F182: 107.98 | G182: 105.77 | H182: 112.87 | I182: 115.08 | J182: 116.42 | K182: 113.75 | L182: 110.2 | M182: 12.69196
A183: 174 | B183: GSKCONS | C183: 7640.4 | D183: 7696.00 | E183: 7557.00 | F183: 7473.60 | G183: 7334.60 | H183: 7779.40 | I183: 7918.40 | J183: 8001.80 | K183: 7835 | L183: 7612.6 | M183: 0.10061
A184: 175 | B184: GSPL | C184: 177.7 | D184: 177.63 | E184: 175.57 | F184: 173.43 | G184: 171.37 | H184: 179.77 | I184: 181.83 | J184: 183.97 | K184: 179.7 | L184: 175.5 | M184: 5.97952
A185: 176 | B185: GUJALKALI | C185: 536.7 | D185: 540.40 | E185: 531.35 | F185: 526.00 | G185: 516.95 | H185: 545.75 | I185: 554.80 | J185: 560.15 | K185: 549.45 | L185: 535.05 | M185: 0.37596
A186: 177 | B186: GUJFLUORO | C186: 901.55 | D186: 902.85 | E186: 896.80 | F186: 892.05 | G186: 886.00 | H186: 907.60 | I186: 913.65 | J186: 918.40 | K186: 908.9 | L186: 898.1 | M186: 0.50391
A187: 178 | B187: GUJGASLTD | C187: 662.2 | D187: 668.45 | E187: 645.90 | F187: 629.60 | G187: 607.05 | H187: 684.75 | I187: 707.30 | J187: 723.60 | K187: 691 | L187: 652.15 | M187: 0.33009
A188: 179 | B188: GULFOILLUB | C188: 818.65 | D188: 821.12 | E188: 809.83 | F188: 801.02 | G188: 789.73 | H188: 829.93 | I188: 841.22 | J188: 850.03 | K188: 832.4 | L188: 812.3 | M188: 0.235
A189: 180 | B189: GVKPIL | C189: 7.95 | D189: 7.93 | E189: 7.82 | F189: 7.68 | G189: 7.57 | H189: 8.07 | I189: 8.18 | J189: 8.32 | K189: 8.05 | L189: 7.8 | M189: 14.50989
A190: 181 | B190: HATHWAY | C190: 31.05 | D190: 30.98 | E190: 30.67 | F190: 30.28 | G190: 29.97 | H190: 31.37 | I190: 31.68 | J190: 32.07 | K190: 31.3 | L190: 30.6 | M190: 17.34828
A191: 182 | B191: HATSUN | C191: 619.45 | D191: 619.65 | E191: 614.80 | F191: 610.15 | G191: 605.30 | H191: 624.30 | I191: 629.15 | J191: 633.80 | K191: 624.5 | L191: 615 | M191: 0.11679
A192: 183 | B192: HAVELLS | C192: 691.5 | D192: 699.13 | E192: 681.77 | F192: 672.03 | G192: 654.67 | H192: 708.87 | I192: 726.23 | J192: 735.97 | K192: 716.5 | L192: 689.4 | M192: 16.14901
A193: 184 | B193: HCC | C193: 11.55 | D193: 11.73 | E193: 11.27 | F193: 10.98 | G193: 10.52 | H193: 12.02 | I193: 12.48 | J193: 12.77 | K193: 12.2 | L193: 11.45 | M193: 47.30947
A194: 185 | B194: HCL-INSYS | C194: 25.7 | D194: 25.82 | E194: 25.33 | F194: 24.97 | G194: 24.48 | H194: 26.18 | I194: 26.67 | J194: 27.03 | K194: 26.3 | L194: 25.45 | M194: 6.77319
A195: 186 | B195: HCLTECH | C195: 954.45 | D195: 954.48 | E195: 944.97 | F195: 935.48 | G195: 925.97 | H195: 963.97 | I195: 973.48 | J195: 982.97 | K195: 964 | L195: 945 | M195: 52.19625
A196: 187 | B196: HDFC | C196: 1948.6 | D196: 1952.73 | E196: 1925.87 | F196: 1903.13 | G196: 1876.27 | H196: 1975.47 | I196: 2002.33 | J196: 2025.07 | K196: 1979.6 | L196: 1930 | M196: 40.16548
A197: 188 | B197: HDFCBANK | C197: 2111.15 | D197: 2123.10 | E197: 2097.10 | F197: 2083.05 | G197: 2057.05 | H197: 2137.15 | I197: 2163.15 | J197: 2177.20 | K197: 2149.1 | L197: 2109.05 | M197: 25.55077
A198: 189 | B198: HDIL | C198: 24.55 | D198: 24.65 | E198: 23.85 | F198: 23.15 | G198: 22.35 | H198: 25.35 | I198: 26.15 | J198: 26.85 | K198: 25.45 | L198: 23.95 | M198: 58.37509
A199: 190 | B199: HEG | C199: 3891.2 | D199: 3902.02 | E199: 3869.18 | F199: 3847.17 | G199: 3814.33 | H199: 3924.03 | I199: 3956.87 | J199: 3978.88 | K199: 3934.85 | L199: 3880 | M199: 1.25128
A200: 191 | B200: HEIDELBERG | C200: 155.15 | D200: 156.37 | E200: 152.88 | F200: 150.62 | G200: 147.13 | H200: 158.63 | I200: 162.12 | J200: 164.38 | K200: 159.85 | L200: 154.1 | M200: 0.97822
A201: 192 | B201: HERITGFOOD | C201: 517.25 | D201: 519.38 | E201: 510.92 | F201: 504.58 | G201: 496.12 | H201: 525.72 | I201: 534.18 | J201: 540.52 | K201: 527.85 | L201: 513.05 | M201: 0.20581
A202: 193 | B202: HEROMOTOCO | C202: 3324.15 | D202: 3334.88 | E202: 3300.77 | F202: 3277.38 | G202: 3243.27 | H202: 3358.27 | I202: 3392.38 | J202: 3415.77 | K202: 3369 | L202: 3311.5 | M202: 5.25895
A203: 194 | B203: HEXAWARE | C203: 314.75 | D203: 317.27 | E203: 310.03 | F203: 305.32 | G203: 298.08 | H203: 321.98 | I203: 329.22 | J203: 333.93 | K203: 324.5 | L203: 312.55 | M203: 11.78934
A204: 195 | B204: HFCL | C204: 20.85 | D204: 21.07 | E204: 20.43 | F204: 20.02 | G204: 19.38 | H204: 21.48 | I204: 22.12 | J204: 22.53 | K204: 21.7 | L204: 20.65 | M204: 36.73984
A205: 196 | B205: HIMATSEIDE | C205: 217.9 | D205: 216.42 | E205: 208.83 | F205: 199.77 | G205: 192.18 | H205: 225.48 | I205: 233.07 | J205: 242.13 | K205: 224 | L205: 207.35 | M205: 5.92593
A206: 197 | B206: HINDALCO | C206: 224 | D206: 224.42 | E206: 221.38 | F206: 218.77 | G206: 215.73 | H206: 227.03 | I206: 230.07 | J206: 232.68 | K206: 227.45 | L206: 221.8 | M206: 69.33691
... 304 more rows

Sheet Bulk Deals
E6: Back To Main Page
A7: Subject : | B7: BULK DEAL | D7: =Main!B10 -> 2018-12-24
A9: Date | B9: Scrip code | C9: Scrip Name | D9: Client Name | E9: Buy / Sell | F9: Quantity Traded | G9: Trade Price / Wt.Avg.trade price | H9: Exchange
A10: 2018-12-21 | B10: 540697 | C10: AMFL | D10: PARTH HITESHKUMAR SHAH | E10: BUY | F10: 72,000 | G10: 5.25 | H10: BSE
A11: 2018-12-21 | B11: 540697 | C11: AMFL | D11: TEJAS HARSHADBHAI PATEL | E11: BUY | F11: 72,000 | G11: 5.25 | H11: BSE
A12: 2018-12-21 | B12: 540697 | C12: AMFL | D12: SONIBIPINOZA | E12: SELL | F12: 72,000 | G12: 5.25 | H12: BSE
A13: 2018-12-21 | B13: 540697 | C13: AMFL | D13: HEENA SURESH DAND | E13: SELL | F13: 72,000 | G13: 5.25 | H13: BSE
A14: 2018-12-21 | B14: 531761 | C14: APOLLOPIPES | D14: HOBER MALLOW TRUST | E14: SELL | F14: 312,000 | G14: 400.01 | H14: BSE
A15: 2018-12-21 | B15: 531761 | C15: APOLLOPIPES | D15: MALABAR INDIA FUND LIMITED | E15: BUY | F15: 311,035 | G15: 400 | H15: BSE
A16: 2018-12-21 | B16: 506074 | C16: ARSHIYA | D16: MSD INDIA FUND, LTD | E16: SELL | F16: 2,691,369 | G16: 21.36 | H16: BSE
A17: 2018-12-21 | B17: 541702 | C17: ASHNI | D17: MONGHIBEN CHAMPAKLAL SHAH | E17: SELL | F17: 5,727 | G17: 7.83 | H17: BSE
A18: 2018-12-21 | B18: 541702 | C18: ASHNI | D18: MONGHIBEN CHAMPAKLAL SHAH | E18: BUY | F18: 31,692 | G18: 7.41 | H18: BSE
A19: 2018-12-21 | B19: 541702 | C19: ASHNI | D19: EAST WEST TRADELINK PRIVATE LIMITED | E19: SELL | F19: 17,969 | G19: 6.9 | H19: BSE
A20: 2018-12-21 | B20: 541702 | C20: ASHNI | D20: EAST WEST TRADELINK PRIVATE LIMITED | E20: BUY | F20: 28,009 | G20: 6.66 | H20: BSE
A21: 2018-12-21 | B21: 541702 | C21: ASHNI | D21: DAXABEN MAHENDRAKUMAR SHAH | E21: SELL | F21: 37,000 | G21: 6.57 | H21: BSE
A22: 2018-12-21 | B22: 537766 | C22: BCP | D22: HARMINDER SINGH | E22: BUY | F22: 300,000 | G22: 28.63 | H22: BSE
A23: 2018-12-21 | B23: 540061 | C23: BIGBLOC | D23: MASK INVESTMENTS LIMITED | E23: SELL | F23: 71,600 | G23: 37.4 | H23: BSE
A24: 2018-12-21 | B24: 540061 | C24: BIGBLOC | D24: RAJA RAMCHANDRA DALVI | E24: BUY | F24: 71,000 | G24: 37.39 | H24: BSE
A25: 2018-12-21 | B25: 541703 | C25: GFIL | D25: RIKHAV SECURITIES LIMITED | E25: SELL | F25: 46,400 | G25: 51.43 | H25: BSE
A26: 2018-12-21 | B26: 541703 | C26: GFIL | D26: RIKHAV SECURITIES LIMITED | E26: BUY | F26: 3,200 | G26: 51.5 | H26: BSE
A27: 2018-12-21 | B27: 541703 | C27: GFIL | D27: PJS SECURITIES LLP | E27: BUY | F27: 32,000 | G27: 51.5 | H27: BSE
A28: 2018-12-21 | B28: 539787 | C28: HCG | D28: THE PABRAI INVESTMENT FUND II LP | E28: SELL | F28: 923,000 | G28: 198.05 | H28: BSE
A29: 2018-12-21 | B29: 539787 | C29: HCG | D29: THE PABRAI INVESTMENT FUND IV LP | E29: SELL | F29: 1,208,400 | G29: 198.05 | H29: BSE
A30: 2018-12-21 | B30: 539787 | C30: HCG | D30: SUNDARAM BNP PARIBAS MUTUAL FUND | E30: BUY | F30: 1,091,191 | G30: 198.05 | H30: BSE
A31: 2018-12-21 | B31: 539224 | C31: HCKKVENTURE | D31: GOLDIE ANAND | E31: SELL | F31: 35,000 | G31: 42.75 | H31: BSE
A32: 2018-12-21 | B32: 539224 | C32: HCKKVENTURE | D32: HARISH VEERAPPA KANCHAN | E32: BUY | F32: 35,000 | G32: 42.75 | H32: BSE
A33: 2018-12-21 | B33: 535204 | C33: MUKTA | D33: KHUSHBOO VANRAJ KAHOR | E33: BUY | F33: 169220 | G33: 26.63 | H33: BSE
A34: 2018-12-21 | B34: 535204 | C34: MUKTA | D34: KHUSHBOO VANRAJ KAHOR | E34: SELL | F34: 169220 | G34: 26.85 | H34: BSE
A35: 2018-12-21 | B35: 521062 | C35: OCTAVE | D35: ASHISH PANNALAL NANDA | E35: BUY | F35: 2890000 | G35: 1.12 | H35: BSE
A36: 2018-12-21 | B36: 521062 | C36: OCTAVE | D36: ASPIRE EMERGING FUND | E36: SELL | F36: 2890000 | G36: 1.12 | H36: BSE
A37: 2018-12-21 | B37: 533317 | C37: OMKARCHEM | D37: HDFC BANK LIMITED | E37: SELL | F37: 118241 | G37: 27.24 | H37: BSE
A38: 2018-12-21 | B38: 517258 | C38: PRECISIO | D38: ASHOK KUMAR KANODIA | E38: SELL | F38: 647767 | G38: 39.8 | H38: BSE
A39: 2018-12-21 | B39: 517258 | C39: PRECISIO | D39: HARDEEP SINGH BANGA | E39: BUY | F39: 675000 | G39: 39.76 | H39: BSE
A40: 2018-12-21 | B40: 540404 | C40: PRIME | D40: AMISHABEN MANISHBHAI MEHTA | E40: SELL | F40: 30000 | G40: 95 | H40: BSE
A41: 2018-12-21 | B41: 540404 | C41: PRIME | D41: ESHA MITESH PARIKH | E41: BUY | F41: 30000 | G41: 95 | H41: BSE
A42: 2018-12-21 | B42: 512217 | C42: PRISMMEDI | D42: SURESH KUMAR . | E42: BUY | F42: 40000 | G42: 40.85 | H42: BSE
A43: 2018-12-21 | B43: 512217 | C43: PRISMMEDI | D43: MITHUN SECURITIES PRIVATE LIMITED | E43: SELL | F43: 41322 | G43: 40.85 | H43: BSE
A44: 2018-12-21 | B44: 542145 | C44: RONI | D44: ARYAMAN BROKING LIMITED | E44: SELL | F44: 6,000 | G44: 25.1 | H44: BSE
A45: 2018-12-21 | B45: 542145 | C45: RONI | D45: ARYAMAN BROKING LIMITED | E45: BUY | F45: 66,000 | G45: 25 | H45: BSE
A46: 2018-12-21 | B46: 542145 | C46: RONI | D46: AMARKUMAR SHAH HIRAL | E46: SELL | F46: 78,000 | G46: 25 | H46: BSE
A47: 2018-12-21 | B47: 506906 | C47: SCBL | D47: PIYUSH SHARMA | E47: SELL | F47: 128,481 | G47: 10.06 | H47: BSE
A48: 2018-12-21 | B48: 506906 | C48: SCBL | D48: PIYUSH SHARMA | E48: BUY | F48: 127,984 | G48: 10.13 | H48: BSE
A49: 2018-12-21 | B49: 539520 | C49: SHAILJA | D49: HIRAL KIRTI SAVLA | E49: BUY | F49: 28,000 | G49: 10.4 | H49: BSE
A50: 2018-12-21 | B50: 539520 | C50: SHAILJA | D50: RAHUL GANESH KEDIA | E50: BUY | F50: 30,000 | G50: 10.3 | H50: BSE
A51: 2018-12-21 | B51: 539520 | C51: SHAILJA | D51: VINEET SINHA | E51: SELL | F51: 30,561 | G51: 10.28 | H51: BSE
A52: 2018-12-21 | B52: 539520 | C52: SHAILJA | D52: NEERAJ KUMAR SINGH | E52: SELL | F52: 17,899 | G52: 10.32 | H52: BSE
A53: 2018-12-21 | B53: 539520 | C53: SHAILJA | D53: NEERAJ KUMAR SINGH | E53: BUY | F53: 8,285 | G53: 10.5 | H53: BSE
A54: 2018-12-21 | B54: 539798 | C54: UMIYA | D54: ARUN DASHRATHBHAI PRAJAPATI | E54: BUY | F54: 283,479 | G54: 18.15 | H54: BSE
A55: 2018-12-21 | B55: 539798 | C55: UMIYA | D55: ARUN DASHRATHBHAI PRAJAPATI | E55: SELL | F55: 2,615 | G55: 18.15 | H55: BSE
A56: 2018-12-21 | B56: 539798 | C56: UMIYA | D56: VIJAYSINH KHUMANSINH MAKWANA | E56: SELL | F56: 177,500 | G56: 18.15 | H56: BSE
A57: 2018-12-21 | B57: 539798 | C57: UMIYA | D57: RATNA SANJEEV PATEL | E57: SELL | F57: 107,000 | G57: 18.15 | H57: BSE
A58: 2018-12-21 | B58: 533427 | C58: VMS | D58: ANIL MANSUKHLAL KOTHARI | E58: BUY | F58: 305,496 | G58: 17.15 | H58: BSE
A59: 2018-12-21 | B59: 533427 | C59: VMS | D59: TORRENT FINVEST CONSULTANTS PRIVATE LIMITED | E59: SELL | F59: 155,000 | G59: 17.15 | H59: BSE
A60: 2018-12-21 | B60: 541445 | C60: WAA | D60: JHAVERI TRADING AND INVESTMENT PVT LTD | E60: SELL | F60: 40,800 | G60: 53.45 | H60: BSE
A61: 2018-12-21 | B61: 541445 | C61: WAA | D61: MACRO COMMODEAL PRIVATE LIMITED | E61: BUY | F61: 40,800 | G61: 53.45 | H61: BSE
A62: 2018-12-21 | B62: AIFL | C62: Ashapura Inti Fashion Ltd | D62: RAHUL DOSHI | E62: BUY | F62: 152,730 | G62: 28.19 | H62: NSE
A63: 2018-12-21 | B63: AKG | C63: AKG Exim Limited | D63: SATISH KUMAR ARYA | E63: BUY | F63: 56,000 | G63: 32.16 | H63: NSE
A64: 2018-12-21 | B64: AUBANK | C64: AU Small Finance Bank Ltd | D64: THE VANGUARD GROUP INC A/C VANGUARD EMERG. MKTS STOCK INDE | E64: BUY | F64: 1,569,292 | G64: 637.08 | H64: NSE
A65: 2018-12-21 | B65: BEML | C65: BEML Limited | D65: A.P.T. PORTFOLIO PRIVATE LIMITED | E65: BUY | F65: 262730 | G65: 911.81 | H65: NSE
A66: 2018-12-21 | B66: BEML | C66: BEML Limited | D66: ALPHAGREP SECURITIES PRIVATE LIMITED | E66: BUY | F66: 893889 | G66: 913.11 | H66: NSE
A67: 2018-12-21 | B67: BEML | C67: BEML Limited | D67: CENTILLION RESEARCH INDIA LLP | E67: BUY | F67: 280011 | G67: 912.17 | H67: NSE
A68: 2018-12-21 | B68: BEML | C68: BEML Limited | D68: CROSSLAND TRADING CO | E68: BUY | F68: 540232 | G68: 912.73 | H68: NSE
A69: 2018-12-21 | B69: BEML | C69: BEML Limited | D69: GRAVITON RESEARCH CAPITAL LLP | E69: BUY | F69: 408649 | G69: 916.11 | H69: NSE
A70: 2018-12-21 | B70: BEML | C70: BEML Limited | D70: TOWER RESEARCH CAPITAL MARKETS INDIA PRIVATE LIMITED | E70: BUY | F70: 280412 | G70: 914.04 | H70: NSE
A71: 2018-12-21 | B71: DRSDILIP | C71: DRS Dilip Roadlines Ltd. | D71: ARYAMAN CAPITAL MARKETS LIMITED | E71: BUY | F71: 78400 | G71: 75.41 | H71: NSE
A72: 2018-12-21 | B72: FIEMIND | C72: Fiem Industries Limited | D72: MORGAN STANLEY FRANCE SAS | E72: BUY | F72: 108022 | G72: 560 | H72: NSE
A73: 2018-12-21 | B73: GSS | C73: GSS Infotech Limited | D73: PROFIN COMMODITIES PRIVATE LIMITED | E73: BUY | F73: 100000 | G73: 134.22 | H73: NSE
A74: 2018-12-21 | B74: JETAIRWAYS | C74: Jet Airways (India) Ltd. | D74: TOWER RESEARCH CAPITAL MARKETS INDIA PRIVATE LIMITED | E74: BUY | F74: 750880 | G74: 254.08 | H74: NSE
A75: 2018-12-21 | B75: MIC | C75: MIC Electronics Limited | D75: PINNAMANENI ESTATES PRIVATE LIMITED | E75: BUY | F75: 2631972 | G75: 1.87 | H75: NSE
A76: 2018-12-21 | B76: WABAG | C76: VA Tech Wabag Ltd | D76: NORGES BANK ON ACCOUNT OF THE GOVERNMENT PENSION FUND GLOBA | E76: BUY | F76: 900000 | G76: 270.1 | H76: NSE
A77: 2018-12-21 | B77: AIFL | C77: Ashapura Inti Fashion Ltd | D77: RAHUL DOSHI | E77: SELL | F77: 152730 | G77: 28.3 | H77: NSE
A78: 2018-12-21 | B78: AKG | C78: AKG Exim Limited | D78: ECLEAR LEASING & FINANCE PRIVATE LIMITED | E78: SELL | F78: 76000 | G78: 32.12 | H78: NSE
A79: 2018-12-21 | B79: BEML | C79: BEML Limited | D79: A.P.T. PORTFOLIO PRIVATE LIMITED | E79: SELL | F79: 262730 | G79: 912.19 | H79: NSE
A80: 2018-12-21 | B80: BEML | C80: BEML Limited | D80: ALPHAGREP SECURITIES PRIVATE LIMITED | E80: SELL | F80: 893889 | G80: 913.76 | H80: NSE
A81: 2018-12-21 | B81: BEML | C81: BEML Limited | D81: CENTILLION RESEARCH INDIA LLP | E81: SELL | F81: 280011 | G81: 912.49 | H81: NSE
A82: 2018-12-21 | B82: BEML | C82: BEML Limited | D82: CROSSLAND TRADING CO | E82: SELL | F82: 540232 | G82: 912.82 | H82: NSE
A83: 2018-12-21 | B83: BEML | C83: BEML Limited | D83: GRAVITON RESEARCH CAPITAL LLP | E83: SELL | F83: 408649 | G83: 916.6 | H83: NSE
A84: 2018-12-21 | B84: BEML | C84: BEML Limited | D84: TOWER RESEARCH CAPITAL MARKETS INDIA PRIVATE LIMITED | E84: SELL | F84: 280412 | G84: 914.59 | H84: NSE
A85: 2018-12-21 | B85: DRSDILIP | C85: DRS Dilip Roadlines Ltd. | D85: ARYAMAN CAPITAL MARKETS LIMITED | E85: SELL | F85: 19200 | G85: 75.5 | H85: NSE
A86: 2018-12-21 | B86: DRSDILIP | C86: DRS Dilip Roadlines Ltd. | D86: SHAH BABULAL VADILAL | E86: SELL | F86: 104000 | G86: 75.44 | H86: NSE
A87: 2018-12-21 | B87: FIEMIND | C87: Fiem Industries Limited | D87: BLACKROCK INDIA EQUITIES (MAURITIUS) LIMITED | E87: SELL | F87: 131471 | G87: 560.05 | H87: NSE
A88: 2018-12-21 | B88: GEMINI | C88: Gemini Communication Limi | D88: RAJA RAMCHANDRA DALVI | E88: SELL | F88: 904064 | G88: 0.18 | H88: NSE
A89: 2018-12-21 | B89: JETAIRWAYS | C89: Jet Airways (India) Ltd. | D89: TOWER RESEARCH CAPITAL MARKETS INDIA PRIVATE LIMITED | E89: SELL | F89: 750880 | G89: 254.22 | H89: NSE
A90: 2018-12-21 | B90: MIC | C90: MIC Electronics Limited | D90: PINNAMANENI ESTATES PRIVATE LIMITED | E90: SELL | F90: 87053 | G90: 1.95 | H90: NSE
A91: 2018-12-21 | B91: MIC | C91: MIC Electronics Limited | D91: USHA RANI MAGANTI | E91: SELL | F91: 3735282 | G91: 1.88 | H91: NSE
A92: 2018-12-21 | B92: MKPL | C92: M K Proteins Limited | D92: POOJA GUPTA | E92: SELL | F92: 36000 | G92: 76.72 | H92: NSE
A93: 2018-12-21 | B93: WABAG | C93: VA Tech Wabag Ltd | D93: GOLDMAN SACHS INDIA FUND LTD | E93: SELL | F93: 867665 | G93: 270.1 | H93: NSE

Sheet Call Tracker (Equity & F&O)
M5: Back To Main Page
A6: Retail Research Technical Calls & Fundamental Performance Report for the month of December -2018
M7: =Main!B10 -> 2018-12-24
B8: Positional Call
A9: Sr.no | B9: Date | D9: Company | E9: Rec | F9: Rec Price | G9: Stop Loss*** | H9: Call Closed At | I9: Target | J9: Remark | K9: Profit / Loss per Share | L9: Gain / Loss % | M9: Status | N9: Closed Date | O9: NSE Closed Price
A10: 1 | B10: 2018-11-14 | D10: ASHOKLEY | E10: Buy | F10: 108 | G10: 100.7 | H10: 111.25 | I10: 122-125 | J10: Part Profit of Rs.3.25/- | K10: =H10-F10 -> 3.25 | L10: =K10/F10 -> 3.01% | M10: Successful | N10: 2018-11-30 | R10: R
A11: 2 | B11: 2018-11-21 | D11: ADANIPORTS | E11: Sell | F11: 359.5 | G11: 377.7 | H11: 349 | I11: 322-326 | J11: Profit of Rs.10.5/- | K11: =F11-H11 -> 10.5 | L11: 2.92% | M11: Successful | N11: 2018-12-11 | R11: R
A12: 3 | B12: 2018-11-29 | D12: JSWSTEEL | E12: Buy{} | F12: 312 | G12: 297.7 | H12: =(322+296)/2 -> 309 | I12: 344-350 | J12: Loss of Rs.3/- | K12: =H12-F12 -> -3 | L12: =K12/F12 -> -0.96% | M12: Unsuccessful | N12: 2018-12-07 | R12: R
A13: 4 | B13: 2018-11-30 | D13: RAYMOND | E13: Sell | F13: 820 | G13: 861.6 | H13: 789 | I13: 745-735 | J13: Profit of Rs.31/- | K13: =F13-H13 -> 31 | L13: 3.78% | M13: Successful | N13: 2018-12-07 | R13: R
A14: 5 | B14: 2018-11-30 | D14: INFY | E14: Buy | F14: 665 | G14: 628 | H14: 685 | I14: 725 | J14: Profit of Rs.20/- | K14: 20 | L14: =K14/F14 -> 3.01% | M14: Successful | N14: 2018-12-07 | R14: H
A15: 6 | B15: 2018-12-13 | D15: JSWSTEEL | E15: Buy | F15: 301.5 | G15: 289 | H15: 310.75 | I15: 325-330 | J15: Profit of Rs.9.25/- | K15: =H15-F15 -> 9.25 | L15: =K15/F15 -> 3.07% | M15: Successful | N15: 2018-12-19 | R15: H
A16: 7 | B16: 2018-12-17 | D16: COALINDIA | E16: Buy | F16: 245.5 | G16: 233 | H16: 253.4 | I16: 260-265 | J16: Profit of Rs.7.9/- | K16: =H16-F16 -> 7.9 | L16: =K16/F16 -> 3.22% | M16: Successful | N16: 2018-12-20 | R16: H
A17: 8 | B17: 2018-12-21 | D17: TATAGLOBAL | E17: Buy | F17: 216-218 | G17: 209 | I17: 235-240 | J17: Open | R17: H
A34: CLBS = Closing Basis *** | F34: Reinitiated $
A35: Dividend adjusted <> | F35: Revised stoploss #
A36: Part book {}
A37: Master Trade High Risk
A38: Sr.no | B38: Date | D38: Company | E38: Rec | F38: Rec Price | G38: Stop Loss | H38: Call Closed At | I38: Target | J38: Remark | K38: Profit / Loss per share | L38: Gain / Loss per Lot | M38: Lot | N38: Status | O38: Closed Date
A39: 1 | B39: 2018-11-30 | D39: KOTAKBANK DEC FUT | E39: Buy | F39: 1229.5 | G39: 1195 | H39: 1202.5 | I39: 1270-1290 | J39: Loss of Rs. 15.5 /- | K39: =H39-F39 -> -27 | L39: =-15.5*800 -> -12400 | M39: 800 | N39: Unsuccessful | O39: 2018-12-07 | R39: H
D40: KOTAKBANK DEC 1260 CE | E40: Sell | F40: 23.5 | H40: 12 | K40: =F40-H40 -> 11.5 | R40: H
A41: 2 | B41: 2018-12-03 | D41: ADANIPORTS DEC FUT | E41: Sell | F41: 373 | G41: 382.5 | H41: 370 | I41: 360 | J41: Profit of Rs. 3 /- | K41: 3 | L41: 7500 | M41: 2500 | N41: Successful | O41: 2018-12-07 | R41: H
D42: ADANIPORTS DEC 360 PE | E42: Sell | F42: 9 | H42: 9 | K42: 0 | R42: H
A43: 3 | B43: 2018-12-07 | D43: NIFTY DEC FUT | E43: Sell | F43: 10657.5 | G43: 10786 | H43: 10575 | I43: 10400 | J43: Profit of Rs. 62.50 /- | K43: =F43-H43 -> 82.5 | L43: =M43*62.5 -> 4687.5 | M43: 75 | N43: Successful | O43: 2018-12-10 | R43: H
D44: NIFTY DEC 10500 PE | E44: Sell | F44: 125 | H44: 145 | K44: =F44-H44 -> -20 | R44: H
A45: 4 | B45: 2018-12-17 | D45: ADANIPORTS DEC FUT | E45: Sell | F45: 375.5 | G45: 382.5 | H45: 371.5 | I45: 360 | J45: Profit of Rs. 3 /- | K45: =F45-H45 -> 4 | L45: 7500 | M45: 2500 | N45: Successful | O45: 2018-12-17 | R45: H
D46: ADANIPORTS DEC 370 PE | E46: Sell | F46: 6.5 | H46: 7.5 | K46: =F46-H46 -> -1 | R46: H
A47: 5 | B47: 2018-12-18 | D47: COLPAL DEC FUT | E47: Sell | F47: 1312 | G47: 1335 | H47: 1335 | I47: 1260 | J47: Loss of Rs. 14.5 /- | K47: =F47-G47 -> -23 | L47: =700*14.5 -> 10150 | M47: 700 | N47: Unsuccessful | O47: 2018-12-07 | R47: H
D48: COLPAL DEC 1280 PE | E48: Sell | F48: 12 | H48: 3.5 | K48: =F48-H48 -> 8.5 | R48: H
A49: 6 | B49: 2018-12-19 | D49: ADANIPORTS DEC FUT | E49: Sell | F49: 375.5 | G49: 382.5 | H49: 371.5 | I49: 365 | J49: Profit of Rs. 3.5 /- | K49: =F49-H49 -> 4 | L49: =M49*3.5 -> 8750 | M49: 2500 | N49: Successful | O49: 2018-12-17 | R49: H
D50: ADANIPORTS DEC 370 PE | E50: Sell | F50: 5.25 | H50: 5.75 | K50: =F50-H50 -> -0.5 | R50: H
A51: 7 | B51: 2018-12-19 | D51: ADANIPORTS DEC FUT | E51: Sell | F51: 376.5 | G51: 382.5 | H51: 369.5 | I51: 365 | J51: Profit of Rs. 4.75 /- | K51: =F51-H51 -> 7 | L51: =M51*4.75 -> 11875 | M51: 2500 | N51: Successful | O51: 2018-12-21 | R51: H
D52: ADANIPORTS DEC 370 PE | E52: Sell | F52: 4.5 | H52: 6.75 | K52: =F52-H52 -> -2.25 | R52: H
A57: Master Trade Medium Risk
A58: Sr.no | B58: Date | D58: Company | E58: Rec | F58: Rec Price | G58: Stop Loss | H58: Call Closed At | I58: Target | J58: Remark | K58: Profit/ Loss per lot | L58: Gain / Loss per Lot | M58: Lot | N58: Status | O58: Closed Date
A59: 1 | B59: 2018-12-03 | D59: Nifty DEC 10900 PE | E59: Buy | F59: 180 | H59: 222.5 | J59: Profit of Rs 18.5/- | K59: =H59-F59 -> 42.5 | L59: =75*20 -> 1500 | M59: 75 | N59: Successful | O59: 2018-12-05 | R59: H
D60: Nifty DEC 10700 PE | E60: Sell | F60: 115 | H60: 139 | K60: =F60-H60 -> -24 | R60: H
A61: 2 | B61: 2018-12-04 | D61: ITC DEC 285 CE | E61: Buy | F61: 5.5-6 | J61: Open | R61: H
D62: ITC DEC 290 CE | E62: Sell | F62: 4-4.5 | R62: H
B75: Smart Delivery Trade
A76: Sr.no | B76: Date | D76: Company | E76: Rec | F76: Rec Price | G76: Stop Loss*** | H76: Call Closed At | I76: Target | J76: Remark | K76: Profit / Loss per Share | L76: Gain / Loss % | M76: Status | N76: Closed Date | O76: NSE Closed Price
A77: 1 | B77: 2018-11-27 | D77: MGL | E77: Buy | F77: 818.5 | G77: 793.7 | H77: 847.5 | I77: 860-870 | J77: Profit of Rs.29/- | K77: =H77-F77 -> 29 | L77: =K77/F77 -> 3.54% | M77: Successful | N77: 2018-12-03 | R77: R
A78: 2 | B78: 2018-11-28 | D78: ESCORTS | E78: Buy | F78: 691 | G78: 669 | H78: 716.5 | I78: 725-735 | J78: Profit of Rs.25.5/- | K78: =H78-F78 -> 25.5 | L78: =K78/F78 -> 3.69% | M78: Successful | N78: 2018-12-03 | R78: R
A79: 3 | B79: 2018-11-28 | D79: RELIANCE | E79: Sell | F79: 1152.5 | G79: 1186 | H79: 1152.5 | I79: 1100-1090 | J79: Neutral | K79: =F79-H79 -> 0 | L79: 0.00% | M79: Neutral | N79: 2018-12-05 | R79: H
A80: 4 | B80: 2018-11-30 | D80: BAJAJ-AUTO | E80: Buy | F80: 2760 | G80: 2680 | H80: 2837 | I80: 2870-2900 | J80: Profit of Rs.77/- | K80: =H80-F80 -> 77 | L80: 2.79% | M80: Successful | N80: 2018-12-12 | R80: H
A81: 5 | B81: 2018-12-03 | D81: PVR | E81: Sell | F81: 1454 | G81: 1505 | H81: 1505 | I81: 1370-1350 | J81: Loss of Rs.51/- | K81: =F81-H81 -> -51 | L81: =K81/F81 -> -3.51% | M81: Unsuccessful | N81: 2018-12-03 | R81: H
A82: 6 | B82: 2018-12-07 | D82: TATASTEEL | E82: Buy | F82: 516 | G82: 495 | H82: 529.5 | I82: 550 | J82: Profit of Rs.13.5/- | K82: =H82-F82 -> 13.5 | L82: 2.62% | M82: Successful | N82: 2018-12-19 | R82: H
A83: 7 | B83: 2018-12-07 | D83: RAMCOCEM | E83: Buy | F83: 597.5 | G83: 580 | H83: 615 | I83: 635-640 | J83: Profit of Rs.17.5/- | K83: =H83-F83 -> 17.5 | L83: =K83/F83 -> 2.93% | M83: Successful | N83: 2018-12-12 | R83: R
A84: 8 | B84: 2018-12-10 | D84: CONCOR | E84: Buy | F84: 648 | G84: 627.7 | H84: 679 | I84: 680-690 | J84: Profit of Rs.31/- | K84: =H84-F84 -> 31 | L84: =K84/F84 -> 4.78% | M84: Successful | N84: 2018-12-10 | R84: R
A85: 9 | B85: 2018-12-12 | D85: LUPIN | E85: Buy | F85: 817.5 | G85: 788.7 | H85: 811 | I85: 865-875 | J85: Neutral | K85: -6.5 | L85: -0.80% | M85: Neutral | N85: 2018-12-13 | R85: R
A86: 10 | B86: 2018-12-17 | D86: TVSMOTOR | E86: Buy | F86: 574 | G86: 548 | H86: 577.5 | I86: 600-610 | J86: Neutral | K86: =H86-F86 -> 3.5 | L86: =K86/F86 -> 0.61% | M86: Neutral | N86: 2018-12-21 | R86: H
A87: 11 | B87: 2018-12-18 | D87: BAJFINANCE | E87: Sell | F87: 2455 | G87: 2525.25 | H87: 2525.25 | I87: 2320-2300 | J87: Loss of Rs.70.25/- | K87: =F87-H87 -> -70.25 | L87: =K87/F87 -> -2.86% | M87: Unsuccessful | N87: 2018-12-18 | R87: R
A88: 12 | B88: 2018-12-18 | D88: BHEL | E88: Sell | F88: 69.60-70.10 | G88: 72 | I88: 66 | J88: Open | O88: =VLOOKUP(D88,Sheet2!A72:M1567,6,0) -> 69.85 | R88: H
A89: 13 | B89: 2018-12-19 | D89: BIOCON | E89: Buy | F89: 633-637 | G89: 615 | I89: 670-680 | J89: Open | O89: =VLOOKUP(D89,Sheet2!A73:M1568,6,0) -> 620.9 | R89: H
A90: 14 | B90: 2018-12-20 | D90: AUROPHARMA | E90: Buy | F90: 730-735 | G90: 709.3 | I90: 775-785 | J90: Open | O90: =VLOOKUP(D90,Sheet2!A74:M1569,6,0) -> 720.65 | R90: R
A96: CLBS = Closing Basis *** | F96: Reinitiated $
A97: Dividend adjusted <> | F97: Revised stoploss #
B100: Momentum Call
A101: Sr.no | B101: Date | D101: Company | E101: Rec | F101: Rec Price | G101: Stop Loss | H101: Call Closed At | I101: Target | J101: Remark | K101: Profit / Loss per Share/Lot | L101: Gain / Loss % | M101: Gain / Loss per Lot | N101: Lot | O101: Status | P101: Closed Date
A102: 1 | B102: 2018-11-29 | D102: AMARAJABAT DEC FUT | E102: Buy | F102: 723.5 | G102: 705 | H102: 705 | I102: 750 | J102: Loss of Rs.18.5/- | K102: =H102-F102 -> -18.5 | M102: =N102*K102 -> -11100 | N102: 600 | O102: Unsuccessful | P102: 2018-12-03 | R102: N
A103: 2 | B103: 2018-11-30 | D103: TATASTEEL | E103: Buy | F103: 534 | G103: 517 | H103: 549.5 | I103: 555-560 | J103: Profit of Rs.15.5/- | K103: =H103-F103 -> 15.5 | L103: =K103/F103 -> 2.90% | O103: Successful | P103: 2018-12-03 | R103: H
A104: 3 | B104: 2018-11-30 | D104: PIDILITIND DEC FUT | E104: Sell | F104: 1171 | G104: 1195 | H104: 1156.5 | I104: 1140-1130 | J104: Profit of Rs.14.5/- | K104: =F104-H104 -> 14.5 | M104: =N104*K104 -> 7250 | N104: 500 | O104: Successful | P104: 2018-12-03 | R104: H
A105: 4 | B105: 2018-12-03 | D105: UPL | E105: Buy | F105: 749 | G105: 737 | H105: 739.5 | I105: 774 | J105: Loss of Rs.9.5/- | K105: =H105-F105 -> -9.5 | M105: -11400 | N105: 1200 | O105: Unsuccessful | P105: 2018-12-03 | R105: N
A106: 5 | B106: 2018-12-03 | D106: ICICIBANK DEC FUT | E106: Sell | F106: 357.25 | G106: 362 | H106: 356 | I106: 348-346 | J106: Profit of Rs.1.25/- | K106: =F106-H106 -> 1.25 | M106: 3437.5 | N106: 2750 | O106: Neutral | P106: 2018-12-05 | R106: H
A107: 6 | B107: 2018-12-04 | D107: DRREDDY DEC FUT | E107: Sell | F107: 2721 | G107: 2760 | H107: 2692 | I107: 2650 | J107: Profit of Rs.29/- | K107: =F107-H107 -> 29 | M107: =N107*K107 -> 7250 | N107: 250 | O107: Successful | P107: 2018-12-05 | R107: R
A108: 7 | B108: 2018-12-04 | D108: TCS DEC FUT | E108: Buy | F108: 2005 | G108: 1945 | H108: 2030 | I108: 2080-2100 | J108: Profit of Rs.25/- | K108: =H108-F108 -> 25 | M108: =N108*K108 -> 6250 | N108: 250 | O108: Successful | P108: 2018-12-13 | R108: H
A109: 8 | B109: 2018-12-04 | D109: TATACHEM DEC FUT | E109: Buy | F109: 688 | G109: 673 | H109: 673 | I109: 710 | J109: Loss of Rs.15/- | K109: =H109-F109 -> -15 | M109: =N109*K109 -> -11250 | N109: 750 | O109: Unsuccessful | P109: 2018-12-05 | R109: N
A110: 9 | B110: 2018-12-04 | D110: AUROPHARMA DEC FUT | E110: Buy | F110: 824.5 | G110: 813 | H110: 813 | I110: 845-850 | J110: Loss of Rs.11.5/- | K110: =H110-F110 -> -11.5 | M110: =N110*K110 -> -11500 | N110: 1000 | O110: Unsuccessful | P110: 2018-12-05 | R110: H
A111: 10 | B111: 2018-12-05 | D111: DIVISLAB DEC FUT | E111: Sell | F111: 1507.5 | G111: 1532 | H111: 1486.5 | I111: 1460 | J111: Profit of Rs.21/- | K111: =F111-H111 -> 21 | M111: =N111*K111 -> 8400 | N111: 400 | O111: Successful | P111: 2018-12-05 | R111: R
A112: 11 | B112: 2018-12-05 | D112: PIDILITIND DEC FUT | E112: Sell | F112: 1171.5 | G112: 1192 | H112: 1145 | I112: 1130 | J112: Profit of Rs.26.5/- | K112: 26.5 | M112: =N112*K112 -> 10600 | N112: 400 | O112: Successful | P112: 2018-12-05 | R112: R
A113: 12 | B113: 2018-12-07 | D113: DRREDDY DEC FUT | E113: Sell | F113: 2707.5 | G113: 2747 | H113: 2674.5 | I113: 2630 | J113: Profit of Rs.33/- | K113: 33 | M113: 8250 | N113: 250 | O113: Successful | P113: 2018-12-07 | R113: R
A114: 13 | B114: 2018-12-07 | D114: BATAINDIA DEC FUT | E114: Sell | F114: 1062 | G114: 1083 | H114: 1037.5 | I114: 1020 | J114: Profit of Rs.24.5/- | K114: 24.5 | M114: =N114*K114 -> 13475 | N114: 550 | O114: Successful | P114: 2018-12-10 | R114: R
A115: 14 | B115: 2018-12-13 | D115: NIFTY DEC FUT | E115: Sell | F115: 10835 | G115: 10930 | H115: 10785 | I115: 10750-10700 | J115: Profit of Rs.50/- | K115: 50 | M115: 3750 | N115: 75 | O115: Successful | P115: 2018-12-13 | R115: H
A116: 15 | B116: 2018-12-13 | D116: BANKNIFTY DEC FUT | E116: Sell | F116: 26980 | G116: 27250 | H116: 26880 | I116: 26400 | J116: Profit of Rs.100/- | K116: 100 | M116: =N116*K116 -> 2000 | N116: 20 | O116: Successful | P116: 2018-12-13 | R116: H
A117: 16 | B117: 2018-12-14 | D117: NIFTY DEC FUT | E117: Sell | F117: 10800 | G117: 10905 | H117: 10905 | I117: 10650 | J117: Loss of Rs.105/- | K117: =F117-H117 -> -105 | M117: -7875 | N117: 75 | O117: Unsuccessful | P117: 2018-12-17 | R117: H
A118: 17 | B118: 2018-12-14 | D118: BATAINDIA DEC FUT | E118: Sell | F118: 1079 | G118: 1102 | H118: 1102 | I118: 1050-1040 | J118: Loss of Rs.23/- | K118: =F118-H118 -> -23 | M118: =N118*K118 -> -12650 | N118: 550 | O118: Unsuccessful | P118: 2018-12-18 | R118: R
A119: 18 | B119: 2018-12-14 | D119: PEL DEC FUT | E119: Sell | F119: 2155 | G119: 2191.3 | H119: 2132.5 | I119: 2100 | J119: Profit of Rs.22.5/- | K119: =F119-H119 -> 22.5 | M119: =N119*K119 -> 6795 | N119: 302 | O119: Successful | P119: 2018-12-14 | R119: R
A120: 19 | B120: 2018-12-17 | D120: NIITTECH DEC FUT | E120: Buy | F120: 1129 | G120: 1113 | H120: 1140 | I120: 1160 | J120: Profit of Rs.11/- | K120: =H120-F120 -> 11 | M120: 8250 | N120: 750 | O120: Successful | P120: 2018-12-17 | R120: R
A121: 20 | B121: 2018-12-17 | D121: GODREJIND DEC FUT | E121: Buy | F121: 541 | G121: 533 | H121: 549 | I121: 555 | J121: Profit of Rs.8/- | K121: =H121-F121 -> 8 | M121: =N121*K121 -> 12000 | N121: 1500 | O121: Successful | P121: 2018-12-17 | R121: N
A122: 21 | B122: 2018-12-18 | D122: BALKRISIND DEC FUT | E122: Buy | F122: 939 | G122: 922 | H122: 951.5 | I122: 968 | J122: Profit of Rs.12.5/- | K122: =H122-F122 -> 12.5 | M122: =N122*K122 -> 10000 | N122: 800 | O122: Successful | P122: 2018-12-20 | R122: R
A123: 22 | B123: 2018-12-18 | D123: HEROMOTOCO DEC FUT | E123: Sell | F123: 3270 | G123: 3325 | H123: 3325 | I123: 3180-3160 | J123: Loss of Rs.55/- | K123: =F123-H123 -> -55 | M123: =N123*K123 -> -11000 | N123: 200 | O123: Unsuccessful | P123: 2018-12-19 | R123: R
A124: 23 | B124: 2018-12-18 | D124: AJANTPHARM DEC FUT | E124: Buy | F124: 1096.5 | G124: 1074 | H124: 1118.5 | I124: 1140 | J124: Profit of Rs.22/- | K124: =H124-F124 -> 22 | M124: =N124*K124 -> 11000 | N124: 500 | O124: Successful | P124: 2018-12-18 | R124: N
A125: 24 | B125: 2018-12-18 | D125: VOLTAS DEC FUT | E125: Sell | F125: 562 | G125: 574 | H125: 571 | I125: 542 | J125: Loss of Rs.9/- | K125: =F125-H125 -> -9 | M125: -9000 | N125: 1000 | O125: Unsuccessful | P125: 2018-12-19 | R125: R
A126: 25 | B126: 2018-12-19 | D126: AMARAJABAT DEC FUT | E126: Buy | F126: 733 | G126: 716 | H126: 743 | I126: 760 | J126: Profit of Rs.10/- | K126: =H126-F126 -> 10 | M126: =N126*K126 -> 7000 | N126: 700 | O126: Successful | P126: 2018-12-19 | R126: N
A127: 26 | B127: 2018-12-19 | D127: MCDOWELL-N DEC FUT | E127: Buy | F127: 651 | G127: 641 | H127: 642.5 | I127: 672 | J127: Loss of Rs.8.5/- | K127: =H127-F127 -> -8.5 | M127: =N127*K127 -> -10625 | N127: 1250 | O127: Unsuccessful | P127: 2018-12-19 | R127: N
A128: 27 | B128: 2018-12-19 | D128: SBIN DEC FUT | E128: Buy | F128: 300.5 | G128: 296.5 | H128: 296.5 | I128: 310 | J128: Loss of Rs.4/- | K128: =H128-F128 -> -4 | M128: =N128*K128 -> -12000 | N128: 3000 | O128: Unsuccessful | P128: 2018-12-20 | R128: H
A129: 28 | B129: 2018-12-20 | D129: NIITTECH DEC FUT | E129: Buy | F129: 1141 | G129: 1125 | H129: 1125 | I129: 1175 | J129: Loss of Rs.16/- | K129: =H129-F129 -> -16 | M129: =N129*K129 -> -12000 | N129: 750 | O129: Unsuccessful | P129: 2018-12-21 | R129: R
A130: 29 | B130: 2018-12-20 | D130: GODREJIND DEC FUT | E130: Buy | F130: 540 | G130: 532 | H130: 547 | I130: 555 | J130: Profit of Rs.7/- | K130: =H130-F130 -> 7 | M130: =N130*K130 -> 10500 | N130: 1500 | O130: Successful | P130: 2018-12-21 | R130: N
A131: 30 | B131: 2018-12-20 | D131: INFRATEL DEC FUT | E131: Sell | F131: 263.5 | G131: 271 | H131: 259.5 | I131: 250 | J131: Profit of Rs.4/- | K131: =F131-H131 -> 4 | M131: =N131*K131 -> 6800 | N131: 1700 | O131: Successful | P131: 2018-12-21 | R131: N
A132: 31 | B132: 2018-12-20 | D132: COLPAL DEC FUT | E132: Sell | F132: 1324-1326 | G132: 1341 | I132: 1300 | J132: Open | R132: R
A133: 32 | B133: 2018-12-21 | D133: BATAINDIA DEC FUT | E133: Sell | F133: 1103 | G133: 1125 | H133: 1125 | I133: 1060-1050 | J133: Loss of Rs.22/- | K133: =F133-H133 -> -22 | M133: =N133*K133 -> -12100 | N133: 550 | O133: Unsuccessful | P133: 2018-12-21 | R133: R
A134: 33 | B134: 2018-12-21 | D134: TATASTEEL DEC FUT | E134: Sell | F134: 522-524 | G134: 534 | I134: 500 | J134: Open | R134: R
A135: 34 | B135: 2018-12-21 | D135: HEROMOTOCO JAN FUT | E135: Sell | F135: 3335-3345 | G135: 3410 | I135: 3250 | J135: Open | R135: H
A141: CLBS = Closing Basis ***
A142: Dividend adjusted <> | F142: Reinitiated $
F143: Revised stoploss #
B144: Quick Pick Intraday
A145: Sr.no | B145: Date | D145: Company | E145: Rec | F145: Rec Price | G145: Stop Loss*** | H145: Call Closed At | I145: Target | J145: Remark | K145: Profit / Loss per Share | L145: Status | M145: Closed Date
A159: Techno -Funda (positional)
A160: Sr.no | B160: Date | D160: Company | E160: Rec | F160: Rec Price | G160: Stop Loss*** | H160: Call Closed At | I160: Target | J160: Remark | K160: Profit / Loss per Share | L160: Gain / Loss % | M160: Status | N160: Closed Date | O160: NSE Closed Price
A163: CLBS = Closing Basis *** | F163: Reinitiated $
A164: Dividend adjusted <> | F164: Revised stoploss #
B169: Investment Idea
A170: Sr.no | B170: Date | D170: Company | E170: Rec | F170: Rec Price | G170: Point of Review | H170: Close Rate | I170: Target | J170: Remark | K170: Profit / Loss per Share | L170: Gain / Loss % | M170: Status | N170: Closed Date
A171: 1 | B171: 2013-11-01 | D171: L&T Finance Holding | E171: Accu | F171: 82.00 | G171: - | H171: 100 | I171: 100.00 | J171: Target Achieved | K171: =H171-F171 -> 18.00 | L171: =K171/F171 -> 21.95% | M171: Successful | N171: 2016-10-14
A172: 2 | B172: 2014-06-04 | D172: Finolex Inds | E172: Buy | F172: 257.00 | G172: - | H172: 300 | I172: 300.00 | J172: Target Achieved | K172: =H172-F172 -> 43.00 | L172: 16.73% | M172: Successful | N172: 2014-07-02
A173: =1+A172 -> 3 | B173: 2014-07-08 | D173: JK Cement | E173: Buy | F173: 393.00 | G173: - | H173: 468 | I173: 468.00 | J173: Target Achieved | K173: =H173-F173 -> 75.00 | L173: 19.08% | M173: Successful | N173: 2014-08-12
A174: 4 | B174: 2014-08-06 | D174: Finolex Cables | E174: Buy | F174: 205.00 | G174: - | H174: 275 | I174: 250.00 | J174: Target Achieved | K174: 70.00 | L174: 34.15% | M174: Successful | N174: 2014-11-19
A175: 5 | B175: 2014-09-04 | D175: Exide Inds | E175: Buy | F175: 162.00 | G175: - | H175: 190 | I175: 190.00 | J175: Target Achieved | K175: 28.00 | L175: 17.28% | M175: Successful | N175: 2015-01-02
A176: 6 | B176: 2014-09-04 | D176: Deepak Nitrite | E176: Buy | F176: 75.00 | G176: - | H176: 91.5 | I176: 95-100 | J176: Profit of Rs.16.50/- | K176: 16.50 | L176: 22.00% | M176: Successful | N176: 2014-11-11
A177: 7 | B177: 2014-10-01 | D177: Mercks | E177: Buy | F177: 850.00 | G177: - | H177: 982.5 | I177: 1050.00 | J177: Profit of Rs.132.50/- | K177: 132.50 | L177: 15.59% | M177: Successful | N177: 2015-02-04
A178: 8 | B178: 2014-10-01 | D178: Grindwell Norton | E178: Buy | F178: 475.00 | G178: - | H178: 515 | I178: 600.00 | J178: Profit of Rs.40/- | K178: 40.00 | L178: 8.42% | M178: Successful | N178: 2014-10-27
A179: 9 | B179: 2014-10-01 | D179: Snowman Logistics | E179: Buy | F179: 86.00 | G179: - | H179: 99 | I179: 140.00 | J179: Profit of Rs.13.00/- | K179: 13.00 | L179: 15.12% | M179: Successful | N179: 2014-10-27
A180: 10 | B180: 2014-10-14 | D180: Birla Corp | E180: Buy | F180: 496.60 | G180: - | H180: 621 | I180: 580.00 | J180: Target Achieved | K180: 124.40 | L180: 25.05% | M180: Successful | N180: 2016-08-23
A181: 11 | B181: 2014-10-14 | D181: Ultratech Cem | E181: Buy | F181: 2481.90 | G181: - | H181: 2840 | I181: 2870.00 | J181: Profit of Rs.358.10/- | K181: 358.10 | L181: 14.43% | M181: Successful | N181: 2015-01-13
A182: =1+A179 -> 10 | B182: 2014-10-16 | D182: Sintex Inds | E182: Buy | F182: 84.50 | G182: - | H182: 93 | I182: 110.00 | J182: Profit of Rs.8.50/- | K182: 8.50 | L182: 10.06% | M182: Successful | N182: 2014-10-27
A183: =1+A182 -> 11 | B183: 2014-10-16 | D183: HSIL | E183: Buy | F183: 401.00 | G183: - | H183: 428 | I183: 450.00 | J183: Profit of Rs.27.00/- | K183: 27.00 | L183: 6.73% | M183: Successful | N183: 2015-01-16
A184: 12 | B184: 2014-10-16 | D184: Eveready Inds | E184: Buy | F184: 101.00 | G184: - | H184: 112 | I184: 120.00 | J184: Profit of Rs.11.00/- | K184: 11.00 | L184: 10.89% | M184: Successful | N184: 2014-10-27
A185: 13 | B185: 2014-11-11 | D185: Pennar Inds | E185: Buy | F185: 59.00 | G185: - | H185: 76 | I185: 76.00 | J185: Target Achieved | K185: 17.00 | L185: 28.81% | M185: Successful | N185: 2017-10-24
A186: 14 | B186: 2014-11-11 | D186: Snowman Logistics | E186: Buy | F186: 99.00 | G186: - | H186: 120 | I186: 120.00 | J186: Profit of Rs.21/- | K186: 21.00 | L186: 21.21% | M186: Successful | N186: 2014-11-17
A187: 15 | B187: 2014-11-13 | D187: Dharamsi Morarji Chem | E187: Buy | F187: 22.00 | G187: - | H187: 33.55 | I187: 32.00 | J187: Profit of Rs 11.55/- | K187: 11.55 | L187: 52.50% | M187: Successful | N187: 2015-07-03
A188: 16 | B188: 2014-12-03 | D188: Tatachem | E188: Buy | F188: 440.00 | G188: - | H188: 520 | I188: 520.00 | J188: Profit of Rs 80.00/- | K188: 80.00 | L188: 18.18% | M188: Successful | N188: 2015-07-23
A189: 17 | B189: 2014-12-03 | D189: Advanta | E189: Buy | F189: 360.00 | G189: - | H189: 427 | I189: 425.00 | J189: Profit of Rs.67.00/- | K189: 67.00 | L189: 18.61% | M189: Successful | N189: 2015-02-23
A190: 18 | B190: 2015-01-08 | D190: GDL | E190: Buy | F190: 360.00 | G190: - | H190: 455 | I190: 420.00 | J190: Profit of Rs.95.00/- | K190: 95.00 | L190: 26.39% | M190: Successful | N190: 2015-01-20
A191: 19 | B191: 2015-01-08 | D191: NRB Bearing | E191: Buy | F191: 130.00 | H191: 175.5 | I191: 165.00 | J191: Profit of Rs 45.50/- | K191: 45.50 | L191: 35.00% | M191: Successful | N191: 2017-12-19
A192: 20 | B192: 2015-02-05 | D192: GSFC | E192: Accu | F192: 98.00 | H192: 120 | I192: 120.00 | J192: Target Achieved | K192: 22.00 | L192: 22.45% | M192: Successful | N192: 2017-01-18
A193: 21 | B193: 2015-02-05 | D193: Sundrmfast | E193: Accu | F193: 196.00 | H193: 262 | I193: 255.00 | J193: Target Achieved | K193: 66.00 | L193: 33.67% | M193: Successful | N193: 2016-08-17
A194: 22 | B194: 2015-03-04 | D194: GPPL | E194: Accu | F194: 230-240 | I194: 280-285 | J194: Open
A195: 23 | B195: 2015-03-04 | D195: ORIENTCEM | E195: Accu | F195: 185.00 | H195: 224 | I195: 220-225 | J195: Target Achieved | K195: 39.00 | L195: =K195/F195 -> 21.08% | M195: Successful | N195: 2016-10-04
A196: 24 | B196: 2015-03-27 | D196: PFS | E196: Accu | F196: 49-50 | I196: 67.00 | J196: Open
A197: 25 | B197: 2015-03-30 | D197: Walchandnagar Ind Ltd | E197: Accu | F197: 183.50 | H197: 219 | I197: 218.00 | J197: Profit of Rs.35.50/- | K197: 35.50 | L197: =K197/F197 -> 19.35% | M197: Successful | N197: 2015-04-09
A198: 26 | B198: 2015-04-20 | D198: Kalpataru Power Transmission Ltd | E198: Accu | F198: =(227+237)/2 -> 232.00 | H198: 298 | I198: 298.00 | J198: Target Achieved | K198: 66.00 | L198: 28.45% | M198: Successful | N198: 2017-03-29
A199: 27 | B199: 2015-05-04 | D199: Mastek Ltd | E199: Buy | F199: 385.00 | H199: =212.5+331 -> 543.5 | I199: 510.00 | J199: Profit of Rs 158.50/- | K199: 158.50 | L199: 41.17% | M199: Successful | N199: 2015-08-19
A200: 28 | B200: 2015-05-04 | D200: Suprajit Eng | E200: Buy | F200: 115.50 | H200: 146 | I200: 142.00 | J200: Profit of Rs 30.50/- | K200: 30.50 | L200: 26.41% | M200: Successful | N200: 2015-07-17
A201: 29 | B201: 2015-05-27 | D201: TCI | E201: Buy | F201: 237.50 | H201: 279.5 | I201: 278.00 | J201: Target Achieved | K201: 42.00 | L201: 17.68% | M201: Successful | N201: 2015-08-06
A202: 30 | B202: 2015-06-19 | D202: HSIL | E202: Accu | F202: 340.00 | H202: 448 | I202: 448.00 | J202: Target Achieved | K202: 108.00 | L202: 31.76% | M202: Successful | N202: 2017-10-10
A203: 31 | B203: 2015-07-06 | D203: Capital First | E203: Accu | F203: 390.00 | H203: 460 | I203: 460.00 | J203: Target Achieved | K203: 70.00 | L203: 17.95% | M203: Successful | N203: 2016-04-18
A204: 32 | B204: 2015-07-10 | D204: Dolphin OffShore | E204: Accu | F204: 122.5 | H204: 61.00 | I204: 172.00 | J204: Loss of Rs.61.50/- | K204: -61.50 | L204: -50.20% | M204: Unsuccessful | N204: 2018-08-21
A205: 33 | B205: 2015-08-03 | D205: Allcargo logistics | E205: Accu | F205: 297.50 | H205: 350 | I205: 360.00 | J205: Profit of Rs 52.50/- | K205: 52.50 | L205: =K205/F205 -> 17.65% | M205: Successful | N205: 2015-08-16
A206: 34 | B206: 2015-08-03 | D206: Camline Fine | E206: Accu | F206: 115.50 | H206: 149 | I206: 140.00 | J206: Profit of Rs 33.50/- | K206: 33.50 | L206: 29.00% | M206: Successful | N206: 2017-01-05
A207: 35 | B207: 2015-09-04 | D207: TCI | E207: Accu | F207: 226.00 | H207: 292 | I207: 292.00 | J207: Target Achieved | K207: 66.00 | L207: 29.20% | M207: Successful | N207: 2015-10-09
A208: 36 | B208: 2015-09-07 | D208: Kalpataru Power Transmission Ltd | E208: Accu | F208: 232.50 | H208: 312.5 | I208: 310.00 | J208: Target Achieved | K208: 80.00 | L208: 34.41% | M208: Successful | N208: 2017-03-29
A209: 37 | B209: 2015-09-21 | D209: LLOYD ELECTRIC & ENG LTD | E209: Accu | F209: 196.50 | H209: 238 | I209: 238.00 | J209: Target Achieved | K209: 41.50 | L209: 21.12% | M209: Successful | N209: 2015-10-14
A210: 38 | B210: 2015-09-24 | D210: L&T Finance Holding | E210: Accu | F210: 65.00 | H210: 82 | I210: 82.00 | J210: Target Achieved | K210: 17.00 | L210: 26.15% | M210: Successful | N210: 2016-07-27
A211: 39 | B211: 2015-10-14 | D211: KEC International ltd | E211: Accu | F211: 144.00 | H211: 182.5 | I211: 181.00 | J211: Target Achieved | K211: 38.50 | L211: 26.74% | M211: Successful | N211: 2017-03-23
A212: 40 | B212: 2015-10-14 | D212: Gruh Finance | E212: Accu | F212: 264.00 | H212: 311 | I212: 311.00 | J212: Target Achieved | K212: 47.00 | L212: 17.80% | M212: Successful | N212: 2016-08-22
A213: 41 | B213: 2015-11-10 | D213: Pidilitind | E213: Buy | F213: 549.50 | H213: 630 | I213: 630.00 | J213: Target Achieved | K213: 80.50 | L213: 14.65% | M213: Successful | N213: 2016-02-19
A214: 42 | B214: 2015-12-04 | D214: Zensar Technology | E214: Accu | F214: 1027.50 | H214: 1315 | I214: 1250.00 | J214: Target Achieved | K214: =H214-F214 -> 287.50 | L214: 27.98% | M214: Successful | N214: 2018-05-24
A215: 43 | B215: 2015-12-29 | D215: Vinati Organics Ltd | E215: Accu | F215: 465.00 | H215: 540 | I215: 540.00 | J215: Target Achieved | K215: 75.00 | L215: =K215/F215 -> 16.13% | M215: Successful | N215: 2016-06-09
A216: 44 | B216: 2016-01-11 | D216: GSFC | E216: Buy | F216: 81.00 | H216: 110 | I216: 110.00 | J216: Target Achieved | K216: 29.00 | L216: 35.80% | M216: Successful | N216: 2017-01-10
A217: 45 | B217: 2016-01-13 | D217: SSWL | E217: Buy | F217: 417.50 | H217: 547 | I217: 535.00 | J217: Target Achieved | K217: 129.50 | L217: 31.02% | M217: Successful | N217: 2016-07-27
A218: 46 | B218: 2016-02-08 | D218: Persistent System Ltd | E218: Accu | F218: 650.00 | H218: 800 | I218: 800.00 | J218: Target Achieved | K218: 150.00 | L218: 23.08% | M218: Successful | N218: 2018-02-23
A219: 47 | B219: 2016-03-04 | D219: UPL | E219: Accu | F219: 437.50 | H219: 504.5 | I219: 522.00 | J219: Profit of Rs.67/- | K219: 67.00 | L219: 15.31% | M219: Successful | N219: 2016-04-20
A220: 48 | B220: 2016-03-09 | D220: Ashoka Buildcon Ltd | E220: Accu | F220: 189.50 | H220: 218 | I220: 218.00 | J220: Target Achieved | K220: 28.50 | L220: 15.04% | M220: Successful | N220: 2017-10-26
A221: 49 | B221: 2016-04-11 | D221: PTC INDIA FIN SERV LTD | E221: Accu | F221: 36-37 | I221: 60.00 | J221: Open
A222: 50 | B222: 2016-04-12 | D222: CAMLINFINE $ | E222: Accu | F222: 93.00 | H222: 149 | I222: 140.00 | J222: Profit of Rs 56/- | K222: 56.00 | L222: =K222/F222 -> 60.22% | M222: Successful | N222: 2017-01-05
A223: 51 | B223: 2016-04-12 | D223: Greaves Cotton Ltd. | E223: Accu | F223: 130.00 | H223: 150 | I223: 150-155 | J223: Target Achieved | K223: 20.00 | L223: 15.38% | M223: Successful | N223: 2016-07-13
A224: 52 | B224: 2016-04-13 | D224: DHFL | E224: Accu | F224: 196.00 | H224: 299 | I224: 299.00 | J224: Target Achieved | K224: 103.00 | L224: 52.55% | M224: Successful | N224: 2016-09-07
A225: 53 | B225: 2016-04-13 | D225: Magma | E225: Accu | F225: 88.00 | H225: 103 | I225: 103.00 | J225: Target Achieved | K225: 15.00 | L225: 17.05% | M225: Successful | N225: 2016-06-09
A226: 54 | B226: 2016-05-02 | D226: KEC International ltd $ | E226: Accu | F226: 127.50 | H226: 148 | I226: 148-150 | J226: Target Achieved | K226: 20.50 | L226: 16.08% | M226: Successful | N226: 2016-07-13
A227: 55 | B227: 2016-05-03 | D227: Mindtree | E227: Accu | F227: 675.00 | H227: 815 | I227: 790-800 | J227: Target Achieved | K227: 140.00 | L227: 20.74% | M227: Successful | N227: 2018-02-23
A228: 56 | B228: 2016-06-01 | D228: Atulauto | E228: Accu | F228: 495-505 | I228: 565-570 | J228: Open
A229: 57 | B229: 2016-06-06 | D229: TRITURBINE | E229: Accu | F229: 110.00 | H229: 126.5 | I229: 125.00 | J229: Profit of Rs.16.50/- | K229: 16.50 | L229: =K229/F229 -> 15.00% | M229: Successful | N229: 2016-07-01
A230: 58 | B230: 2016-06-17 | D230: Pennar Industries Ltd | E230: Accu | F230: 44.00 | H230: 69.5 | I230: 69.50 | J230: Profit of Rs.25.50/- | K230: 25.50 | L230: =K230/F230 -> 57.95% | M230: Successful | N230: 2017-08-30
A231: 59 | B231: 2016-06-28 | D231: EVEREADY INDS. IND. LTD. | E231: Accu | F231: 262.50 | H231: 340 | I231: 333.00 | J231: Profit of Rs.77.50/- | K231: 77.50 | L231: =K231/F231 -> 29.52% | M231: Successful | N231: 2017-10-09
A232: 60 | B232: 2016-06-28 | D232: FIEM INDUSTRIES LIMITED | E232: Accu | F232: 840.00 | H232: 1230 | I232: 1230.00 | J232: Target Achieved | K232: 390.00 | L232: =K232/F232 -> 46.43% | M232: Successful | N232: 2016-10-06
A233: 61 | B233: 2016-07-05 | D233: Bajaj Corp Ltd | E233: Accu | F233: 395 | H233: 468.50 | I233: 510.00 | J233: Part profit of Rs.73.50/- | K233: 73.50 | L233: =K233/F233 -> 19% | M233: Successful | N233: 2017-08-30
A234: 62 | B234: 2016-08-02 | D234: GPPL $ | E234: Buy | F234: 167-172 | I234: 198-200 | J234: Open
A235: 63 | B235: 2016-08-04 | D235: WONDERLA HOLIDAYS LTD | E235: Accu | F235: 395-405 | I235: 475.00 | J235: Open
A236: 64 | B236: 2016-08-11 | D236: CAMLINFINE | E236: Accu | F236: 86.50 | H236: 130 | I236: 130.00 | J236: Profit of Rs.43.50/- | K236: =H236-F236 -> 43.50 | L236: =K236/F236 -> 50.29% | M236: Successful | N236: 2017-12-22
A237: 65 | B237: 2016-08-18 | D237: GRANULES | E237: Accu | F237: 133.5 | H237: 126.50 | I237: 178.00 | J237: Exit | K237: -7.00 | L237: -5.24% | M237: Unsuccessful | N237: 2016-09-02
A238: 66 | B238: 2016-08-31 | D238: VA TECH WABAG | E238: Accu | F238: 560.00 | H238: 725 | I238: 725.00 | J238: Target Achieved | K238: 165.00 | L238: 29.46% | M238: Successful | N238: 2016-03-27
A239: 67 | B239: 2016-09-01 | D239: SKIPPER LIMITED | E239: Accu | F239: 160.50 | H239: 210 | I239: 210.00 | J239: Target Achieved | K239: 49.50 | L239: 30.84% | M239: Successful | N239: 2017-05-16
A240: 68 | B240: 2016-10-03 | D240: IFB Industries | E240: Accu | F240: 430.00 | H240: 596 | I240: 575.00 | J240: Profit of Rs.166/- | K240: 166.00 | L240: 38.60% | M240: Successful | N240: 2017-02-03
A241: 69 | B241: 2016-10-14 | D241: ASIANTILES | E241: Accu | F241: 280.00 | H241: 345 | I241: 345.00 | J241: Target Achieved | K241: 65.00 | L241: 23.21% | M241: Successful | N241: 2017-03-20
A242: 70 | B242: 2016-10-14 | D242: DEEPIND | E242: Accu | F242: 245.00 | H242: 325.5 | I242: 330.00 | J242: Profit of Rs.80.5/- | K242: 80.50 | L242: 32.86% | M242: Successful | N242: 2017-02-03
A243: 71 | B243: 2016-10-17 | D243: DCBBANK | E243: Accu | F243: 125.00 | H243: 160 | I243: 160.00 | J243: Target Achieved | K243: 35.00 | L243: 28.00% | M243: Successful | N243: 2017-03-09
A244: 72 | B244: 2016-10-17 | D244: ORIENTREF | E244: Accu | F244: 114.00 | H244: 145 | I244: 145.00 | J244: Target Achieved | K244: 31.00 | L244: =K244/F244 -> 27.19% | M244: Successful | N244: 2017-05-04
A245: 73 | B245: 2016-10-17 | D245: GANECOS | E245: Accu | F245: 212.00 | H245: 280 | I245: 276.00 | J245: Profit of Rs.68/- | K245: 68.00 | L245: =K245/F245 -> 32.08% | M245: Successful | N245: 2017-05-03
A246: 74 | B246: 2016-11-04 | D246: NBCC | E246: Accu | F246: 155.00 | H246: 210 | I246: 210.00 | J246: Profit of Rs.55/- | K246: 55.00 | L246: =K246/F246 -> 35.48% | M246: Successful | N246: 2017-07-28
A247: 75 | B247: 2016-12-06 | D247: PRECAM | E247: Accu | F247: 150.5 | H247: 72.50 | I247: 174.00 | J247: Loss of Rs.78/- | K247: -78.00 | L247: =K247/F247 -> -51.83% | M247: Unsuccessful | N247: 2018-08-21
A248: 76 | B248: 2016-12-08 | D248: INFRATEL | E248: Accu | F248: 380.00 | H248: 478 | I248: 468.00 | J248: Target Achieved | K248: 98.00 | L248: =K248/F248 -> 25.79% | M248: Successful | N248: 2017-10-17
A249: 77 | B249: 2016-12-30 | D249: GODREJPROP | E249: Accu | F249: 305.00 | H249: 375 | I249: 375.00 | J249: Target Achieved | K249: 70.00 | L249: 22.95% | M249: Successful | N249: 2017-02-02
A250: 78 | B250: 2017-01-04 | D250: DEEPAKNTR | E250: Accu | F250: 99.50 | H250: 158 | I250: 158.00 | J250: Target Achieved | K250: 58.50 | L250: 58.79% | M250: Successful | N250: 2017-06-12
A251: 79 | B251: 2017-02-20 | D251: SUBROS | E251: Accu | F251: 202.50 | H251: 234 | I251: 234.00 | J251: Target Achieved | K251: 31.50 | L251: 15.56% | M251: Successful | N251: 2017-04-11
A252: 80 | B252: 2017-02-20 | D252: RECLTD | E252: Accu | F252: 140.50 | H252: 220 | I252: 220.00 | J252: Target Achieved | K252: 79.50 | L252: 56.58% | M252: Successful | N252: 2017-05-09
A253: 81 | B253: 2017-03-24 | D253: VRLLOG | E253: Accu | F253: 300.50 | H253: 417.5 | I253: 420.00 | J253: Profit of Rs.117/- | K253: 117.00 | L253: 38.94% | M253: Successful | N253: 2017-12-01
A254: 82 | B254: 2017-03-24 | D254: FIEMIND | E254: Accu | F254: 850.00 | H254: 1042.5 | I254: 1023.00 | J254: Profit of Rs 192.50/- | K254: 192.50 | L254: 22.65% | M254: Successful | N254: 2017-04-05
A255: 83 | B255: 2017-04-05 | D255: RATNAMANI | E255: Accu | F255: 785.00 | H255: 930 | I255: 920.00 | J255: Profit of Rs.145/- | K255: 145.00 | L255: 18.47% | M255: Successful | N255: 2017-08-29
A256: 84 | B256: 2017-04-06 | D256: ZEEMEDIA | E256: Accu | F256: 39-41 | I256: 60.00 | J256: Open
A257: 85 | B257: 2017-04-12 | D257: DABUR | E257: Accu | F257: 289.50 | H257: 354 | I257: 360.00 | J257: Profit of Rs.64.5/- | K257: 64.50 | L257: =K257/F257 -> 22.28% | M257: Successful | N257: 2017-11-01
A258: 86 | B258: 2017-04-20 | D258: KPRMILL | E258: Accu | F258: 700.00 | H258: 840 | I258: 840.00 | J258: Profit of Rs.140/- | K258: 140.00 | L258: =K258/F258 -> 20.00% | M258: Successful | N258: 2017-06-07
A259: 87 | B259: 2017-05-22 | D259: GREAVESCOT | E259: Accu | F259: 153-158 | I259: 190.00 | J259: Open
A260: 88 | B260: 2017-06-01 | D260: ESSELPACK | E260: Accu | F260: 260 | H260: 311.00 | I260: 340.00 | J260: Part profit of Rs.51/- | K260: =H260-F260 -> 51.00 | L260: =K260/F260 -> 20% | M260: Successful | N260: 2017-11-17
A261: 89 | B261: 2017-06-15 | D261: KEI | E261: Accu | F261: 214.50 | H261: 262 | I261: 262.00 | J261: Profit of Rs.47.5/- | K261: =H261-F261 -> 47.50 | L261: 22.14% | M261: Successful | N261: 2017-08-30
A262: 90 | B262: 2017-07-17 | D262: MAYURUNIQ | E262: Accu | F262: 370.00 | H262: 447.5 | I262: 450.00 | J262: Target Achieved | K262: 77.50 | L262: 20.95% | M262: Successful | N262: 2017-10-27
A263: 91 | B263: 2017-07-27 | D263: RAMCOCEM | E263: Accu | F263: 657.50 | H263: 825 | I263: 820.00 | J263: Target Achieved | K263: 167.50 | L263: 25.48% | M263: Successful | N263: 2017-12-21
A264: 92 | B264: 2017-08-17 | D264: FINPIPE | E264: Accu | F264: 605.00 | H264: 750 | I264: 750.00 | J264: Profit of Rs.145/- | K264: 145.00 | L264: 23.97% | M264: Successful | N264: 2017-10-19
A265: 93 | B265: 2017-09-01 | D265: SHK | E265: Accu | F265: 255 | H265: 307.50 | I265: 320.00 | J265: Part profit of Rs.52.5/- | K265: 52.50 | L265: 21% | M265: Successful | N265: 2017-12-29
A266: 94 | B266: 2017-09-19 | D266: SKIPPER | E266: Accu | F266: 215.00 | H266: 258 | I266: 258.00 | J266: Target Achieved | K266: 43.00 | L266: 20.00% | M266: Successful | N266: 2017-11-01
A267: 95 | B267: 2017-09-20 | D267: CAMLINFINE | E267: Accu | F267: 75.00 | H267: 90 | I267: 90.00 | J267: Profit of Rs.15.00/- | K267: 15.00 | L267: 20.00% | M267: Successful | N267: 2017-10-11
... 49 more rows

Sheet Sheet2 (hidden)
A1: SYMBOL | B1: SERIES | C1: OPEN | D1: HIGH | E1: LOW | F1: CLOSE | G1: LAST | H1: PREVCLOSE | I1: TOTTRDQTY | J1: TOTTRDVAL | K1: TIMESTAMP | L1: TOTALTRADES | M1: ISIN | N1: ISIN
A2: 20MICRONS | B2: EQ | C2: 43.85 | D2: 43.85 | E2: 42.05 | F2: 42.4 | G2: 42.4 | H2: 43.2 | I2: 22235 | J2: 950218.5 | K2: 2018-12-21 | L2: 296 | M2: INE144J01027
A3: 21STCENMGM | B3: EQ | C3: 24.6 | D3: 24.6 | E3: 24.05 | F3: 24.5 | G3: 24.5 | H3: 24.5 | I3: 1348 | J3: 32690.35 | K3: 2018-12-21 | L3: 10 | M3: INE253B01015
A4: 3IINFOTECH | B4: EQ | C4: 3.65 | D4: 3.7 | E4: 3.55 | F4: 3.6 | G4: 3.65 | H4: 3.65 | I4: 1387747 | J4: 5026905.4 | K4: 2018-12-21 | L4: 698 | M4: INE748C01020
A5: 3MINDIA | B5: EQ | C5: 22644 | D5: 22649.95 | E5: 22000 | F5: 22059.7 | G5: 22030 | H5: 22488.6 | I5: 906 | J5: 20127365.55 | K5: 2018-12-21 | L5: 599 | M5: INE470A01017
A6: 5PAISA | B6: EQ | C6: 192.05 | D6: 196.9 | E6: 191.95 | F6: 192.55 | G6: 192 | H6: 195.25 | I6: 4649 | J6: 898613.6 | K6: 2018-12-21 | L6: 131 | M6: INE618L01018
A7: 63MOONS | B7: EQ | C7: 101 | D7: 102 | E7: 95.6 | F7: 96.35 | G7: 96 | H7: 101.2 | I7: 328860 | J7: 32239591.95 | K7: 2018-12-21 | L7: 4994 | M7: INE111B01023
A8: 8KMILES | B8: EQ | C8: 152 | D8: 162.45 | E8: 151.05 | F8: 155.6 | G8: 156.4 | H8: 154.75 | I8: 601069 | J8: 95512576.8 | K8: 2018-12-21 | L8: 8115 | M8: INE650K01021
A9: A2ZINFRA | B9: EQ | C9: 13 | D9: 13.35 | E9: 12.8 | F9: 12.9 | G9: 12.85 | H9: 13 | I9: 305844 | J9: 3992759.7 | K9: 2018-12-21 | L9: 675 | M9: INE619I01012
A10: AARTIDRUGS | B10: EQ | C10: 561.5 | D10: 567.4 | E10: 560 | F10: 564.3 | G10: 565 | H10: 564.8 | I10: 12233 | J10: 6905896.6 | K10: 2018-12-21 | L10: 2535 | M10: INE767A01016
A11: AARTIIND | B11: EQ | C11: 1453 | D11: 1462 | E11: 1441 | F11: 1449.75 | G11: 1455.8 | H11: 1448.25 | I11: 42989 | J11: 62367141 | K11: 2018-12-21 | L11: 4197 | M11: INE769A01020
A12: AARVEEDEN | B12: EQ | C12: 25.75 | D12: 26.35 | E12: 25.7 | F12: 26.1 | G12: 26.2 | H12: 25.7 | I12: 3682 | J12: 95059.45 | K12: 2018-12-21 | L12: 24 | M12: INE273D01019
A13: AAVAS | B13: EQ | C13: 843.35 | D13: 854 | E13: 805.15 | F13: 823 | G13: 830 | H13: 843.35 | I13: 22012 | J13: 18420978.9 | K13: 2018-12-21 | L13: 2580 | M13: INE216P01012
A14: ABAN | B14: EQ | C14: 75.75 | D14: 76.95 | E14: 74.25 | F14: 74.9 | G14: 74.6 | H14: 76.4 | I14: 563099 | J14: 42277105.45 | K14: 2018-12-21 | L14: 6742 | M14: INE421A01028
A15: ABB | B15: EQ | C15: 1315 | D15: 1325 | E15: 1295 | F15: 1302.7 | G15: 1308 | H15: 1314.15 | I15: 193848 | J15: 252711958.7 | K15: 2018-12-21 | L15: 9576 | M15: INE117A01022
A16: ABBOTINDIA | B16: EQ | C16: 7450.15 | D16: 7495 | E16: 7385.45 | F16: 7410 | G16: 7395 | H16: 7450.55 | I16: 2398 | J16: 17827322 | K16: 2018-12-21 | L16: 1058 | M16: INE358A01014
A17: ABCAPITAL | B17: EQ | C17: 99.4 | D17: 99.65 | E17: 97.8 | F17: 98.05 | G17: 98.4 | H17: 99.5 | I17: 1389016 | J17: 136951002.8 | K17: 2018-12-21 | L17: 10114 | M17: INE674K01013
A18: ABFRL | B18: EQ | C18: 203 | D18: 207.7 | E18: 201.1 | F18: 205 | G18: 207.05 | H18: 203.15 | I18: 1649809 | J18: 335580512.4 | K18: 2018-12-21 | L18: 14434 | M18: INE647O01011
A19: ABMINTLTD | B19: BE | C19: 16.45 | D19: 16.45 | E19: 16.45 | F19: 16.45 | G19: 16.45 | H19: 16.45 | I19: 30 | J19: 493.5 | K19: 2018-12-21 | L19: 1 | M19: INE251C01017
A20: ACC | B20: EQ | C20: 1534.9 | D20: 1539 | E20: 1481 | F20: 1490.05 | G20: 1490 | H20: 1537.25 | I20: 815286 | J20: 1227197626 | K20: 2018-12-21 | L20: 25689 | M20: INE012A01025
A21: ACCELYA | B21: EQ | C21: 952.85 | D21: 963.7 | E21: 945 | F21: 950.35 | G21: 952 | H21: 952.9 | I21: 1560 | J21: 1487963.35 | K21: 2018-12-21 | L21: 241 | M21: INE793A01012
A22: ACE | B22: EQ | C22: 96.45 | D22: 96.5 | E22: 93 | F22: 93.45 | G22: 93.25 | H22: 95.75 | I22: 109476 | J22: 10299014 | K22: 2018-12-21 | L22: 2359 | M22: INE731H01025
A23: ADANIENT | B23: EQ | C23: 159.8 | D23: 161.5 | E23: 152 | F23: 159.35 | G23: 159.4 | H23: 159.25 | I23: 5335334 | J23: 835051324.4 | K23: 2018-12-21 | L23: 27266 | M23: INE423A01024
A24: ADANIGAS | B24: EQ | C24: 103.65 | D24: 103.9 | E24: 99.4 | F24: 99.65 | G24: 99.7 | H24: 102.8 | I24: 763820 | J24: 77059361.9 | K24: 2018-12-21 | L24: 6043 | M24: INE399L01023
A25: ADANIGREEN | B25: EQ | C25: 43.95 | D25: 44.25 | E25: 42.35 | F25: 42.5 | G25: 42.5 | H25: 43.95 | I25: 443037 | J25: 19054723.25 | K25: 2018-12-21 | L25: 3102 | M25: INE364U01010
A26: ADANIPORTS | B26: EQ | C26: 374.3 | D26: 379.5 | E26: 359.15 | F26: 361.1 | G26: 361.25 | H26: 375.15 | I26: 10909545 | J26: 3977531261 | K26: 2018-12-21 | L26: 100817 | M26: INE742F01042
A27: ADANIPOWER | B27: EQ | C27: 52.35 | D27: 52.6 | E27: 50 | F27: 50.35 | G27: 50.5 | H27: 52 | I27: 10831915 | J27: 552781726.6 | K27: 2018-12-21 | L27: 16273 | M27: INE814H01011
A28: ADANITRANS | B28: EQ | C28: 216.85 | D28: 217.2 | E28: 207.25 | F28: 208.35 | G28: 207.85 | H28: 215.75 | I28: 185052 | J28: 38972092.7 | K28: 2018-12-21 | L28: 7679 | M28: INE931S01010
A29: ADFFOODS | B29: EQ | C29: 268 | D29: 269.9 | E29: 257.8 | F29: 262.7 | G29: 262.65 | H29: 267 | I29: 45208 | J29: 11901658.85 | K29: 2018-12-21 | L29: 1620 | M29: INE982B01019
A30: ADHUNIK | B30: EQ | C30: 2.1 | D30: 2.25 | E30: 2.1 | F30: 2.2 | G30: 2.25 | H30: 2.1 | I30: 60899 | J30: 132530.65 | K30: 2018-12-21 | L30: 100 | M30: INE400H01019
A31: ADHUNIKIND | B31: EQ | C31: 45 | D31: 46.55 | E31: 45 | F31: 45.25 | G31: 46.35 | H31: 46.6 | I31: 1833 | J31: 83271.05 | K31: 2018-12-21 | L31: 44 | M31: INE452L01012
A32: ADLABS | B32: EQ | C32: 11.45 | D32: 11.75 | E32: 11.05 | F32: 11.35 | G32: 11.35 | H32: 11.4 | I32: 147392 | J32: 1670903.2 | K32: 2018-12-21 | L32: 426 | M32: INE172N01012
A33: ADORWELD | B33: EQ | C33: 402.55 | D33: 405.55 | E33: 385.25 | F33: 386.8 | G33: 385.6 | H33: 402.6 | I33: 10710 | J33: 4218743.2 | K33: 2018-12-21 | L33: 790 | M33: INE045A01017
A34: ADROITINFO | B34: EQ | C34: 17.5 | D34: 18.95 | E34: 17 | F34: 18.4 | G34: 18.95 | H34: 18 | I34: 14100 | J34: 257410.35 | K34: 2018-12-21 | L34: 54 | M34: INE737B01033
A35: ADSL | B35: EQ | C35: 14.45 | D35: 14.8 | E35: 14.15 | F35: 14.2 | G35: 14.15 | H35: 14.55 | I35: 6929 | J35: 100134.35 | K35: 2018-12-21 | L35: 56 | M35: INE102I01027
A36: ADVANIHOTR | B36: EQ | C36: 63.1 | D36: 65 | E36: 62.25 | F36: 63.95 | G36: 64.5 | H36: 64.6 | I36: 5673 | J36: 362388.4 | K36: 2018-12-21 | L36: 103 | M36: INE199C01026
A37: ADVENZYMES | B37: EQ | C37: 178.95 | D37: 185.45 | E37: 176.4 | F37: 182.05 | G37: 182.45 | H37: 177 | I37: 108069 | J37: 19658058.25 | K37: 2018-12-21 | L37: 2565 | M37: INE837H01020
A38: AEGISCHEM | B38: EQ | C38: 189.65 | D38: 192.5 | E38: 185.5 | F38: 186.65 | G38: 188 | H38: 189.65 | I38: 164624 | J38: 30961965.85 | K38: 2018-12-21 | L38: 4554 | M38: INE208C01025
A39: AGARIND | B39: EQ | C39: 191.5 | D39: 238.5 | E39: 191.5 | F39: 228.4 | G39: 226.25 | H39: 200 | I39: 49917 | J39: 11393115.2 | K39: 2018-12-21 | L39: 791 | M39: INE204E01012
A40: AGCNET | B40: EQ | C40: 69.6 | D40: 72.5 | E40: 69.55 | F40: 70.75 | G40: 71.1 | H40: 70.3 | I40: 3933 | J40: 276024.6 | K40: 2018-12-21 | L40: 80 | M40: INE676A01019
A41: AGLSL | B41: EQ | C41: 69.35 | D41: 69.4 | E41: 67 | F41: 68.25 | G41: 68.25 | H41: 67.3 | I41: 4486 | J41: 305279.05 | K41: 2018-12-21 | L41: 107 | M41: INE517U01013
A42: AGRITECH | B42: BE | C42: 62.05 | D42: 65.9 | E42: 62.05 | F42: 62.75 | G42: 62.05 | H42: 64.15 | I42: 7664 | J42: 483412.6 | K42: 2018-12-21 | L42: 79 | M42: INE449G01018
A43: AHLEAST | B43: EQ | C43: 249.05 | D43: 250.05 | E43: 242.5 | F43: 243.05 | G43: 243 | H43: 242.5 | I43: 386 | J43: 93874.5 | K43: 2018-12-21 | L43: 44 | M43: INE926K01017
A44: AHLUCONT | B44: EQ | C44: 344.3 | D44: 347.05 | E44: 315.35 | F44: 319 | G44: 326 | H44: 343.15 | I44: 31677 | J44: 10468322.35 | K44: 2018-12-21 | L44: 1556 | M44: INE758C01029
A45: AHLWEST | B45: EQ | C45: 300 | D45: 300.05 | E45: 300 | F45: 300 | G45: 300.05 | H45: 300.25 | I45: 298 | J45: 89401.55 | K45: 2018-12-21 | L45: 20 | M45: INE915K01010
A46: AIAENG | B46: EQ | C46: 1630.05 | D46: 1644.95 | E46: 1607.2 | F46: 1612.05 | G46: 1610.2 | H46: 1630.05 | I46: 36100 | J46: 58273633.6 | K46: 2018-12-21 | L46: 4304 | M46: INE212H01026
A47: AIFL | B47: EQ | C47: 28.35 | D47: 28.35 | E47: 26.25 | F47: 28.3 | G47: 28.35 | H47: 27 | I47: 1756262 | J47: 49402960.15 | K47: 2018-12-21 | L47: 3155 | M47: INE428O01016
A48: AIONJSW | B48: EQ | C48: 40.85 | D48: 43.5 | E48: 39.7 | F48: 42.6 | G48: 41.65 | H48: 40.1 | I48: 250434 | J48: 10342913.65 | K48: 2018-12-21 | L48: 1728 | M48: INE743C01021
A49: AJANTPHARM | B49: EQ | C49: 1165.1 | D49: 1165.1 | E49: 1125 | F49: 1132.45 | G49: 1133.3 | H49: 1157.9 | I49: 341783 | J49: 388804482.6 | K49: 2018-12-21 | L49: 12560 | M49: INE031B01049
A50: AJMERA | B50: EQ | C50: 176.7 | D50: 176.7 | E50: 165 | F50: 167.4 | G50: 168.15 | H50: 177.05 | I50: 141588 | J50: 24159216.1 | K50: 2018-12-21 | L50: 3497 | M50: INE298G01027
A51: AKSHARCHEM | B51: EQ | C51: 441.05 | D51: 448.95 | E51: 438.1 | F51: 439.15 | G51: 438.15 | H51: 446.55 | I51: 3078 | J51: 1356677.9 | K51: 2018-12-21 | L51: 130 | M51: INE542B01011
A52: AKSHOPTFBR | B52: EQ | C52: 25 | D52: 25.1 | E52: 24.55 | F52: 24.65 | G52: 24.7 | H52: 25 | I52: 394117 | J52: 9745132.8 | K52: 2018-12-21 | L52: 1083 | M52: INE523B01011
A53: AKZOINDIA | B53: EQ | C53: 1621.25 | D53: 1637.4 | E53: 1601.95 | F53: 1634.95 | G53: 1637 | H53: 1621.25 | I53: 26536 | J53: 43313221.25 | K53: 2018-12-21 | L53: 1681 | M53: INE133A01011
A54: ALANKIT | B54: EQ | C54: 23.9 | D54: 24.25 | E54: 23.45 | F54: 23.65 | G54: 23.6 | H54: 23.8 | I54: 282445 | J54: 6714129.25 | K54: 2018-12-21 | L54: 442 | M54: INE914E01040
A55: ALBERTDAVD | B55: EQ | C55: 439 | D55: 439 | E55: 418.1 | F55: 422.15 | G55: 423 | H55: 428.55 | I55: 4277 | J55: 1816146.55 | K55: 2018-12-21 | L55: 215 | M55: INE155C01010
A56: ALBK | B56: EQ | C56: 47.5 | D56: 47.7 | E56: 46.2 | F56: 46.65 | G56: 46.55 | H56: 46.5 | I56: 8247101 | J56: 386698713.7 | K56: 2018-12-21 | L56: 17304 | M56: INE428A01015
A57: ALCHEM | B57: BE | C57: 2 | D57: 2.1 | E57: 2 | F57: 2.1 | G57: 2.1 | H57: 2 | I57: 27116 | J57: 56923.5 | K57: 2018-12-21 | L57: 34 | M57: INE964B01033
A58: ALEMBICLTD | B58: EQ | C58: 48.9 | D58: 48.9 | E58: 45 | F58: 45.6 | G58: 45.45 | H58: 48.4 | I58: 410640 | J58: 19055903.55 | K58: 2018-12-21 | L58: 2967 | M58: INE426A01027
A59: ALICON | B59: EQ | C59: 639.05 | D59: 639.05 | E59: 630.35 | F59: 630.55 | G59: 630.4 | H59: 639 | I59: 1644 | J59: 1043859.95 | K59: 2018-12-21 | L59: 30 | M59: INE062D01024
A60: ALKALI | B60: EQ | C60: 56.85 | D60: 56.85 | E60: 54.7 | F60: 54.95 | G60: 55.1 | H60: 55.3 | I60: 6601 | J60: 365105.1 | K60: 2018-12-21 | L60: 103 | M60: INE773I01017
A61: ALKEM | B61: EQ | C61: 1870 | D61: 1874 | E61: 1850.1 | F61: 1852.35 | G61: 1856 | H61: 1866.15 | I61: 31556 | J61: 58516352.55 | K61: 2018-12-21 | L61: 5166 | M61: INE540L01014
A62: ALKYLAMINE | B62: EQ | C62: 748.55 | D62: 752.9 | E62: 736.15 | F62: 740.45 | G62: 736.15 | H62: 746.3 | I62: 9849 | J62: 7339859.95 | K62: 2018-12-21 | L62: 1656 | M62: INE150B01021
A63: ALLCARGO | B63: EQ | C63: 113 | D63: 114.45 | E63: 110.1 | F63: 112.05 | G63: 112 | H63: 113.6 | I63: 173175 | J63: 19424155.25 | K63: 2018-12-21 | L63: 2939 | M63: INE418H01029
A64: ALLSEC | B64: EQ | C64: 205.5 | D64: 205.5 | E64: 201.1 | F64: 204.05 | G64: 204.45 | H64: 202.75 | I64: 4524 | J64: 919928.05 | K64: 2018-12-21 | L64: 302 | M64: INE835G01018
A65: ALMONDZ | B65: EQ | C65: 23 | D65: 23.4 | E65: 21.7 | F65: 22.15 | G65: 22.15 | H65: 23 | I65: 3344 | J65: 73210.25 | K65: 2018-12-21 | L65: 20 | M65: INE326B01027
A66: ALOKTEXT | B66: EQ | C66: 3.75 | D66: 3.75 | E66: 3.6 | F66: 3.65 | G66: 3.7 | H66: 3.7 | I66: 1017408 | J66: 3723328.9 | K66: 2018-12-21 | L66: 538 | M66: INE270A01011
A67: ALPA | B67: EQ | C67: 24.8 | D67: 24.8 | E67: 24.25 | F67: 24.4 | G67: 24.3 | H67: 24.65 | I67: 3878 | J67: 95103.6 | K67: 2018-12-21 | L67: 33 | M67: INE385I01010
A68: ALPHAGEO | B68: EQ | C68: 466.35 | D68: 472.95 | E68: 460 | F68: 463.55 | G68: 463 | H68: 468.45 | I68: 3829 | J68: 1788292.1 | K68: 2018-12-21 | L68: 504 | M68: INE137C01018
A69: AMARAJABAT | B69: EQ | C69: 742.05 | D69: 749.95 | E69: 737 | F69: 743.25 | G69: 745.7 | H69: 745.65 | I69: 538998 | J69: 400297518.1 | K69: 2018-12-21 | L69: 15758 | M69: INE885A01032
A70: AMBER | B70: EQ | C70: 920.85 | D70: 934.45 | E70: 912.1 | F70: 926.25 | G70: 925 | H70: 920.2 | I70: 5256 | J70: 4848809.25 | K70: 2018-12-21 | L70: 968 | M70: INE371P01015
A71: AMBIKCO | B71: EQ | C71: 1172.9 | D71: 1172.95 | E71: 1159.75 | F71: 1164.45 | G71: 1164.5 | H71: 1168.7 | I71: 1239 | J71: 1444514.95 | K71: 2018-12-21 | L71: 138 | M71: INE540G01014
A72: AMBUJACEM | B72: EQ | C72: 225.25 | D72: 226.2 | E72: 219.3 | F72: 220.7 | G72: 220.35 | H72: 225.1 | I72: 1677202 | J72: 372109963.8 | K72: 2018-12-21 | L72: 20590 | M72: INE079A01024
A73: AMDIND | B73: EQ | C73: 21.65 | D73: 22.3 | E73: 21.65 | F73: 22.1 | G73: 22.25 | H73: 21.85 | I73: 4688 | J73: 102730.75 | K73: 2018-12-21 | L73: 19 | M73: INE005I01014
A74: AMJLAND | B74: EQ | C74: 20.5 | D74: 20.95 | E74: 20.5 | F74: 20.55 | G74: 20.5 | H74: 20.7 | I74: 3433 | J74: 70673.95 | K74: 2018-12-21 | L74: 24 | M74: INE606A01024
A75: AMRUTANJAN | B75: EQ | C75: 285 | D75: 304.7 | E75: 280.3 | F75: 293.2 | G75: 293.55 | H75: 256.05 | I75: 1289307 | J75: 381132320.9 | K75: 2018-12-21 | L75: 29455 | M75: INE098F01031
A76: ANANTRAJ | B76: EQ | C76: 36 | D76: 38.6 | E76: 35.25 | F76: 35.95 | G76: 36 | H76: 36.2 | I76: 439436 | J76: 15794405.15 | K76: 2018-12-21 | L76: 2212 | M76: INE242C01024
A77: ANDHRABANK | B77: EQ | C77: 29.8 | D77: 29.8 | E77: 29.1 | F77: 29.45 | G77: 29.4 | H77: 29.35 | I77: 1275392 | J77: 37501838.55 | K77: 2018-12-21 | L77: 3026 | M77: INE434A01013
A78: ANDHRACEMT | B78: EQ | C78: 5.8 | D78: 5.95 | E78: 5.75 | F78: 5.85 | G78: 5.85 | H78: 5.8 | I78: 108309 | J78: 632374.45 | K78: 2018-12-21 | L78: 145 | M78: INE666E01012
A79: ANDHRSUGAR | B79: EQ | C79: 342.75 | D79: 342.75 | E79: 332.15 | F79: 333.4 | G79: 332.5 | H79: 339 | I79: 11098 | J79: 3725687.5 | K79: 2018-12-21 | L79: 560 | M79: INE715B01013
A80: ANGIND | B80: BE | C80: 1.3 | D80: 1.4 | E80: 1.3 | F80: 1.4 | G80: 1.4 | H80: 1.35 | I80: 11532 | J80: 15018.4 | K80: 2018-12-21 | L80: 24 | M80: INE017D01010
A81: ANIKINDS | B81: EQ | C81: 23.55 | D81: 24 | E81: 22.25 | F81: 23.65 | G81: 23.4 | H81: 23.3 | I81: 7737 | J81: 181504.5 | K81: 2018-12-21 | L81: 75 | M81: INE087B01017
A82: ANKITMETAL | B82: BE | C82: 0.5 | D82: 0.5 | E82: 0.5 | F82: 0.5 | G82: 0.5 | H82: 0.4 | I82: 4 | J82: 2 | K82: 2018-12-21 | L82: 4 | M82: INE106I01010
A83: ANSALAPI | B83: EQ | C83: 12 | D83: 12 | E83: 11.2 | F83: 11.35 | G83: 11.3 | H83: 11.8 | I83: 27785 | J83: 316932.9 | K83: 2018-12-21 | L83: 149 | M83: INE436A01026
A84: ANSALHSG | B84: EQ | C84: 11.6 | D84: 11.8 | E84: 11 | F84: 11.3 | G84: 11.35 | H84: 11.65 | I84: 27212 | J84: 307339.15 | K84: 2018-12-21 | L84: 371 | M84: INE880B01015
A85: ANTGRAPHIC | B85: BE | C85: 0.45 | D85: 0.5 | E85: 0.45 | F85: 0.45 | G85: 0.45 | H85: 0.5 | I85: 79073 | J85: 35632.85 | K85: 2018-12-21 | L85: 24 | M85: INE414B01021
A86: APARINDS | B86: EQ | C86: 650.15 | D86: 650.15 | E86: 636 | F86: 640.45 | G86: 640.25 | H86: 650.2 | I86: 5448 | J86: 3489540.05 | K86: 2018-12-21 | L86: 240 | M86: INE372A01015
A87: APCL | B87: EQ | C87: 134.45 | D87: 139 | E87: 130.5 | F87: 135.75 | G87: 138.95 | H87: 136.2 | I87: 1569 | J87: 208886.25 | K87: 2018-12-21 | L87: 118 | M87: INE071F01012
A88: APCOTEXIND | B88: EQ | C88: 539.6 | D88: 545 | E88: 523.8 | F88: 527.6 | G88: 527.5 | H88: 537.2 | I88: 10249 | J88: 5513396.05 | K88: 2018-12-21 | L88: 286 | M88: INE116A01024
A89: APEX | B89: EQ | C89: 376.4 | D89: 383.05 | E89: 372.4 | F89: 378.05 | G89: 379 | H89: 378.15 | I89: 100763 | J89: 38101696.55 | K89: 2018-12-21 | L89: 1730 | M89: INE346W01013
A90: APLAPOLLO | B90: EQ | C90: 1180 | D90: 1195 | E90: 1159 | F90: 1170.25 | G90: 1169 | H90: 1179.1 | I90: 9951 | J90: 11677495.6 | K90: 2018-12-21 | L90: 922 | M90: INE702C01019
A91: APLLTD | B91: EQ | C91: 599.95 | D91: 600.1 | E91: 575.1 | F91: 579.05 | G91: 578 | H91: 598.05 | I91: 43843 | J91: 25650663.65 | K91: 2018-12-21 | L91: 3986 | M91: INE901L01018
A92: APOLLO | B92: EQ | C92: 130.65 | D92: 130.65 | E92: 125.6 | F92: 126.3 | G92: 126 | H92: 128.6 | I92: 10491 | J92: 1339842.75 | K92: 2018-12-21 | L92: 354 | M92: INE713T01010
A93: APOLLOHOSP | B93: EQ | C93: 1273.9 | D93: 1283.45 | E93: 1244.05 | F93: 1252.4 | G93: 1254 | H93: 1267.55 | I93: 450623 | J93: 565556370 | K93: 2018-12-21 | L93: 23465 | M93: INE437A01024
A94: APOLLOTYRE | B94: EQ | C94: 243 | D94: 243 | E94: 232.1 | F94: 233.4 | G94: 233.55 | H94: 239.55 | I94: 3965309 | J94: 932116358.5 | K94: 2018-12-21 | L94: 36706 | M94: INE438A01022
A95: APOLSINHOT | B95: EQ | C95: 1080 | D95: 1200 | E95: 1080 | F95: 1139.9 | G95: 1135 | H95: 1012.35 | I95: 30343 | J95: 35275955.2 | K95: 2018-12-21 | L95: 3198 | M95: INE451F01024
A96: APTECHT | B96: EQ | C96: 193.7 | D96: 197.45 | E96: 188.3 | F96: 190.35 | G96: 191.4 | H96: 193.6 | I96: 334407 | J96: 64429646.65 | K96: 2018-12-21 | L96: 5242 | M96: INE266F01018
A97: ARCHIDPLY | B97: EQ | C97: 40.95 | D97: 42.4 | E97: 40.15 | F97: 40.35 | G97: 40.25 | H97: 40.4 | I97: 20528 | J97: 833724.15 | K97: 2018-12-21 | L97: 262 | M97: INE877I01016
A98: ARCHIES | B98: EQ | C98: 36 | D98: 36.45 | E98: 33.55 | F98: 33.95 | G98: 33.7 | H98: 36.15 | I98: 197210 | J98: 6840663.7 | K98: 2018-12-21 | L98: 1421 | M98: INE731A01020
A99: ARCOTECH | B99: EQ | C99: 7.6 | D99: 7.95 | E99: 7.5 | F99: 7.55 | G99: 7.55 | H99: 7.6 | I99: 35065 | J99: 269093.25 | K99: 2018-12-21 | L99: 157 | M99: INE574I01035
A100: ARIES | B100: EQ | C100: 105.2 | D100: 105.2 | E100: 100 | F100: 100.75 | G100: 101.25 | H100: 105.15 | I100: 54293 | J100: 5567673.05 | K100: 2018-12-21 | L100: 1256 | M100: INE298I01015
A101: ARIHANT | B101: EQ | C101: 32.05 | D101: 34.45 | E101: 31.8 | F101: 32.95 | G101: 33 | H101: 33.15 | I101: 17509 | J101: 569384.85 | K101: 2018-12-21 | L101: 49 | M101: INE413D01011
A102: ARIHANTSUP | B102: EQ | C102: 60.55 | D102: 61.2 | E102: 58.1 | F102: 58.8 | G102: 59.6 | H102: 60.45 | I102: 24442 | J102: 1447186.5 | K102: 2018-12-21 | L102: 255 | M102: INE643K01018
A103: ARMANFIN | B103: EQ | C103: 398.8 | D103: 398.8 | E103: 385 | F103: 389.9 | G103: 390 | H103: 395.3 | I103: 4791 | J103: 1869080.45 | K103: 2018-12-21 | L103: 122 | M103: INE109C01017
A104: AROGRANITE | B104: EQ | C104: 52.85 | D104: 54 | E104: 51.1 | F104: 52.25 | G104: 52.2 | H104: 52.65 | I104: 18465 | J104: 962338.5 | K104: 2018-12-21 | L104: 244 | M104: INE210C01013
A105: ARROWGREEN | B105: EQ | C105: 106.4 | D105: 107.3 | E105: 105.5 | F105: 107.3 | G105: 107.3 | H105: 97.55 | I105: 24819 | J105: 2658599.6 | K105: 2018-12-21 | L105: 200 | M105: INE570D01018
A106: ARROWTEX | B106: EQ | C106: 25 | D106: 25 | E106: 24.1 | F106: 24.2 | G106: 24.2 | H106: 24.3 | I106: 2006 | J106: 48703.6 | K106: 2018-12-21 | L106: 28 | M106: INE933J01015
A107: ARSHIYA | B107: EQ | C107: 26.45 | D107: 31.1 | E107: 24 | F107: 31.1 | G107: 31.1 | H107: 25.95 | I107: 3080603 | J107: 91347923 | K107: 2018-12-21 | L107: 12454 | M107: INE968D01022
A108: ARSSINFRA | B108: BE | C108: 26.8 | D108: 28.35 | E108: 26.8 | F108: 28.2 | G108: 28.15 | H108: 27 | I108: 10412 | J108: 293983.65 | K108: 2018-12-21 | L108: 56 | M108: INE267I01010
A109: ARVIND | B109: EQ | C109: 99.9 | D109: 100.5 | E109: 98.1 | F109: 98.6 | G109: 98.55 | H109: 99.65 | I109: 3337926 | J109: 330358919.9 | K109: 2018-12-21 | L109: 17103 | M109: INE034A01011
A110: ARVSMART | B110: EQ | C110: 139 | D110: 146 | E110: 132.05 | F110: 138.2 | G110: 138.5 | H110: 139.3 | I110: 273713 | J110: 38306219.75 | K110: 2018-12-21 | L110: 5717 | M110: INE034S01021
A111: ASAHIINDIA | B111: EQ | C111: 260.8 | D111: 261.1 | E111: 251.35 | F111: 253.2 | G111: 253 | H111: 259.8 | I111: 15927 | J111: 4051924.05 | K111: 2018-12-21 | L111: 791 | M111: INE439A01020
A112: ASAHISONG | B112: EQ | C112: 214 | D112: 228 | E112: 210.2 | F112: 218.65 | G112: 218.5 | H112: 211.2 | I112: 19335 | J112: 4239196.45 | K112: 2018-12-21 | L112: 436 | M112: INE228I01012
A113: ASAL | B113: EQ | C113: 65.15 | D113: 66.8 | E113: 63.5 | F113: 64.45 | G113: 64.5 | H113: 64.3 | I113: 8735 | J113: 567890.05 | K113: 2018-12-21 | L113: 114 | M113: INE900C01027
A114: ASHAPURMIN | B114: EQ | C114: 32.55 | D114: 32.55 | E114: 30.3 | F114: 30.55 | G114: 30.7 | H114: 32.3 | I114: 77624 | J114: 2406223.2 | K114: 2018-12-21 | L114: 654 | M114: INE348A01023
A115: ASHIANA | B115: EQ | C115: 117 | D115: 117 | E115: 115.5 | F115: 116.1 | G115: 116 | H115: 116.8 | I115: 18910 | J115: 2199019.35 | K115: 2018-12-21 | L115: 412 | M115: INE365D01021
A116: ASHIMASYN | B116: EQ | C116: 14.25 | D116: 16.2 | E116: 14.2 | F116: 15.75 | G116: 15.7 | H116: 14.3 | I116: 488158 | J116: 7554821 | K116: 2018-12-21 | L116: 1620 | M116: INE440A01010
A117: ASHOKA | B117: EQ | C117: 131.7 | D117: 131.75 | E117: 125 | F117: 125.95 | G117: 125.1 | H117: 130.85 | I117: 116232 | J117: 14889736.9 | K117: 2018-12-21 | L117: 2144 | M117: INE442H01029
A118: ASHOKLEY | B118: EQ | C118: 106.45 | D118: 107 | E118: 103.55 | F118: 105.35 | G118: 105.25 | H118: 106.15 | I118: 19003345 | J118: 1992298720 | K118: 2018-12-21 | L118: 71830 | M118: INE208A01029
A119: ASIANHOTNR | B119: EQ | C119: 158.9 | D119: 158.9 | E119: 144.5 | F119: 147 | G119: 147 | H119: 145.8 | I119: 866 | J119: 127588.7 | K119: 2018-12-21 | L119: 72 | M119: INE363A01022
A120: ASIANPAINT | B120: EQ | C120: 1433.9 | D120: 1433.9 | E120: 1382.3 | F120: 1388.2 | G120: 1389.7 | H120: 1425.8 | I120: 2098064 | J120: 2931391993 | K120: 2018-12-21 | L120: 78398 | M120: INE021A01026
A121: ASIANTILES | B121: EQ | C121: 193.1 | D121: 198 | E121: 190 | F121: 192.35 | G121: 192 | H121: 193.05 | I121: 93229 | J121: 17980408.6 | K121: 2018-12-21 | L121: 3076 | M121: INE022I01019
A122: ASPINWALL | B122: EQ | C122: 174 | D122: 176 | E122: 170.5 | F122: 176 | G122: 176 | H122: 177.5 | I122: 289 | J122: 50411.5 | K122: 2018-12-21 | L122: 10 | M122: INE991I01015
A123: ASSAMCO | B123: BE | C123: 2.25 | D123: 2.25 | E123: 2.15 | F123: 2.2 | G123: 2.2 | H123: 2.25 | I123: 194767 | J123: 427989.1 | K123: 2018-12-21 | L123: 182 | M123: INE442A01024
A124: ASTEC | B124: EQ | C124: 542.95 | D124: 542.95 | E124: 533 | F124: 536.8 | G124: 538.95 | H124: 540.15 | I124: 7600 | J124: 4077209.8 | K124: 2018-12-21 | L124: 325 | M124: INE563J01010
A125: ASTERDM | B125: EQ | C125: 151.25 | D125: 152.5 | E125: 146.5 | F125: 147.1 | G125: 147.5 | H125: 152.25 | I125: 50681 | J125: 7523523.4 | K125: 2018-12-21 | L125: 1293 | M125: INE914M01019
A126: ASTRAL | B126: EQ | C126: 1084.25 | D126: 1095.75 | E126: 1075 | F126: 1087 | G126: 1090 | H126: 1082.6 | I126: 14565 | J126: 15861303 | K126: 2018-12-21 | L126: 1522 | M126: INE006I01046
A127: ASTRAMICRO | B127: EQ | C127: 79.6 | D127: 79.7 | E127: 77.1 | F127: 77.8 | G127: 78 | H127: 79.5 | I127: 265615 | J127: 20737123.3 | K127: 2018-12-21 | L127: 2191 | M127: INE386C01029
A128: ASTRAZEN | B128: EQ | C128: 1467.65 | D128: 1504.25 | E128: 1435.25 | F128: 1487.6 | G128: 1483.65 | H128: 1476.05 | I128: 9143 | J128: 13558289.05 | K128: 2018-12-21 | L128: 1149 | M128: INE203A01020
A129: ASTRON | B129: EQ | C129: 109.4 | D129: 110.75 | E129: 108.15 | F129: 108.9 | G129: 109 | H129: 109.95 | I129: 46615 | J129: 5084485 | K129: 2018-12-21 | L129: 1353 | M129: INE646X01014
A130: ATFL | B130: EQ | C130: 599.5 | D130: 608.8 | E130: 584 | F130: 586.6 | G130: 590.1 | H130: 603.2 | I130: 10665 | J130: 6317590.15 | K130: 2018-12-21 | L130: 665 | M130: INE209A01019
A131: ATLANTA | B131: EQ | C131: 23.3 | D131: 23.75 | E131: 23 | F131: 23.2 | G131: 23.15 | H131: 23.3 | I131: 79024 | J131: 1838041.4 | K131: 2018-12-21 | L131: 1879 | M131: INE285H01022
A132: ATLASCYCLE | B132: BE | C132: 82 | D132: 82 | E132: 77 | F132: 80 | G132: 80 | H132: 80.85 | I132: 1716 | J132: 137888.75 | K132: 2018-12-21 | L132: 45 | M132: INE446A01025
A133: ATUL | B133: EQ | C133: 3500 | D133: 3500 | E133: 3412.05 | F133: 3456.75 | G133: 3470 | H133: 3464.8 | I133: 9416 | J133: 32441599.5 | K133: 2018-12-21 | L133: 2100 | M133: INE100A01010
A134: ATULAUTO | B134: EQ | C134: 299.85 | D134: 300 | E134: 290 | F134: 292.65 | G134: 292 | H134: 299.1 | I134: 11479 | J134: 3385751.85 | K134: 2018-12-21 | L134: 805 | M134: INE951D01028
A135: AUBANK | B135: EQ | C135: 633.3 | D135: 644.9 | E135: 607.2 | F135: 636.85 | G135: 641.3 | H135: 638.15 | I135: 2200016 | J135: 1401188753 | K135: 2018-12-21 | L135: 19210 | M135: INE949L01017
A136: AURIONPRO | B136: EQ | C136: 129.85 | D136: 130 | E136: 127.5 | F136: 128.3 | G136: 128.95 | H136: 128.8 | I136: 5554 | J136: 717354.95 | K136: 2018-12-21 | L136: 185 | M136: INE132H01018
A137: AUROPHARMA | B137: EQ | C137: 726 | D137: 732.5 | E137: 714.15 | F137: 720.65 | G137: 719 | H137: 725.6 | I137: 2495340 | J137: 1803867714 | K137: 2018-12-21 | L137: 63913 | M137: INE406A01037
A138: AUSOMENT | B138: EQ | C138: 44.1 | D138: 44.25 | E138: 41.35 | F138: 42.2 | G138: 43.3 | H138: 43.1 | I138: 4163 | J138: 176695.2 | K138: 2018-12-21 | L138: 65 | M138: INE218C01016
A139: AUTOAXLES | B139: EQ | C139: 1352 | D139: 1374.95 | E139: 1326 | F139: 1338.4 | G139: 1337.1 | H139: 1366.45 | I139: 21232 | J139: 28603614.3 | K139: 2018-12-21 | L139: 1219 | M139: INE449A01011
A140: AUTOIND | B140: EQ | C140: 61.05 | D140: 65.5 | E140: 60.5 | F140: 63.15 | G140: 65 | H140: 61.7 | I140: 68837 | J140: 4351802.75 | K140: 2018-12-21 | L140: 686 | M140: INE718H01014
A141: AUTOLITIND | B141: EQ | C141: 40.8 | D141: 40.8 | E141: 39.6 | F141: 40 | G141: 39.7 | H141: 39.8 | I141: 9842 | J141: 395414.9 | K141: 2018-12-21 | L141: 138 | M141: INE448A01013
A142: AVADHSUGAR | B142: EQ | C142: 388.05 | D142: 394.6 | E142: 376 | F142: 377.35 | G142: 377 | H142: 386.7 | I142: 15243 | J142: 5875625.85 | K142: 2018-12-21 | L142: 736 | M142: INE349W01017
A143: AVANTIFEED | B143: EQ | C143: 408.95 | D143: 411 | E143: 389 | F143: 392.05 | G143: 392 | H143: 409.5 | I143: 535596 | J143: 211586333.9 | K143: 2018-12-21 | L143: 19668 | M143: INE871C01038
A144: AVTNPL | B144: EQ | C144: 27.05 | D144: 27.65 | E144: 26.5 | F144: 26.7 | G144: 26.7 | H144: 27.3 | I144: 33600 | J144: 903987.05 | K144: 2018-12-21 | L144: 215 | M144: INE488D01021
A145: AXISBANK | B145: EQ | C145: 633.3 | D145: 637.85 | E145: 616.65 | F145: 620.85 | G145: 621.65 | H145: 632.95 | I145: 10715457 | J145: 6718416632 | K145: 2018-12-21 | L145: 117567 | M145: INE238A01034
A146: AXISCADES | B146: EQ | C146: 85.4 | D146: 86.5 | E146: 82.2 | F146: 83.15 | G146: 82.4 | H146: 84.6 | I146: 96157 | J146: 8122546.1 | K146: 2018-12-21 | L146: 1539 | M146: INE555B01013
A147: AXISGOLD | B147: EQ | C147: 2742 | D147: 2780 | E147: 2742 | F147: 2747.65 | G147: 2745 | H147: 2742 | I147: 149 | J147: 409105.15 | K147: 2018-12-21 | L147: 18 | M147: INF846K01347
A148: AXISNIFTY | B148: EQ | C148: 1115.81 | D148: 1115.81 | E148: 1099.24 | F148: 1099.24 | G148: 1099.24 | H148: 1111.02 | I148: 36 | J148: 39704.31 | K148: 2018-12-21 | L148: 3 | M148: INF846K01ZL0
A149: AYMSYNTEX | B149: EQ | C149: 43.05 | D149: 43.9 | E149: 41 | F149: 41.2 | G149: 41 | H149: 42.9 | I149: 7378 | J149: 308738.25 | K149: 2018-12-21 | L149: 155 | M149: INE193B01039
A150: BAFNAPHARM | B150: EQ | C150: 12.3 | D150: 12.6 | E150: 11.3 | F150: 11.4 | G150: 11.6 | H150: 11.6 | I150: 22239 | J150: 257357.4 | K150: 2018-12-21 | L150: 173 | M150: INE878I01014
A151: BAGFILMS | B151: EQ | C151: 4.95 | D151: 4.95 | E151: 4.7 | F151: 4.8 | G151: 4.85 | H151: 4.9 | I151: 203268 | J151: 975104.6 | K151: 2018-12-21 | L151: 286 | M151: INE116D01028
A152: BAJAJ-AUTO | B152: EQ | C152: 2897 | D152: 2905 | E152: 2801 | F152: 2808.45 | G152: 2807 | H152: 2887.2 | I152: 386367 | J152: 1096690881 | K152: 2018-12-21 | L152: 36237 | M152: INE917I01010
A153: BAJAJCORP | B153: EQ | C153: 380 | D153: 381.4 | E153: 360 | F153: 361.1 | G153: 361 | H153: 376.5 | I153: 41013 | J153: 15133482.85 | K153: 2018-12-21 | L153: 1899 | M153: INE933K01021
A154: BAJAJELEC | B154: EQ | C154: 521.1 | D154: 526.5 | E154: 503.05 | F154: 506.5 | G154: 505.5 | H154: 517 | I154: 227073 | J154: 116826357.5 | K154: 2018-12-21 | L154: 6312 | M154: INE193E01025
A155: BAJAJFINSV | B155: EQ | C155: 6447 | D155: 6500 | E155: 6296.1 | F155: 6360.1 | G155: 6355.9 | H155: 6404.95 | I155: 309851 | J155: 1979129684 | K155: 2018-12-21 | L155: 36305 | M155: INE918I01018
A156: BAJAJHIND | B156: EQ | C156: 9.05 | D156: 9.25 | E156: 8.9 | F156: 8.95 | G156: 9 | H156: 9 | I156: 2369031 | J156: 21415913.45 | K156: 2018-12-21 | L156: 2166 | M156: INE306A01021
A157: BAJAJHLDNG | B157: EQ | C157: 2950.05 | D157: 2990 | E157: 2915 | F157: 2940.3 | G157: 2979.95 | H157: 2969.2 | I157: 40029 | J157: 117721237 | K157: 2018-12-21 | L157: 5463 | M157: INE118A01012
A158: BAJFINANCE | B158: EQ | C158: 2615 | D158: 2623.9 | E158: 2532.7 | F158: 2591.25 | G158: 2587 | H158: 2591.4 | I158: 3042464 | J158: 7869303800 | K158: 2018-12-21 | L158: 106879 | M158: INE296A01024
A159: BALAJITELE | B159: EQ | C159: 93.15 | D159: 93.15 | E159: 88.8 | F159: 89.65 | G159: 89.6 | H159: 92.55 | I159: 35644 | J159: 3248201.5 | K159: 2018-12-21 | L159: 1500 | M159: INE794B01026
A160: BALAMINES | B160: EQ | C160: 461.2 | D160: 461.45 | E160: 446.35 | F160: 452.05 | G160: 450 | H160: 457.75 | I160: 9736 | J160: 4397806.9 | K160: 2018-12-21 | L160: 793 | M160: INE050E01027
A161: BALKRISHNA | B161: EQ | C161: 51.5 | D161: 52 | E161: 48.8 | F161: 50.2 | G161: 50.6 | H161: 51.75 | I161: 8892 | J161: 447982.75 | K161: 2018-12-21 | L161: 204 | M161: INE875R01011
A162: BALKRISIND | B162: EQ | C162: 948 | D162: 956 | E162: 925.05 | F162: 928.8 | G162: 928 | H162: 942.1 | I162: 695768 | J162: 653897753.8 | K162: 2018-12-21 | L162: 27774 | M162: INE787D01026
A163: BALLARPUR | B163: EQ | C163: 5.45 | D163: 5.6 | E163: 5.15 | F163: 5.3 | G163: 5.35 | H163: 5.45 | I163: 581695 | J163: 3130143.95 | K163: 2018-12-21 | L163: 1100 | M163: INE294A01037
A164: BALMLAWRIE | B164: EQ | C164: 204.9 | D164: 206.65 | E164: 199.25 | F164: 200.65 | G164: 200.05 | H164: 203.95 | I164: 46566 | J164: 9425606.2 | K164: 2018-12-21 | L164: 1114 | M164: INE164A01016
A165: BALPHARMA | B165: EQ | C165: 81.2 | D165: 83.5 | E165: 79.65 | F165: 80.15 | G165: 80.55 | H165: 81.1 | I165: 23294 | J165: 1883023.1 | K165: 2018-12-21 | L165: 331 | M165: INE083D01012
A166: BALRAMCHIN | B166: EQ | C166: 105.65 | D166: 106.9 | E166: 100.25 | F166: 100.7 | G166: 100.9 | H166: 105.75 | I166: 2817440 | J166: 288354886.9 | K166: 2018-12-21 | L166: 14871 | M166: INE119A01028
A167: BANARBEADS | B167: EQ | C167: 49.7 | D167: 49.7 | E167: 46.55 | F167: 47.65 | G167: 47.9 | H167: 47.7 | I167: 1050 | J167: 50310.9 | K167: 2018-12-21 | L167: 25 | M167: INE655B01011
A168: BANARISUG | B168: EQ | C168: 1505.6 | D168: 1538 | E168: 1503 | F168: 1511.8 | G168: 1526 | H168: 1535.6 | I168: 91 | J168: 138264.35 | K168: 2018-12-21 | L168: 34 | M168: INE459A01010
A169: BANCOINDIA | B169: EQ | C169: 178 | D169: 182.5 | E169: 175 | F169: 179.95 | G169: 179 | H169: 178.15 | I169: 60080 | J169: 10810874.85 | K169: 2018-12-21 | L169: 1828 | M169: INE213C01025
A170: BANDHANBNK | B170: EQ | C170: 540 | D170: 553 | E170: 521 | F170: 526.8 | G170: 531 | H170: 537.6 | I170: 1268961 | J170: 681197882.6 | K170: 2018-12-21 | L170: 39039 | M170: INE545U01014
A171: BANG | B171: EQ | C171: 57.1 | D171: 59.9 | E171: 53.35 | F171: 58.95 | G171: 58.9 | H171: 57.05 | I171: 113347 | J171: 6511593.05 | K171: 2018-12-21 | L171: 945 | M171: INE863I01016
A172: BANKBARODA | B172: EQ | C172: 115 | D172: 116.4 | E172: 114.25 | F172: 115.1 | G172: 115.05 | H172: 114.9 | I172: 13316969 | J172: 1536910453 | K172: 2018-12-21 | L172: 41447 | M172: INE028A01039
A173: BANKBEES | B173: EQ | C173: 2773.9 | D173: 2786.5 | E173: 2718.6 | F173: 2738.58 | G173: 2744.55 | H173: 2766.88 | I173: 2905 | J173: 8000631.36 | K173: 2018-12-21 | L173: 434 | M173: INF732E01078
A174: BANKINDIA | B174: EQ | C174: 98.4 | D174: 99.25 | E174: 95.4 | F174: 97.9 | G174: 98.45 | H174: 97.5 | I174: 13158696 | J174: 1283656633 | K174: 2018-12-21 | L174: 34606 | M174: INE084A01016
A175: BANSWRAS | B175: EQ | C175: 82 | D175: 82.5 | E175: 80.6 | F175: 81.4 | G175: 81.3 | H175: 82.25 | I175: 345 | J175: 28124.55 | K175: 2018-12-21 | L175: 26 | M175: INE629D01012
A176: BARTRONICS | B176: EQ | C176: 7.3 | D176: 7.4 | E176: 7.25 | F176: 7.3 | G176: 7.3 | H176: 7.25 | I176: 6968 | J176: 50821.4 | K176: 2018-12-21 | L176: 48 | M176: INE855F01034
A177: BASF | B177: EQ | C177: 1584.25 | D177: 1600 | E177: 1562.05 | F177: 1595.55 | G177: 1598 | H177: 1589.65 | I177: 12265 | J177: 19326372.4 | K177: 2018-12-21 | L177: 1138 | M177: INE373A01013
A178: BASML | B178: EQ | C178: 215 | D178: 215 | E178: 210 | F178: 210.1 | G178: 210.15 | H178: 220 | I178: 396 | J178: 83313.4 | K178: 2018-12-21 | L178: 19 | M178: INE186H01014
A179: BATAINDIA | B179: EQ | C179: 1106 | D179: 1139 | E179: 1102.2 | F179: 1118.7 | G179: 1111.3 | H179: 1106.8 | I179: 1802170 | J179: 2016245659 | K179: 2018-12-21 | L179: 39625 | M179: INE176A01028
A180: BAYERCROP | B180: EQ | C180: 4242 | D180: 4274.45 | E180: 4165 | F180: 4231.15 | G180: 4250 | H180: 4241.55 | I180: 17496 | J180: 73734915.1 | K180: 2018-12-21 | L180: 4560 | M180: INE462A01022
A181: BBL | B181: EQ | C181: 1175.85 | D181: 1185.3 | E181: 1145 | F181: 1152.75 | G181: 1152 | H181: 1185.25 | I181: 6660 | J181: 7730323.45 | K181: 2018-12-21 | L181: 747 | M181: INE464A01028
A182: BBTC | B182: EQ | C182: 1342 | D182: 1352 | E182: 1300.05 | F182: 1305.3 | G182: 1302 | H182: 1344.05 | I182: 68238 | J182: 90245804.85 | K182: 2018-12-21 | L182: 5456 | M182: INE050A01025
A183: BCG | B183: EQ | C183: 2.7 | D183: 2.95 | E183: 2.7 | F183: 2.9 | G183: 2.85 | H183: 2.7 | I183: 1010133 | J183: 2875657.95 | K183: 2018-12-21 | L183: 510 | M183: INE425B01027
A184: BDL | B184: EQ | C184: 281.25 | D184: 286.95 | E184: 279 | F184: 284.7 | G184: 285.9 | H184: 283.15 | I184: 10064 | J184: 2843417.2 | K184: 2018-12-21 | L184: 739 | M184: INE171Z01018
A185: BEARDSELL | B185: EQ | C185: 24.4 | D185: 24.4 | E185: 23.8 | F185: 24 | G185: 24.35 | H185: 24.4 | I185: 646 | J185: 15574.35 | K185: 2018-12-21 | L185: 14 | M185: INE520H01022
A186: BEDMUTHA | B186: BE | C186: 20 | D186: 21.1 | E186: 20 | F186: 20.55 | G186: 20.55 | H186: 20.55 | I186: 1491 | J186: 31025.05 | K186: 2018-12-21 | L186: 11 | M186: INE844K01012
A187: BEL | B187: EQ | C187: 91.15 | D187: 94.8 | E187: 88 | F187: 88.4 | G187: 88.1 | H187: 90.3 | I187: 37783500 | J187: 3434249314 | K187: 2018-12-21 | L187: 165589 | M187: INE263A01024
A188: BEML | B188: EQ | C188: 913.35 | D188: 945.9 | E188: 881.7 | F188: 887.45 | G188: 886.95 | H188: 913.35 | I188: 12561363 | J188: 1.14836562e+10 | K188: 2018-12-21 | L188: 215194 | M188: INE258A01016
A189: BEPL | B189: EQ | C189: 91.9 | D189: 92.1 | E189: 85.05 | F189: 88.05 | G189: 88.1 | H189: 91.9 | I189: 1551680 | J189: 136688331.9 | K189: 2018-12-21 | L189: 11355 | M189: INE922A01025
A190: BERGEPAINT | B190: EQ | C190: 341 | D190: 341.75 | E190: 329.6 | F190: 330.65 | G190: 332.15 | H190: 339.45 | I190: 444971 | J190: 148736972.6 | K190: 2018-12-21 | L190: 8079 | M190: INE463A01038
A191: BFINVEST | B191: EQ | C191: 251.85 | D191: 253.7 | E191: 242.25 | F191: 242.95 | G191: 243.1 | H191: 250.85 | I191: 66587 | J191: 16400232.45 | K191: 2018-12-21 | L191: 1853 | M191: INE878K01010
A192: BFUTILITIE | B192: EQ | C192: 215 | D192: 215.25 | E192: 207.8 | F192: 208.9 | G192: 208.9 | H192: 214.15 | I192: 187017 | J192: 39432883 | K192: 2018-12-21 | L192: 4192 | M192: INE243D01012
A193: BGLOBAL | B193: BE | C193: 3 | D193: 3 | E193: 2.9 | F193: 2.9 | G193: 3 | H193: 3 | I193: 3852 | J193: 11291 | K193: 2018-12-21 | L193: 24 | M193: INE224M01013
A194: BGRENERGY | B194: EQ | C194: 62.75 | D194: 63.8 | E194: 60.8 | F194: 61.15 | G194: 61.35 | H194: 63.45 | I194: 74015 | J194: 4586278.35 | K194: 2018-12-21 | L194: 1102 | M194: INE661I01014
A195: BHAGERIA | B195: EQ | C195: 294.9 | D195: 295.6 | E195: 287.5 | F195: 292.5 | G195: 291 | H195: 292.35 | I195: 5942 | J195: 1726991.4 | K195: 2018-12-21 | L195: 234 | M195: INE354C01027
A196: BHAGYANGR | B196: EQ | C196: 28.65 | D196: 30.55 | E196: 28.65 | F196: 29.25 | G196: 29.6 | H196: 29.65 | I196: 4243 | J196: 125778.9 | K196: 2018-12-21 | L196: 70 | M196: INE458B01036
A197: BHAGYAPROP | B197: EQ | C197: 28.5 | D197: 28.9 | E197: 27.35 | F197: 27.45 | G197: 27.35 | H197: 28.35 | I197: 2349 | J197: 66312.2 | K197: 2018-12-21 | L197: 42 | M197: INE363W01018
A198: BHANDARI | B198: EQ | C198: 1.9 | D198: 2.25 | E198: 1.9 | F198: 2.15 | G198: 2.1 | H198: 1.9 | I198: 1375976 | J198: 2935577.95 | K198: 2018-12-21 | L198: 572 | M198: INE474E01029
A199: BHARATFIN | B199: EQ | C199: 1032 | D199: 1032 | E199: 995.2 | F199: 999 | G199: 999 | H199: 1023.15 | I199: 526432 | J199: 530654910 | K199: 2018-12-21 | L199: 26261 | M199: INE180K01011
A200: BHARATFORG | B200: EQ | C200: 522 | D200: 526 | E200: 500 | F200: 501.55 | G200: 502 | H200: 521.5 | I200: 1869274 | J200: 953048007.2 | K200: 2018-12-21 | L200: 44526 | M200: INE465A01025
... 1433 more rows

Sheet Sheet1 (hidden)
